Organisation Code,Organisation Label,Effective Date,Organisational Unit,Service Division Label,Category Internal Name,Purpose,Detailed Expenditure Code,Payment Date,Transaction Number,Irrecoverable VAT Amount,Amount,Capital Or Revenue,Benificiary Name,Procurement Card
Http://opendatacommunities.org/id/metropolitan-district-council/leeds,Leeds City Council,28/02/2017,Environment & Housing,Leeds Building Services,Supplies and Services,Operational Materials,205,17-Feb-2017,1702-00001,0.00,89.15,R,A & A Electrical Distributors Ltd,No
Http://opendatacommunities.org/id/metropolitan-district-council/leeds,Leeds City Council,28/02/2017,Childrens Services,Learning Skills & Universal,Supplies and Services,Training Allowances,257,03-Feb-2017,1702-00002,0.00,216.00,R,REDACTED PERSONAL DATA,No
Http://opendatacommunities.org/id/metropolitan-district-council/leeds,Leeds City Council,28/02/2017,Childrens Services,Learning Skills & Universal,Supplies and Services,Training Allowances,257,10-Feb-2017,1702-00003,0.00,216.00,R,REDACTED PERSONAL DATA,No
Http://opendatacommunities.org/id/metropolitan-district-council/leeds,Leeds City Council,28/02/2017,Environment & Housing,Leeds Building Services,Supplies and Services,Operational Materials,205,07-Feb-2017,1702-00004,0.00,380.76,R,A Andrews & Sons (Marbles & Tiles),No
Http://opendatacommunities.org/id/metropolitan-district-council/leeds,Leeds City Council,28/02/2017,Environment & Housing,Leeds Building Services,Supplies and Services,Operational Materials,205,07-Feb-2017,1702-00005,0.00,31.61,R,A Andrews & Sons (Marbles & Tiles),No
Http://opendatacommunities.org/id/metropolitan-district-council/leeds,Leeds City Council,28/02/2017,Environment & Housing,Leeds Building Services,Supplies and Services,Operational Materials,205,07-Feb-2017,1702-00006,0.00,3.60,R,A Andrews & Sons (Marbles & Tiles),No
Http://opendatacommunities.org/id/metropolitan-district-council/leeds,Leeds City Council,28/02/2017,Environment & Housing,Leeds Building Services,Supplies and Services,Operational Materials,205,07-Feb-2017,1702-00007,0.00,102.69,R,A Andrews & Sons (Marbles & Tiles),No
Http://opendatacommunities.org/id/metropolitan-district-council/leeds,Leeds City Council,28/02/2017,Environment & Housing,Leeds Building Services,Supplies and Services,Operational Materials,205,07-Feb-2017,1702-00008,0.00,128.40,R,A Andrews & Sons (Marbles & Tiles),No
Http://opendatacommunities.org/id/metropolitan-district-council/leeds,Leeds City Council,28/02/2017,Environment & Housing,Leeds Building Services,Supplies and Services,Operational Materials,205,10-Feb-2017,1702-00009,0.00,28.95,R,A Andrews & Sons (Marbles & Tiles),No
Http://opendatacommunities.org/id/metropolitan-district-council/leeds,Leeds City Council,28/02/2017,Environment & Housing,Leeds Building Services,Supplies and Services,Operational Materials,205,10-Feb-2017,1702-00010,0.00,23.81,R,A Andrews & Sons (Marbles & Tiles),No
Http://opendatacommunities.org/id/metropolitan-district-council/leeds,Leeds City Council,28/02/2017,Environment & Housing,Leeds Building Services,Supplies and Services,Operational Materials,205,10-Feb-2017,1702-00011,0.00,23.12,R,A Andrews & Sons (Marbles & Tiles),No
Http://opendatacommunities.org/id/metropolitan-district-council/leeds,Leeds City Council,28/02/2017,Environment & Housing,Leeds Building Services,Supplies and Services,Operational Materials,205,17-Feb-2017,1702-00012,0.00,45.00,R,A Andrews & Sons (Marbles & Tiles),No
Http://opendatacommunities.org/id/metropolitan-district-council/leeds,Leeds City Council,28/02/2017,Environment & Housing,Leeds Building Services,Supplies and Services,Operational Materials,205,17-Feb-2017,1702-00013,0.00,5.00,R,A Andrews & Sons (Marbles & Tiles),No
Http://opendatacommunities.org/id/metropolitan-district-council/leeds,Leeds City Council,28/02/2017,Environment & Housing,Leeds Building Services,Supplies and Services,Operational Materials,205,28-Feb-2017,1702-00014,0.00,3.90,R,A Andrews & Sons (Marbles & Tiles),No
Http://opendatacommunities.org/id/metropolitan-district-council/leeds,Leeds City Council,28/02/2017,Environment & Housing,Leeds Building Services,Supplies and Services,Operational Materials,205,28-Feb-2017,1702-00015,0.00,9.50,R,A Andrews & Sons (Marbles & Tiles),No
Http://opendatacommunities.org/id/metropolitan-district-council/leeds,Leeds City Council,28/02/2017,Environment & Housing,Leeds Building Services,Supplies and Services,Operational Materials,205,28-Feb-2017,1702-00016,0.00,5.78,R,A Andrews & Sons (Marbles & Tiles),No
Http://opendatacommunities.org/id/metropolitan-district-council/leeds,Leeds City Council,28/02/2017,Environment & Housing,Leeds Building Services,Supplies and Services,Operational Materials,205,28-Feb-2017,1702-00017,0.00,4.91,R,A Andrews & Sons (Marbles & Tiles),No
Http://opendatacommunities.org/id/metropolitan-district-council/leeds,Leeds City Council,28/02/2017,Environment & Housing,Leeds Building Services,Supplies and Services,Operational Materials,205,28-Feb-2017,1702-00018,0.00,91.10,R,A Andrews & Sons (Marbles & Tiles),No
Http://opendatacommunities.org/id/metropolitan-district-council/leeds,Leeds City Council,28/02/2017,Childrens Services,Learning Skills & Universal,Supplies and Services,Teaching Materials,202,10-Feb-2017,1702-00019,0.00,300.00,R,A Ash,No
Http://opendatacommunities.org/id/metropolitan-district-council/leeds,Leeds City Council,28/02/2017,City Development,Libraries  Arts & Heritage,Supplies and Services,Operational Materials,205,17-Feb-2017,1702-00020,0.00,112.50,R,A C Entertainment Technologies Ltd,No
Http://opendatacommunities.org/id/metropolitan-district-council/leeds,Leeds City Council,28/02/2017,Childrens Services,Learning Skills & Universal,Third Party Payments,Services Rendered By Other Organisations,511,17-Feb-2017,1702-00021,0.00,32.33,R,A Clarkson,No
Http://opendatacommunities.org/id/metropolitan-district-council/leeds,Leeds City Council,28/02/2017,Environment & Housing,Parks and Countryside,Supplies and Services,Bought In Professional Services,277,09-Feb-2017,1702-00022,0.00,1210.18,R,Redacted for commercial confidentiality ,No
Http://opendatacommunities.org/id/metropolitan-district-council/leeds,Leeds City Council,28/02/2017,Environment & Housing,Housing Leeds Service,Capital,Other Costs,7,10-Feb-2017,1702-00023,0.00,350.00,C,REDACTED PERSONAL DATA,No
Http://opendatacommunities.org/id/metropolitan-district-council/leeds,Leeds City Council,28/02/2017,Environment & Housing,Housing Leeds Service,Capital,Other Costs,7,27-Feb-2017,1702-00024,0.00,45.00,C,REDACTED PERSONAL DATA,No
Http://opendatacommunities.org/id/metropolitan-district-council/leeds,Leeds City Council,28/02/2017,Childrens Services,Learning Skills & Universal,Third Party Payments,Services Rendered By Voluntary Sector,505,17-Feb-2017,1702-00025,0.00,673.33,R,A E Speight,No
Http://opendatacommunities.org/id/metropolitan-district-council/leeds,Leeds City Council,28/02/2017,City Development,Highways,Capital,Construction,3,07-Feb-2017,1702-00026,0.00,138289.35,C,A E Yates Ltd,No
Http://opendatacommunities.org/id/metropolitan-district-council/leeds,Leeds City Council,28/02/2017,Environment & Housing,Housing Leeds Service,Capital,Other Costs,7,16-Feb-2017,1702-00027,0.00,231.84,C,REDACTED PERSONAL DATA,No
Http://opendatacommunities.org/id/metropolitan-district-council/leeds,Leeds City Council,28/02/2017,Childrens Services,Learning Skills & Universal,Third Party Payments,Services Rendered By Other Organisations,511,17-Feb-2017,1702-00028,0.00,24.33,R,A Foley,No
Http://opendatacommunities.org/id/metropolitan-district-council/leeds,Leeds City Council,28/02/2017,Childrens Services,Learning Skills & Universal,Third Party Payments,Services Rendered By Other Organisations,511,17-Feb-2017,1702-00029,0.00,10.67,R,A Hayes,No
Http://opendatacommunities.org/id/metropolitan-district-council/leeds,Leeds City Council,28/02/2017,City Development,Libraries  Arts & Heritage,Supplies and Services,Other Hired And Contracted Services,265,16-Feb-2017,1702-00030,0.00,300.00,R,Redacted for commercial confidentiality ,No
Http://opendatacommunities.org/id/metropolitan-district-council/leeds,Leeds City Council,28/02/2017,Environment & Housing,Leeds Building Services,Supplies and Services,Operational Materials,205,06-Feb-2017,1702-00031,0.00,180.00,R,A J H  Pump Supply & Repair Ltd,No
Http://opendatacommunities.org/id/metropolitan-district-council/leeds,Leeds City Council,28/02/2017,Environment & Housing,Leeds Building Services,Supplies and Services,Operational Materials,205,06-Feb-2017,1702-00032,0.00,274.00,R,A J H  Pump Supply & Repair Ltd,No
Http://opendatacommunities.org/id/metropolitan-district-council/leeds,Leeds City Council,28/02/2017,Environment & Housing,Leeds Building Services,Supplies and Services,Other Hired And Contracted Services,265,06-Feb-2017,1702-00033,0.00,804.00,R,A J H  Pump Supply & Repair Ltd,No
Http://opendatacommunities.org/id/metropolitan-district-council/leeds,Leeds City Council,28/02/2017,Environment & Housing,Leeds Building Services,Supplies and Services,Operational Materials,205,06-Feb-2017,1702-00034,0.00,149.05,R,A J H  Pump Supply & Repair Ltd,No
Http://opendatacommunities.org/id/metropolitan-district-council/leeds,Leeds City Council,28/02/2017,Environment & Housing,Leeds Building Services,Supplies and Services,Operational Materials,205,06-Feb-2017,1702-00035,0.00,86.41,R,A J H  Pump Supply & Repair Ltd,No
Http://opendatacommunities.org/id/metropolitan-district-council/leeds,Leeds City Council,28/02/2017,Environment & Housing,Leeds Building Services,Supplies and Services,Operational Materials,205,06-Feb-2017,1702-00036,0.00,218.00,R,A J H  Pump Supply & Repair Ltd,No
Http://opendatacommunities.org/id/metropolitan-district-council/leeds,Leeds City Council,28/02/2017,Environment & Housing,Leeds Building Services,Supplies and Services,Operational Materials,205,06-Feb-2017,1702-00037,0.00,15.90,R,A J H  Pump Supply & Repair Ltd,No
Http://opendatacommunities.org/id/metropolitan-district-council/leeds,Leeds City Council,28/02/2017,Environment & Housing,Leeds Building Services,Supplies and Services,Operational Materials,205,06-Feb-2017,1702-00038,0.00,218.00,R,A J H  Pump Supply & Repair Ltd,No
Http://opendatacommunities.org/id/metropolitan-district-council/leeds,Leeds City Council,28/02/2017,Environment & Housing,Leeds Building Services,Supplies and Services,Operational Materials,205,06-Feb-2017,1702-00039,0.00,37.50,R,A J H  Pump Supply & Repair Ltd,No
Http://opendatacommunities.org/id/metropolitan-district-council/leeds,Leeds City Council,28/02/2017,Environment & Housing,Leeds Building Services,Supplies and Services,Operational Materials,205,06-Feb-2017,1702-00040,0.00,88.26,R,A J H  Pump Supply & Repair Ltd,No
Http://opendatacommunities.org/id/metropolitan-district-council/leeds,Leeds City Council,28/02/2017,Environment & Housing,Leeds Building Services,Supplies and Services,Operational Materials,205,06-Feb-2017,1702-00041,0.00,124.31,R,A J H  Pump Supply & Repair Ltd,No
Http://opendatacommunities.org/id/metropolitan-district-council/leeds,Leeds City Council,28/02/2017,Environment & Housing,Leeds Building Services,Supplies and Services,Operational Materials,205,06-Feb-2017,1702-00042,0.00,9.90,R,A J H  Pump Supply & Repair Ltd,No
Http://opendatacommunities.org/id/metropolitan-district-council/leeds,Leeds City Council,28/02/2017,Environment & Housing,Leeds Building Services,Supplies and Services,Operational Materials,205,06-Feb-2017,1702-00043,0.00,312.34,R,A J H  Pump Supply & Repair Ltd,No
Http://opendatacommunities.org/id/metropolitan-district-council/leeds,Leeds City Council,28/02/2017,Environment & Housing,Leeds Building Services,Supplies and Services,Operational Materials,205,06-Feb-2017,1702-00044,0.00,243.16,R,A J H  Pump Supply & Repair Ltd,No
Http://opendatacommunities.org/id/metropolitan-district-council/leeds,Leeds City Council,28/02/2017,Environment & Housing,Leeds Building Services,Supplies and Services,Operational Materials,205,06-Feb-2017,1702-00045,0.00,226.31,R,A J H  Pump Supply & Repair Ltd,No
Http://opendatacommunities.org/id/metropolitan-district-council/leeds,Leeds City Council,28/02/2017,Environment & Housing,Leeds Building Services,Supplies and Services,Operational Materials,205,06-Feb-2017,1702-00046,0.00,183.08,R,A J H  Pump Supply & Repair Ltd,No
Http://opendatacommunities.org/id/metropolitan-district-council/leeds,Leeds City Council,28/02/2017,Environment & Housing,Leeds Building Services,Supplies and Services,Operational Materials,205,06-Feb-2017,1702-00047,0.00,109.36,R,A J H  Pump Supply & Repair Ltd,No
Http://opendatacommunities.org/id/metropolitan-district-council/leeds,Leeds City Council,28/02/2017,Environment & Housing,Leeds Building Services,Supplies and Services,Operational Materials,205,06-Feb-2017,1702-00048,0.00,238.02,R,A J H  Pump Supply & Repair Ltd,No
Http://opendatacommunities.org/id/metropolitan-district-council/leeds,Leeds City Council,28/02/2017,Environment & Housing,Leeds Building Services,Supplies and Services,Operational Materials,205,06-Feb-2017,1702-00049,0.00,138.35,R,A J H  Pump Supply & Repair Ltd,No
Http://opendatacommunities.org/id/metropolitan-district-council/leeds,Leeds City Council,28/02/2017,Environment & Housing,Leeds Building Services,Supplies and Services,Operational Materials,205,06-Feb-2017,1702-00050,0.00,224.29,R,A J H  Pump Supply & Repair Ltd,No
Http://opendatacommunities.org/id/metropolitan-district-council/leeds,Leeds City Council,28/02/2017,Environment & Housing,Leeds Building Services,Supplies and Services,Operational Materials,205,06-Feb-2017,1702-00051,0.00,396.00,R,A J H  Pump Supply & Repair Ltd,No
Http://opendatacommunities.org/id/metropolitan-district-council/leeds,Leeds City Council,28/02/2017,Environment & Housing,Leeds Building Services,Supplies and Services,Operational Materials,205,06-Feb-2017,1702-00052,0.00,131.20,R,A J H  Pump Supply & Repair Ltd,No
Http://opendatacommunities.org/id/metropolitan-district-council/leeds,Leeds City Council,28/02/2017,Environment & Housing,Leeds Building Services,Supplies and Services,Operational Materials,205,06-Feb-2017,1702-00053,0.00,18.36,R,A J H  Pump Supply & Repair Ltd,No
Http://opendatacommunities.org/id/metropolitan-district-council/leeds,Leeds City Council,28/02/2017,Environment & Housing,Leeds Building Services,Supplies and Services,Operational Materials,205,06-Feb-2017,1702-00054,0.00,42.48,R,A J H  Pump Supply & Repair Ltd,No
Http://opendatacommunities.org/id/metropolitan-district-council/leeds,Leeds City Council,28/02/2017,Environment & Housing,Leeds Building Services,Supplies and Services,Operational Materials,205,06-Feb-2017,1702-00055,0.00,269.50,R,A J H  Pump Supply & Repair Ltd,No
Http://opendatacommunities.org/id/metropolitan-district-council/leeds,Leeds City Council,28/02/2017,Environment & Housing,Leeds Building Services,Supplies and Services,Operational Materials,205,06-Feb-2017,1702-00056,0.00,28.50,R,A J H  Pump Supply & Repair Ltd,No
Http://opendatacommunities.org/id/metropolitan-district-council/leeds,Leeds City Council,28/02/2017,Environment & Housing,Leeds Building Services,Supplies and Services,Operational Materials,205,06-Feb-2017,1702-00057,0.00,89.97,R,A J H  Pump Supply & Repair Ltd,No
Http://opendatacommunities.org/id/metropolitan-district-council/leeds,Leeds City Council,28/02/2017,Environment & Housing,Leeds Building Services,Supplies and Services,Operational Materials,205,06-Feb-2017,1702-00058,0.00,110.10,R,A J H  Pump Supply & Repair Ltd,No
Http://opendatacommunities.org/id/metropolitan-district-council/leeds,Leeds City Council,28/02/2017,Environment & Housing,Leeds Building Services,Supplies and Services,Operational Materials,205,06-Feb-2017,1702-00059,0.00,82.00,R,A J H  Pump Supply & Repair Ltd,No
Http://opendatacommunities.org/id/metropolitan-district-council/leeds,Leeds City Council,28/02/2017,Environment & Housing,Leeds Building Services,Supplies and Services,Operational Materials,205,06-Feb-2017,1702-00060,0.00,73.20,R,A J H  Pump Supply & Repair Ltd,No
Http://opendatacommunities.org/id/metropolitan-district-council/leeds,Leeds City Council,28/02/2017,Environment & Housing,Leeds Building Services,Supplies and Services,Operational Materials,205,06-Feb-2017,1702-00061,0.00,258.15,R,A J H  Pump Supply & Repair Ltd,No
Http://opendatacommunities.org/id/metropolitan-district-council/leeds,Leeds City Council,28/02/2017,Environment & Housing,Leeds Building Services,Supplies and Services,Operational Materials,205,06-Feb-2017,1702-00062,0.00,63.10,R,A J H  Pump Supply & Repair Ltd,No
Http://opendatacommunities.org/id/metropolitan-district-council/leeds,Leeds City Council,28/02/2017,Environment & Housing,Leeds Building Services,Supplies and Services,Operational Materials,205,06-Feb-2017,1702-00063,0.00,39.75,R,A J H  Pump Supply & Repair Ltd,No
Http://opendatacommunities.org/id/metropolitan-district-council/leeds,Leeds City Council,28/02/2017,Environment & Housing,Leeds Building Services,Supplies and Services,Operational Materials,205,06-Feb-2017,1702-00064,0.00,255.08,R,A J H  Pump Supply & Repair Ltd,No
Http://opendatacommunities.org/id/metropolitan-district-council/leeds,Leeds City Council,28/02/2017,Environment & Housing,Leeds Building Services,Supplies and Services,Operational Materials,205,06-Feb-2017,1702-00065,0.00,169.10,R,A J H  Pump Supply & Repair Ltd,No
Http://opendatacommunities.org/id/metropolitan-district-council/leeds,Leeds City Council,28/02/2017,Environment & Housing,Leeds Building Services,Supplies and Services,Operational Materials,205,06-Feb-2017,1702-00066,0.00,108.07,R,A J H  Pump Supply & Repair Ltd,No
Http://opendatacommunities.org/id/metropolitan-district-council/leeds,Leeds City Council,28/02/2017,Environment & Housing,Leeds Building Services,Supplies and Services,Operational Materials,205,06-Feb-2017,1702-00067,0.00,305.00,R,A J H  Pump Supply & Repair Ltd,No
Http://opendatacommunities.org/id/metropolitan-district-council/leeds,Leeds City Council,28/02/2017,Environment & Housing,Leeds Building Services,Supplies and Services,Operational Materials,205,06-Feb-2017,1702-00068,0.00,131.75,R,A J H  Pump Supply & Repair Ltd,No
Http://opendatacommunities.org/id/metropolitan-district-council/leeds,Leeds City Council,28/02/2017,Environment & Housing,Leeds Building Services,Supplies and Services,Operational Materials,205,07-Feb-2017,1702-00069,0.00,39.95,R,A J H  Pump Supply & Repair Ltd,No
Http://opendatacommunities.org/id/metropolitan-district-council/leeds,Leeds City Council,28/02/2017,Environment & Housing,Leeds Building Services,Supplies and Services,Operational Materials,205,10-Feb-2017,1702-00070,0.00,45.15,R,A J H  Pump Supply & Repair Ltd,No
Http://opendatacommunities.org/id/metropolitan-district-council/leeds,Leeds City Council,28/02/2017,Environment & Housing,Leeds Building Services,Supplies and Services,Operational Materials,205,10-Feb-2017,1702-00071,0.00,54.81,R,A J H  Pump Supply & Repair Ltd,No
Http://opendatacommunities.org/id/metropolitan-district-council/leeds,Leeds City Council,28/02/2017,Environment & Housing,Leeds Building Services,Supplies and Services,Operational Materials,205,10-Feb-2017,1702-00072,0.00,893.54,R,A J H  Pump Supply & Repair Ltd,No
Http://opendatacommunities.org/id/metropolitan-district-council/leeds,Leeds City Council,28/02/2017,Environment & Housing,Leeds Building Services,Supplies and Services,Operational Materials,205,10-Feb-2017,1702-00073,0.00,35.61,R,A J H  Pump Supply & Repair Ltd,No
Http://opendatacommunities.org/id/metropolitan-district-council/leeds,Leeds City Council,28/02/2017,Environment & Housing,Leeds Building Services,Supplies and Services,Operational Materials,205,10-Feb-2017,1702-00074,0.00,650.00,R,A J H  Pump Supply & Repair Ltd,No
Http://opendatacommunities.org/id/metropolitan-district-council/leeds,Leeds City Council,28/02/2017,Environment & Housing,Leeds Building Services,Supplies and Services,Operational Materials,205,10-Feb-2017,1702-00075,0.00,332.91,R,A J H  Pump Supply & Repair Ltd,No
Http://opendatacommunities.org/id/metropolitan-district-council/leeds,Leeds City Council,28/02/2017,Environment & Housing,Leeds Building Services,Supplies and Services,Operational Materials,205,14-Feb-2017,1702-00076,0.00,35.00,R,A J H  Pump Supply & Repair Ltd,No
Http://opendatacommunities.org/id/metropolitan-district-council/leeds,Leeds City Council,28/02/2017,Environment & Housing,Leeds Building Services,Supplies and Services,Operational Materials,205,14-Feb-2017,1702-00077,0.00,65.85,R,A J H  Pump Supply & Repair Ltd,No
Http://opendatacommunities.org/id/metropolitan-district-council/leeds,Leeds City Council,28/02/2017,Environment & Housing,Leeds Building Services,Supplies and Services,Operational Materials,205,14-Feb-2017,1702-00078,0.00,96.00,R,A J H  Pump Supply & Repair Ltd,No
Http://opendatacommunities.org/id/metropolitan-district-council/leeds,Leeds City Council,28/02/2017,Environment & Housing,Leeds Building Services,Supplies and Services,Operational Materials,205,14-Feb-2017,1702-00079,0.00,12.85,R,A J H  Pump Supply & Repair Ltd,No
Http://opendatacommunities.org/id/metropolitan-district-council/leeds,Leeds City Council,28/02/2017,Environment & Housing,Leeds Building Services,Supplies and Services,Operational Materials,205,14-Feb-2017,1702-00080,0.00,417.00,R,A J H  Pump Supply & Repair Ltd,No
Http://opendatacommunities.org/id/metropolitan-district-council/leeds,Leeds City Council,28/02/2017,Environment & Housing,Leeds Building Services,Supplies and Services,Operational Materials,205,14-Feb-2017,1702-00081,0.00,324.55,R,A J H  Pump Supply & Repair Ltd,No
Http://opendatacommunities.org/id/metropolitan-district-council/leeds,Leeds City Council,28/02/2017,Environment & Housing,Leeds Building Services,Supplies and Services,Operational Materials,205,14-Feb-2017,1702-00082,0.00,765.00,R,A J H  Pump Supply & Repair Ltd,No
Http://opendatacommunities.org/id/metropolitan-district-council/leeds,Leeds City Council,28/02/2017,Environment & Housing,Leeds Building Services,Supplies and Services,Operational Materials,205,14-Feb-2017,1702-00083,0.00,50.86,R,A J H  Pump Supply & Repair Ltd,No
Http://opendatacommunities.org/id/metropolitan-district-council/leeds,Leeds City Council,28/02/2017,Environment & Housing,Leeds Building Services,Supplies and Services,Operational Materials,205,14-Feb-2017,1702-00084,0.00,76.45,R,A J H  Pump Supply & Repair Ltd,No
Http://opendatacommunities.org/id/metropolitan-district-council/leeds,Leeds City Council,28/02/2017,Environment & Housing,Leeds Building Services,Supplies and Services,Operational Materials,205,14-Feb-2017,1702-00085,0.00,308.49,R,A J H  Pump Supply & Repair Ltd,No
Http://opendatacommunities.org/id/metropolitan-district-council/leeds,Leeds City Council,28/02/2017,Environment & Housing,Leeds Building Services,Supplies and Services,Operational Materials,205,14-Feb-2017,1702-00086,0.00,138.96,R,A J H  Pump Supply & Repair Ltd,No
Http://opendatacommunities.org/id/metropolitan-district-council/leeds,Leeds City Council,28/02/2017,Environment & Housing,Leeds Building Services,Supplies and Services,Operational Materials,205,14-Feb-2017,1702-00087,0.00,86.11,R,A J H  Pump Supply & Repair Ltd,No
Http://opendatacommunities.org/id/metropolitan-district-council/leeds,Leeds City Council,28/02/2017,Environment & Housing,Leeds Building Services,Supplies and Services,Operational Materials,205,14-Feb-2017,1702-00088,0.00,69.00,R,A J H  Pump Supply & Repair Ltd,No
Http://opendatacommunities.org/id/metropolitan-district-council/leeds,Leeds City Council,28/02/2017,Environment & Housing,Leeds Building Services,Supplies and Services,Operational Materials,205,14-Feb-2017,1702-00089,0.00,32.71,R,A J H  Pump Supply & Repair Ltd,No
Http://opendatacommunities.org/id/metropolitan-district-council/leeds,Leeds City Council,28/02/2017,Environment & Housing,Leeds Building Services,Supplies and Services,Operational Materials,205,14-Feb-2017,1702-00090,0.00,135.37,R,A J H  Pump Supply & Repair Ltd,No
Http://opendatacommunities.org/id/metropolitan-district-council/leeds,Leeds City Council,28/02/2017,Environment & Housing,Leeds Building Services,Supplies and Services,Operational Materials,205,14-Feb-2017,1702-00091,0.00,68.54,R,A J H  Pump Supply & Repair Ltd,No
Http://opendatacommunities.org/id/metropolitan-district-council/leeds,Leeds City Council,28/02/2017,Environment & Housing,Leeds Building Services,Supplies and Services,Operational Materials,205,14-Feb-2017,1702-00092,0.00,175.95,R,A J H  Pump Supply & Repair Ltd,No
Http://opendatacommunities.org/id/metropolitan-district-council/leeds,Leeds City Council,28/02/2017,Environment & Housing,Leeds Building Services,Supplies and Services,Operational Materials,205,14-Feb-2017,1702-00093,0.00,820.00,R,A J H  Pump Supply & Repair Ltd,No
Http://opendatacommunities.org/id/metropolitan-district-council/leeds,Leeds City Council,28/02/2017,Environment & Housing,Leeds Building Services,Supplies and Services,Operational Materials,205,14-Feb-2017,1702-00094,0.00,68.00,R,A J H  Pump Supply & Repair Ltd,No
Http://opendatacommunities.org/id/metropolitan-district-council/leeds,Leeds City Council,28/02/2017,Environment & Housing,Leeds Building Services,Supplies and Services,Operational Materials,205,17-Feb-2017,1702-00095,0.00,-2.55,R,A J H  Pump Supply & Repair Ltd,No
Http://opendatacommunities.org/id/metropolitan-district-council/leeds,Leeds City Council,28/02/2017,Environment & Housing,Leeds Building Services,Supplies and Services,Operational Materials,205,17-Feb-2017,1702-00096,0.00,117.11,R,A J H  Pump Supply & Repair Ltd,No
Http://opendatacommunities.org/id/metropolitan-district-council/leeds,Leeds City Council,28/02/2017,Environment & Housing,Leeds Building Services,Supplies and Services,Operational Materials,205,17-Feb-2017,1702-00097,0.00,138.96,R,A J H  Pump Supply & Repair Ltd,No
Http://opendatacommunities.org/id/metropolitan-district-council/leeds,Leeds City Council,28/02/2017,Environment & Housing,Leeds Building Services,Supplies and Services,Operational Materials,205,17-Feb-2017,1702-00098,0.00,207.00,R,A J H  Pump Supply & Repair Ltd,No
Http://opendatacommunities.org/id/metropolitan-district-council/leeds,Leeds City Council,28/02/2017,Environment & Housing,Leeds Building Services,Supplies and Services,Operational Materials,205,17-Feb-2017,1702-00099,0.00,330.00,R,A J H  Pump Supply & Repair Ltd,No
Http://opendatacommunities.org/id/metropolitan-district-council/leeds,Leeds City Council,28/02/2017,Environment & Housing,Leeds Building Services,Supplies and Services,Operational Materials,205,17-Feb-2017,1702-00100,0.00,124.60,R,A J H  Pump Supply & Repair Ltd,No
Http://opendatacommunities.org/id/metropolitan-district-council/leeds,Leeds City Council,28/02/2017,Environment & Housing,Leeds Building Services,Supplies and Services,Operational Materials,205,17-Feb-2017,1702-00101,0.00,78.95,R,A J H  Pump Supply & Repair Ltd,No
Http://opendatacommunities.org/id/metropolitan-district-council/leeds,Leeds City Council,28/02/2017,Environment & Housing,Leeds Building Services,Supplies and Services,Operational Materials,205,17-Feb-2017,1702-00102,0.00,57.36,R,A J H  Pump Supply & Repair Ltd,No
Http://opendatacommunities.org/id/metropolitan-district-council/leeds,Leeds City Council,28/02/2017,Environment & Housing,Leeds Building Services,Supplies and Services,Operational Materials,205,17-Feb-2017,1702-00103,0.00,57.00,R,A J H  Pump Supply & Repair Ltd,No
Http://opendatacommunities.org/id/metropolitan-district-council/leeds,Leeds City Council,28/02/2017,Environment & Housing,Leeds Building Services,Supplies and Services,Operational Materials,205,17-Feb-2017,1702-00104,0.00,138.45,R,A J H  Pump Supply & Repair Ltd,No
Http://opendatacommunities.org/id/metropolitan-district-council/leeds,Leeds City Council,28/02/2017,Environment & Housing,Leeds Building Services,Supplies and Services,Operational Materials,205,17-Feb-2017,1702-00105,0.00,261.25,R,A J H  Pump Supply & Repair Ltd,No
Http://opendatacommunities.org/id/metropolitan-district-council/leeds,Leeds City Council,28/02/2017,Environment & Housing,Leeds Building Services,Supplies and Services,Operational Materials,205,17-Feb-2017,1702-00106,0.00,145.05,R,A J H  Pump Supply & Repair Ltd,No
Http://opendatacommunities.org/id/metropolitan-district-council/leeds,Leeds City Council,28/02/2017,Environment & Housing,Leeds Building Services,Supplies and Services,Operational Materials,205,17-Feb-2017,1702-00107,0.00,176.48,R,A J H  Pump Supply & Repair Ltd,No
Http://opendatacommunities.org/id/metropolitan-district-council/leeds,Leeds City Council,28/02/2017,Environment & Housing,Leeds Building Services,Supplies and Services,Operational Materials,205,17-Feb-2017,1702-00108,0.00,230.00,R,A J H  Pump Supply & Repair Ltd,No
Http://opendatacommunities.org/id/metropolitan-district-council/leeds,Leeds City Council,28/02/2017,Environment & Housing,Leeds Building Services,Supplies and Services,Operational Materials,205,17-Feb-2017,1702-00109,0.00,397.96,R,A J H  Pump Supply & Repair Ltd,No
Http://opendatacommunities.org/id/metropolitan-district-council/leeds,Leeds City Council,28/02/2017,Environment & Housing,Leeds Building Services,Supplies and Services,Operational Materials,205,17-Feb-2017,1702-00110,0.00,52.50,R,A J H  Pump Supply & Repair Ltd,No
Http://opendatacommunities.org/id/metropolitan-district-council/leeds,Leeds City Council,28/02/2017,Environment & Housing,Leeds Building Services,Supplies and Services,Operational Materials,205,17-Feb-2017,1702-00111,0.00,145.00,R,A J H  Pump Supply & Repair Ltd,No
Http://opendatacommunities.org/id/metropolitan-district-council/leeds,Leeds City Council,28/02/2017,Environment & Housing,Leeds Building Services,Supplies and Services,Operational Materials,205,17-Feb-2017,1702-00112,0.00,31.80,R,A J H  Pump Supply & Repair Ltd,No
Http://opendatacommunities.org/id/metropolitan-district-council/leeds,Leeds City Council,28/02/2017,Environment & Housing,Leeds Building Services,Supplies and Services,Operational Materials,205,17-Feb-2017,1702-00113,0.00,176.50,R,A J H  Pump Supply & Repair Ltd,No
Http://opendatacommunities.org/id/metropolitan-district-council/leeds,Leeds City Council,28/02/2017,Environment & Housing,Leeds Building Services,Supplies and Services,Operational Materials,205,17-Feb-2017,1702-00114,0.00,79.50,R,A J H  Pump Supply & Repair Ltd,No
Http://opendatacommunities.org/id/metropolitan-district-council/leeds,Leeds City Council,28/02/2017,Environment & Housing,Leeds Building Services,Supplies and Services,Operational Materials,205,17-Feb-2017,1702-00115,0.00,73.20,R,A J H  Pump Supply & Repair Ltd,No
Http://opendatacommunities.org/id/metropolitan-district-council/leeds,Leeds City Council,28/02/2017,Environment & Housing,Leeds Building Services,Supplies and Services,Operational Materials,205,17-Feb-2017,1702-00116,0.00,340.00,R,A J H  Pump Supply & Repair Ltd,No
Http://opendatacommunities.org/id/metropolitan-district-council/leeds,Leeds City Council,28/02/2017,Environment & Housing,Leeds Building Services,Supplies and Services,Operational Materials,205,17-Feb-2017,1702-00117,0.00,13.26,R,A J H  Pump Supply & Repair Ltd,No
Http://opendatacommunities.org/id/metropolitan-district-council/leeds,Leeds City Council,28/02/2017,Environment & Housing,Leeds Building Services,Supplies and Services,Operational Materials,205,17-Feb-2017,1702-00118,0.00,54.30,R,A J H  Pump Supply & Repair Ltd,No
Http://opendatacommunities.org/id/metropolitan-district-council/leeds,Leeds City Council,28/02/2017,Environment & Housing,Leeds Building Services,Supplies and Services,Operational Materials,205,24-Feb-2017,1702-00119,0.00,85.60,R,A J H  Pump Supply & Repair Ltd,No
Http://opendatacommunities.org/id/metropolitan-district-council/leeds,Leeds City Council,28/02/2017,Environment & Housing,Leeds Building Services,Supplies and Services,Operational Materials,205,24-Feb-2017,1702-00120,0.00,151.66,R,A J H  Pump Supply & Repair Ltd,No
Http://opendatacommunities.org/id/metropolitan-district-council/leeds,Leeds City Council,28/02/2017,Environment & Housing,Leeds Building Services,Supplies and Services,Operational Materials,205,24-Feb-2017,1702-00121,0.00,309.90,R,A J H  Pump Supply & Repair Ltd,No
Http://opendatacommunities.org/id/metropolitan-district-council/leeds,Leeds City Council,28/02/2017,Environment & Housing,Leeds Building Services,Supplies and Services,Operational Materials,205,24-Feb-2017,1702-00122,0.00,278.00,R,A J H  Pump Supply & Repair Ltd,No
Http://opendatacommunities.org/id/metropolitan-district-council/leeds,Leeds City Council,28/02/2017,Environment & Housing,Leeds Building Services,Supplies and Services,Operational Materials,205,24-Feb-2017,1702-00123,0.00,282.91,R,A J H  Pump Supply & Repair Ltd,No
Http://opendatacommunities.org/id/metropolitan-district-council/leeds,Leeds City Council,28/02/2017,Environment & Housing,Leeds Building Services,Supplies and Services,Operational Materials,205,24-Feb-2017,1702-00124,0.00,54.45,R,A J H  Pump Supply & Repair Ltd,No
Http://opendatacommunities.org/id/metropolitan-district-council/leeds,Leeds City Council,28/02/2017,Environment & Housing,Leeds Building Services,Supplies and Services,Operational Materials,205,24-Feb-2017,1702-00125,0.00,50.96,R,A J H  Pump Supply & Repair Ltd,No
Http://opendatacommunities.org/id/metropolitan-district-council/leeds,Leeds City Council,28/02/2017,Environment & Housing,Leeds Building Services,Supplies and Services,Operational Materials,205,24-Feb-2017,1702-00126,0.00,38.50,R,A J H  Pump Supply & Repair Ltd,No
Http://opendatacommunities.org/id/metropolitan-district-council/leeds,Leeds City Council,28/02/2017,Environment & Housing,Leeds Building Services,Supplies and Services,Operational Materials,205,24-Feb-2017,1702-00127,0.00,116.00,R,A J H  Pump Supply & Repair Ltd,No
Http://opendatacommunities.org/id/metropolitan-district-council/leeds,Leeds City Council,28/02/2017,Environment & Housing,Leeds Building Services,Supplies and Services,Operational Materials,205,24-Feb-2017,1702-00128,0.00,58.00,R,A J H  Pump Supply & Repair Ltd,No
Http://opendatacommunities.org/id/metropolitan-district-council/leeds,Leeds City Council,28/02/2017,Environment & Housing,Leeds Building Services,Supplies and Services,Operational Materials,205,24-Feb-2017,1702-00129,0.00,98.48,R,A J H  Pump Supply & Repair Ltd,No
Http://opendatacommunities.org/id/metropolitan-district-council/leeds,Leeds City Council,28/02/2017,Environment & Housing,Leeds Building Services,Supplies and Services,Operational Materials,205,24-Feb-2017,1702-00130,0.00,20.21,R,A J H  Pump Supply & Repair Ltd,No
Http://opendatacommunities.org/id/metropolitan-district-council/leeds,Leeds City Council,28/02/2017,Environment & Housing,Leeds Building Services,Supplies and Services,Operational Materials,205,24-Feb-2017,1702-00131,0.00,58.68,R,A J H  Pump Supply & Repair Ltd,No
Http://opendatacommunities.org/id/metropolitan-district-council/leeds,Leeds City Council,28/02/2017,Environment & Housing,Leeds Building Services,Supplies and Services,Operational Materials,205,24-Feb-2017,1702-00132,0.00,124.60,R,A J H  Pump Supply & Repair Ltd,No
Http://opendatacommunities.org/id/metropolitan-district-council/leeds,Leeds City Council,28/02/2017,Environment & Housing,Leeds Building Services,Supplies and Services,Operational Materials,205,24-Feb-2017,1702-00133,0.00,330.00,R,A J H  Pump Supply & Repair Ltd,No
Http://opendatacommunities.org/id/metropolitan-district-council/leeds,Leeds City Council,28/02/2017,Environment & Housing,Leeds Building Services,Supplies and Services,Operational Materials,205,24-Feb-2017,1702-00134,0.00,361.30,R,A J H  Pump Supply & Repair Ltd,No
Http://opendatacommunities.org/id/metropolitan-district-council/leeds,Leeds City Council,28/02/2017,Environment & Housing,Leeds Building Services,Supplies and Services,Operational Materials,205,24-Feb-2017,1702-00135,0.00,33.59,R,A J H  Pump Supply & Repair Ltd,No
Http://opendatacommunities.org/id/metropolitan-district-council/leeds,Leeds City Council,28/02/2017,Environment & Housing,Leeds Building Services,Supplies and Services,Operational Materials,205,24-Feb-2017,1702-00136,0.00,21.25,R,A J H  Pump Supply & Repair Ltd,No
Http://opendatacommunities.org/id/metropolitan-district-council/leeds,Leeds City Council,28/02/2017,Environment & Housing,Leeds Building Services,Supplies and Services,Operational Materials,205,24-Feb-2017,1702-00137,0.00,28.92,R,A J H  Pump Supply & Repair Ltd,No
Http://opendatacommunities.org/id/metropolitan-district-council/leeds,Leeds City Council,28/02/2017,Environment & Housing,Leeds Building Services,Supplies and Services,Operational Furniture And Equipment,203,24-Feb-2017,1702-00138,0.00,125.00,R,A J H  Pump Supply & Repair Ltd,No
Http://opendatacommunities.org/id/metropolitan-district-council/leeds,Leeds City Council,28/02/2017,Environment & Housing,Leeds Building Services,Supplies and Services,Operational Materials,205,24-Feb-2017,1702-00139,0.00,33.45,R,A J H  Pump Supply & Repair Ltd,No
Http://opendatacommunities.org/id/metropolitan-district-council/leeds,Leeds City Council,28/02/2017,Environment & Housing,Leeds Building Services,Supplies and Services,Operational Materials,205,24-Feb-2017,1702-00140,0.00,202.50,R,A J H  Pump Supply & Repair Ltd,No
Http://opendatacommunities.org/id/metropolitan-district-council/leeds,Leeds City Council,28/02/2017,Citizens and Communities,Customer Access,Supplies and Services,Resaleable Materials,204,22-Feb-2017,1702-00141,0.00,107.88,R,A J Promotions,No
Http://opendatacommunities.org/id/metropolitan-district-council/leeds,Leeds City Council,28/02/2017,Childrens Services,Learning Skills & Universal,Third Party Payments,Services Rendered By Other Organisations,511,17-Feb-2017,1702-00142,0.00,24.67,R,A K Walsh,No
Http://opendatacommunities.org/id/metropolitan-district-council/leeds,Leeds City Council,28/02/2017,Public Health,Public Health,Third Party Payments,Public Health Commissioned Services,526,27-Feb-2017,1702-00143,0.00,468.00,R,A Khan & K Muneer,No
Http://opendatacommunities.org/id/metropolitan-district-council/leeds,Leeds City Council,28/02/2017,Citizens and Communities,Customer Access,Supplies and Services,Other Hired And Contracted Services,265,10-Feb-2017,1702-00144,0.00,300.00,R,A M  Whalley,No
Http://opendatacommunities.org/id/metropolitan-district-council/leeds,Leeds City Council,28/02/2017,Citizens and Communities,Customer Access,Supplies and Services,Other Hired And Contracted Services,265,02-Feb-2017,1702-00145,0.00,522.45,R,A Mohammed,No
Http://opendatacommunities.org/id/metropolitan-district-council/leeds,Leeds City Council,28/02/2017,Citizens and Communities,Customer Access,Supplies and Services,Other Hired And Contracted Services,265,02-Feb-2017,1702-00146,0.00,130.75,R,A Mohammed,No
Http://opendatacommunities.org/id/metropolitan-district-council/leeds,Leeds City Council,28/02/2017,Citizens and Communities,Customer Access,Supplies and Services,Other Hired And Contracted Services,265,02-Feb-2017,1702-00147,0.00,38.25,R,A Musalam,No
Http://opendatacommunities.org/id/metropolitan-district-council/leeds,Leeds City Council,28/02/2017,Citizens and Communities,Customer Access,Supplies and Services,Other Hired And Contracted Services,265,02-Feb-2017,1702-00148,0.00,184.75,R,A Namaki,No
Http://opendatacommunities.org/id/metropolitan-district-council/leeds,Leeds City Council,28/02/2017,Environment & Housing,Parks and Countryside,Supplies and Services,Operational Materials,205,24-Feb-2017,1702-00149,0.00,679.50,R,A Newton,No
Http://opendatacommunities.org/id/metropolitan-district-council/leeds,Leeds City Council,28/02/2017,Public Health,Public Health,Third Party Payments,Public Health Commissioned Services,526,08-Feb-2017,1702-00150,0.00,3718.90,R,A P Health,No
Http://opendatacommunities.org/id/metropolitan-district-council/leeds,Leeds City Council,28/02/2017,Public Health,Public Health,Third Party Payments,Public Health Commissioned Services,526,27-Feb-2017,1702-00151,0.00,4845.93,R,A Robinson & Partners,No
Http://opendatacommunities.org/id/metropolitan-district-council/leeds,Leeds City Council,28/02/2017,Citizens and Communities,Customer Access,Supplies and Services,Books & Audio-Visual Materials,206,10-Feb-2017,1702-00152,0.00,120.19,R,A S Jhagra,No
Http://opendatacommunities.org/id/metropolitan-district-council/leeds,Leeds City Council,28/02/2017,Civic Enterprise Leeds,Shared Services,Supplies and Services,Other Hired And Contracted Services,265,15-Feb-2017,1702-00153,0.00,46.25,R,A Star Couriers Ltd,No
Http://opendatacommunities.org/id/metropolitan-district-council/leeds,Leeds City Council,28/02/2017,City Development,Libraries  Arts & Heritage,Supplies and Services,Operational Furniture And Equipment,203,14-Feb-2017,1702-00154,0.00,3666.30,R,A V Parts Master Ltd,No
Http://opendatacommunities.org/id/metropolitan-district-council/leeds,Leeds City Council,28/02/2017,Childrens Services,Learning Skills & Universal,Third Party Payments,Services Rendered By Other Organisations,511,17-Feb-2017,1702-00155,0.00,75.67,R,A Walding,No
Http://opendatacommunities.org/id/metropolitan-district-council/leeds,Leeds City Council,28/02/2017,Environment & Housing,Environmental Health,Capital,Construction,3,09-Feb-2017,1702-00156,0.00,5161.29,C,A. R. Mclean Builders,No
Http://opendatacommunities.org/id/metropolitan-district-council/leeds,Leeds City Council,28/02/2017,Environment & Housing,Environmental Health,Capital,Construction,3,20-Feb-2017,1702-00157,0.00,12176.60,C,A1 Preservation,No
Http://opendatacommunities.org/id/metropolitan-district-council/leeds,Leeds City Council,28/02/2017,City Development,Libraries  Arts & Heritage ,Supplies and Services,Office Consumables,210,30-Jan-2017,1702-00158,,20.73,R,A2b Office Technol,Yes
Http://opendatacommunities.org/id/metropolitan-district-council/leeds,Leeds City Council,28/02/2017,City Development,Libraries  Arts & Heritage ,Supplies and Services,Office Consumables,210,30-Jan-2017,1702-00159,,44.34,R,A2b Office Technol,Yes
Http://opendatacommunities.org/id/metropolitan-district-council/leeds,Leeds City Council,28/02/2017,Citizens and Communities,Communities,Supplies and Services,Other Hired And Contracted Services,265,10-Feb-2017,1702-00160,0.00,99.00,R,Ab Print Group,No
Http://opendatacommunities.org/id/metropolitan-district-council/leeds,Leeds City Council,28/02/2017,Environment & Housing,Streetscene Environmental Services ,Supplies and Services,Postages,212,05-Jan-2017,1702-00161,,13.50,R,Abacus Express,Yes
Http://opendatacommunities.org/id/metropolitan-district-council/leeds,Leeds City Council,28/02/2017,Childrens Services,Safeguarding Targeted & Specialist,Support Services,Legal Disbursements,411,02-Feb-2017,1702-00162,0.00,15.59,R,Abacus Express Limited,No
Http://opendatacommunities.org/id/metropolitan-district-council/leeds,Leeds City Council as Accountable Body,28/02/2017,Central & Corporate,Legal Services,Supplies and Services,Genl Legal - Miscellaneous,733,06-Feb-2017,1702-00163,0.00,35.28,R,Abacus Express Limited,No
Http://opendatacommunities.org/id/metropolitan-district-council/leeds,Leeds City Council,28/02/2017,Childrens Services,Safeguarding Targeted & Specialist,Support Services,Legal Disbursements,411,06-Feb-2017,1702-00164,0.00,26.77,R,Abacus Express Limited,No
Http://opendatacommunities.org/id/metropolitan-district-council/leeds,Leeds City Council,28/02/2017,Childrens Services,Safeguarding Targeted & Specialist,Support Services,Legal Disbursements,411,08-Feb-2017,1702-00165,0.00,31.02,R,Abacus Express Limited,No
Http://opendatacommunities.org/id/metropolitan-district-council/leeds,Leeds City Council,28/02/2017,Childrens Services,Safeguarding Targeted & Specialist,Support Services,Legal Disbursements,411,08-Feb-2017,1702-00166,0.00,15.59,R,Abacus Express Limited,No
Http://opendatacommunities.org/id/metropolitan-district-council/leeds,Leeds City Council,28/02/2017,Childrens Services,Safeguarding Targeted & Specialist,Support Services,Legal Disbursements,411,09-Feb-2017,1702-00167,0.00,31.02,R,Abacus Express Limited,No
Http://opendatacommunities.org/id/metropolitan-district-council/leeds,Leeds City Council as Accountable Body,28/02/2017,Central & Corporate,Legal Services,Support Services,Squattr Pns - Counsels' Fees,411,09-Feb-2017,1702-00168,0.00,35.28,R,Abacus Express Limited,No
Http://opendatacommunities.org/id/metropolitan-district-council/leeds,Leeds City Council,28/02/2017,Childrens Services,Safeguarding Targeted & Specialist,Support Services,Legal Disbursements,411,22-Feb-2017,1702-00169,0.00,31.02,R,Abacus Express Limited,No
Http://opendatacommunities.org/id/metropolitan-district-council/leeds,Leeds City Council,28/02/2017,Childrens Services,Safeguarding Targeted & Specialist,Support Services,Legal Disbursements,411,22-Feb-2017,1702-00170,0.00,15.59,R,Abacus Express Limited,No
Http://opendatacommunities.org/id/metropolitan-district-council/leeds,Leeds City Council,28/02/2017,City Development,Planning & Sustainable Development,Supplies and Services,Subsistence,256,22-Feb-2017,1702-00171,0.00,19.89,R,Abacus Express Limited,No
Http://opendatacommunities.org/id/metropolitan-district-council/leeds,Leeds City Council,28/02/2017,Childrens Services,Safeguarding Targeted & Specialist,Support Services,Legal Disbursements,411,22-Feb-2017,1702-00172,0.00,15.59,R,Abacus Express Limited,No
Http://opendatacommunities.org/id/metropolitan-district-council/leeds,Leeds City Council,28/02/2017,City Development,Highways,Supplies and Services,Postages,212,22-Feb-2017,1702-00173,0.00,15.59,R,Abacus Express Limited,No
Http://opendatacommunities.org/id/metropolitan-district-council/leeds,Leeds City Council,28/02/2017,Childrens Services,Safeguarding Targeted & Specialist,Support Services,Legal Disbursements,411,23-Feb-2017,1702-00174,0.00,31.02,R,Abacus Express Limited,No
Http://opendatacommunities.org/id/metropolitan-district-council/leeds,Leeds City Council,28/02/2017,City Development,Planning & Sustainable Development,Support Services,Legal Disbursements,411,23-Feb-2017,1702-00175,0.00,20.43,R,Abacus Express Limited,No
Http://opendatacommunities.org/id/metropolitan-district-council/leeds,Leeds City Council,28/02/2017,Childrens Services,Safeguarding Targeted & Specialist,Support Services,Legal Disbursements,411,23-Feb-2017,1702-00176,0.00,15.59,R,Abacus Express Limited,No
Http://opendatacommunities.org/id/metropolitan-district-council/leeds,Leeds City Council,28/02/2017,Childrens Services,Safeguarding Targeted & Specialist,Support Services,Legal Disbursements,411,23-Feb-2017,1702-00177,0.00,15.59,R,Abacus Express Limited,No
Http://opendatacommunities.org/id/metropolitan-district-council/leeds,Leeds City Council,28/02/2017,Childrens Services,Safeguarding Targeted & Specialist,Support Services,Legal Disbursements,411,23-Feb-2017,1702-00178,0.00,15.59,R,Abacus Express Limited,No
Http://opendatacommunities.org/id/metropolitan-district-council/leeds,Leeds City Council,28/02/2017,Childrens Services,Safeguarding Targeted & Specialist,Support Services,Legal Disbursements,411,23-Feb-2017,1702-00179,0.00,16.66,R,Abacus Express Limited,No
Http://opendatacommunities.org/id/metropolitan-district-council/leeds,Leeds City Council,28/02/2017,Childrens Services,Safeguarding Targeted & Specialist,Support Services,Legal Disbursements,411,23-Feb-2017,1702-00180,0.00,15.59,R,Abacus Express Limited,No
Http://opendatacommunities.org/id/metropolitan-district-council/leeds,Leeds City Council,28/02/2017,Childrens Services,Safeguarding Targeted & Specialist,Support Services,Legal Disbursements,411,23-Feb-2017,1702-00181,0.00,23.11,R,Abacus Express Limited,No
Http://opendatacommunities.org/id/metropolitan-district-council/leeds,Leeds City Council,28/02/2017,Childrens Services,Safeguarding Targeted & Specialist,Support Services,Legal Disbursements,411,23-Feb-2017,1702-00182,0.00,15.59,R,Abacus Express Limited,No
Http://opendatacommunities.org/id/metropolitan-district-council/leeds,Leeds City Council,28/02/2017,Childrens Services,Safeguarding Targeted & Specialist,Support Services,Legal Disbursements,411,23-Feb-2017,1702-00183,0.00,22.04,R,Abacus Express Limited,No
Http://opendatacommunities.org/id/metropolitan-district-council/leeds,Leeds City Council,28/02/2017,Childrens Services,Safeguarding Targeted & Specialist,Support Services,Legal Disbursements,411,23-Feb-2017,1702-00184,0.00,15.59,R,Abacus Express Limited,No
Http://opendatacommunities.org/id/metropolitan-district-council/leeds,Leeds City Council,28/02/2017,Adult Social Care,Services For Older People - 65 And Over,Third Party Payments,Nursing Care Dementia,574,08-Feb-2017,1702-00185,0.00,1556.00,R,Abbendon Nursing Home,No
Http://opendatacommunities.org/id/metropolitan-district-council/leeds,Leeds City Council,28/02/2017,Public Health,Public Health,Third Party Payments,Public Health Commissioned Services,526,27-Feb-2017,1702-00186,0.00,3550.59,R,Abbey Grange Medical Practice,No
Http://opendatacommunities.org/id/metropolitan-district-council/leeds,Leeds City Council,28/02/2017,City Development,Libraries  Arts & Heritage ,Supplies and Services,Food & Drink,231,19-Jan-2017,1702-00187,,4.04,R,Abbey House Museum Caf,Yes
Http://opendatacommunities.org/id/metropolitan-district-council/leeds,Leeds City Council,28/02/2017,Environment & Housing,Environmental Action (South),Supplies and Services,Bought In Professional Services,277,20-Feb-2017,1702-00188,0.00,39.75,R,Abbey House Veterinary Hospital,No
Http://opendatacommunities.org/id/metropolitan-district-council/leeds,Leeds City Council,28/02/2017,Adult Social Care,Services For Older People - 65 And Over,Third Party Payments,Home Care,568,03-Feb-2017,1702-00189,0.00,1164.38,R,Abbeyfield The Dales Limited,No
Http://opendatacommunities.org/id/metropolitan-district-council/leeds,Leeds City Council,28/02/2017,Childrens Services,Learning Skills & Universal,Third Party Payments,Services Rendered By Other Organisations,511,17-Feb-2017,1702-00190,0.00,464.33,R,Abc Daycare And Ozone Out Of School,No
Http://opendatacommunities.org/id/metropolitan-district-council/leeds,Leeds City Council,28/02/2017,Childrens Services,Learning Skills & Universal,Third Party Payments,Services Rendered By Other Organisations,511,17-Feb-2017,1702-00191,0.00,1019.00,R,Abc Nursery At Lufc,No
Http://opendatacommunities.org/id/metropolitan-district-council/leeds,Leeds City Council,28/02/2017,City Development,Libraries  Arts & Heritage,Supplies and Services,Contributions To Extended Facilities,271,03-Feb-2017,1702-00192,0.00,1350.00,R,Abe Marrache,No
Http://opendatacommunities.org/id/metropolitan-district-council/leeds,Leeds City Council,28/02/2017,Adult Social Care,Services For Older People - 65 And Over,Third Party Payments,Nursing Home,570,08-Feb-2017,1702-00193,0.00,23772.12,R,Aberford Hall,No
Http://opendatacommunities.org/id/metropolitan-district-council/leeds,Leeds City Council,28/02/2017,Adult Social Care,Services For Older People - 65 And Over,Third Party Payments,Nursing Care Dementia,574,08-Feb-2017,1702-00194,0.00,1501.20,R,Aberford Hall,No
Http://opendatacommunities.org/id/metropolitan-district-council/leeds,Leeds City Council,28/02/2017,Adult Social Care,Services For Older People - 65 And Over,Third Party Payments,Residential,580,08-Feb-2017,1702-00195,0.00,9218.62,R,Aberford Hall,No
Http://opendatacommunities.org/id/metropolitan-district-council/leeds,Leeds City Council,28/02/2017,Environment & Housing,Leeds Building Services,Supplies and Services,Operational Materials,205,06-Feb-2017,1702-00196,0.00,15.00,R,Abi Garage Doors Ltd,No
Http://opendatacommunities.org/id/metropolitan-district-council/leeds,Leeds City Council,28/02/2017,Environment & Housing,Leeds Building Services,Supplies and Services,Operational Materials,205,06-Feb-2017,1702-00197,0.00,15.00,R,Abi Garage Doors Ltd,No
Http://opendatacommunities.org/id/metropolitan-district-council/leeds,Leeds City Council,28/02/2017,Environment & Housing,Leeds Building Services,Supplies and Services,Operational Materials,205,10-Feb-2017,1702-00198,0.00,15.00,R,Abi Garage Doors Ltd,No
Http://opendatacommunities.org/id/metropolitan-district-council/leeds,Leeds City Council,28/02/2017,Environment & Housing,Leeds Building Services,Supplies and Services,Operational Materials,205,10-Feb-2017,1702-00199,0.00,15.00,R,Abi Garage Doors Ltd,No
Http://opendatacommunities.org/id/metropolitan-district-council/leeds,Leeds City Council,28/02/2017,Environment & Housing,Leeds Building Services,Supplies and Services,Operational Materials,205,17-Feb-2017,1702-00200,0.00,225.00,R,Abi Garage Doors Ltd,No
Http://opendatacommunities.org/id/metropolitan-district-council/leeds,Leeds City Council,28/02/2017,Environment & Housing,Leeds Building Services,Supplies and Services,Operational Materials,205,17-Feb-2017,1702-00201,0.00,225.00,R,Abi Garage Doors Ltd,No
Http://opendatacommunities.org/id/metropolitan-district-council/leeds,Leeds City Council as Accountable Body,28/02/2017,Environment & Housing,Leeds Building Services,Supplies and Services,Stores - Central And Other Depots,005,17-Feb-2017,1702-00202,0.00,109.50,R,Abi Garage Doors Ltd,No
Http://opendatacommunities.org/id/metropolitan-district-council/leeds,Leeds City Council,28/02/2017,Environment & Housing,Leeds Building Services,Supplies and Services,Operational Materials,205,24-Feb-2017,1702-00203,0.00,6.67,R,Abi Garage Doors Ltd,No
Http://opendatacommunities.org/id/metropolitan-district-council/leeds,Leeds City Council,28/02/2017,Childrens Services,Safeguarding Targeted & Specialist,Supplies and Services,Telephones,213,09-Feb-2017,1702-00204,0.00,3.20,R,REDACTED PERSONAL DATA,No
Http://opendatacommunities.org/id/metropolitan-district-council/leeds,Leeds City Council,28/02/2017,Childrens Services,Safeguarding Targeted & Specialist,Supplies and Services,Food & Drink,231,09-Feb-2017,1702-00205,0.00,16.52,R,REDACTED PERSONAL DATA,No
Http://opendatacommunities.org/id/metropolitan-district-council/leeds,Leeds City Council,28/02/2017,Childrens Services,Safeguarding Targeted & Specialist,Transport,Car & Motorcycle Allowances,311,09-Feb-2017,1702-00206,0.00,9.00,R,REDACTED PERSONAL DATA,No
Http://opendatacommunities.org/id/metropolitan-district-council/leeds,Leeds City Council,28/02/2017,Adult Social Care,Services For Older People Under 65 P/Dis,Third Party Payments,Residential,580,03-Feb-2017,1702-00207,0.00,3414.34,R,Able Community Care Ltd,No
Http://opendatacommunities.org/id/metropolitan-district-council/leeds,Leeds City Council,28/02/2017,Environment & Housing,Parks and Countryside,Supplies and Services,Operational Materials,205,17-Feb-2017,1702-00208,0.00,489.00,R,Abram Pulman & Sons Limited,No
Http://opendatacommunities.org/id/metropolitan-district-council/leeds,Leeds City Council,28/02/2017,City Development,Economic Development,Supplies and Services,Publication And Promotion,267,08-Feb-2017,1702-00209,0.00,600.00,R,Absolute Media Ltd,No
Http://opendatacommunities.org/id/metropolitan-district-council/leeds,Leeds City Council,28/02/2017,City Development,Economic Development,Supplies and Services,Publication And Promotion,267,24-Feb-2017,1702-00210,0.00,87.50,R,Absolute Media Ltd,No
Http://opendatacommunities.org/id/metropolitan-district-council/leeds,Leeds City Council,28/02/2017,Childrens Services,Safeguarding Targeted & Specialist ,Transfer Payments,Leaving Care Allowances,634,30-Dec-2016,1702-00211,,26.43,R,Abu Bakar Ltd,Yes
Http://opendatacommunities.org/id/metropolitan-district-council/leeds,Leeds City Council,28/02/2017,Childrens Services,Safeguarding Targeted & Specialist ,Supplies and Services,Food & Drink,231,20-Jan-2017,1702-00212,,23.30,R,Abu Bakar Ltd,Yes
Http://opendatacommunities.org/id/metropolitan-district-council/leeds,Leeds City Council,28/02/2017,Childrens Services,Safeguarding Targeted & Specialist,Employees,Agency Staff,8,03-Feb-2017,1702-00213,0.00,938.58,R,Academic Appointments Ltd,No
Http://opendatacommunities.org/id/metropolitan-district-council/leeds,Leeds City Council,28/02/2017,Childrens Services,Safeguarding Targeted & Specialist,Employees,Agency Staff,8,09-Feb-2017,1702-00214,0.00,720.00,R,Academic Appointments Ltd,No
Http://opendatacommunities.org/id/metropolitan-district-council/leeds,Leeds City Council,28/02/2017,Childrens Services,Safeguarding Targeted & Specialist,Employees,Agency Staff,8,09-Feb-2017,1702-00215,0.00,894.56,R,Academic Appointments Ltd,No
Http://opendatacommunities.org/id/metropolitan-district-council/leeds,Leeds City Council,28/02/2017,Childrens Services,Safeguarding Targeted & Specialist,Employees,Agency Staff,8,16-Feb-2017,1702-00216,0.00,-194.93,R,Academic Appointments Ltd,No
Http://opendatacommunities.org/id/metropolitan-district-council/leeds,Leeds City Council,28/02/2017,Childrens Services,Safeguarding Targeted & Specialist,Employees,Agency Staff,8,16-Feb-2017,1702-00217,0.00,480.00,R,Academic Appointments Ltd,No
Http://opendatacommunities.org/id/metropolitan-district-council/leeds,Leeds City Council,28/02/2017,Childrens Services,Safeguarding Targeted & Specialist,Employees,Agency Staff,8,17-Feb-2017,1702-00218,0.00,1243.86,R,Academic Appointments Ltd,No
Http://opendatacommunities.org/id/metropolitan-district-council/leeds,Leeds City Council,28/02/2017,Childrens Services,Safeguarding Targeted & Specialist,Employees,Agency Staff,8,23-Feb-2017,1702-00219,0.00,1898.96,R,Academic Appointments Ltd,No
Http://opendatacommunities.org/id/metropolitan-district-council/leeds,Leeds City Council,28/02/2017,Childrens Services,Safeguarding Targeted & Specialist,Employees,Agency Staff,8,23-Feb-2017,1702-00220,0.00,572.84,R,Academic Appointments Ltd,No
Http://opendatacommunities.org/id/metropolitan-district-council/leeds,Leeds City Council,28/02/2017,Central & Corporate,Technology ,Employees,Best Value Training,70,12-Jan-2017,1702-00221,,7375.00,R,Academy Training Purch,Yes
Http://opendatacommunities.org/id/metropolitan-district-council/leeds,Leeds City Council,28/02/2017,Environment & Housing,Environmental Health,Capital,Construction,3,16-Feb-2017,1702-00222,0.00,2052.00,C,Accent Homes Ltd,No
Http://opendatacommunities.org/id/metropolitan-district-council/leeds,Leeds City Council as Accountable Body,28/02/2017,Central & Corporate,Technology,Supplies and Services,Software - Expenditure,080,02-Feb-2017,1702-00223,0.00,5162.60,R,Accenture (Uk) Ltd,No
Http://opendatacommunities.org/id/metropolitan-district-council/leeds,Leeds City Council as Accountable Body,28/02/2017,Central & Corporate,Technology,Supplies and Services,Software - Expenditure,080,02-Feb-2017,1702-00224,0.00,5700.00,R,Accenture (Uk) Ltd,No
Http://opendatacommunities.org/id/metropolitan-district-council/leeds,Leeds City Council,28/02/2017,Environment & Housing,Community Safety,Transport,Hire Of Movable Plant & Machinery,315,02-Feb-2017,1702-00225,0.00,1350.71,R,Access Hire Nationwide Ltd,No
Http://opendatacommunities.org/id/metropolitan-district-council/leeds,Leeds City Council,28/02/2017,Environment & Housing,Leeds Building Services,Supplies and Services,Operational Materials,205,27-Feb-2017,1702-00226,0.00,234.00,R,Access Lift Consultants Ltd,No
Http://opendatacommunities.org/id/metropolitan-district-council/leeds,Leeds City Council,28/02/2017,Childrens Services,Safeguarding Targeted & Specialist ,Supplies and Services,Operational Furniture And Equipment,203,26-Jan-2017,1702-00227,,76.65,R,Access Locksmiths,Yes
Http://opendatacommunities.org/id/metropolitan-district-council/leeds,Leeds City Council,28/02/2017,Civic Enterprise Leeds,Commercial Services ,Supplies and Services,Operational Furniture And Equipment,203,26-Jan-2017,1702-00228,,53.77,R,Access Locksmiths,Yes
Http://opendatacommunities.org/id/metropolitan-district-council/leeds,Leeds City Council,28/02/2017,Strategic Landlord,Property and Contracts,Premises,General Maintenance,104,01-Feb-2017,1702-00229,0.00,30.00,R,Access Locksmiths (Leeds) Limited,No
Http://opendatacommunities.org/id/metropolitan-district-council/leeds,Leeds City Council,28/02/2017,Strategic Landlord,Property and Contracts,Premises,General Maintenance,104,03-Feb-2017,1702-00230,0.00,123.96,R,Access Locksmiths (Leeds) Limited,No
Http://opendatacommunities.org/id/metropolitan-district-council/leeds,Leeds City Council,28/02/2017,Strategic Landlord,Property and Contracts,Premises,General Maintenance,104,03-Feb-2017,1702-00231,0.00,281.45,R,Access Locksmiths (Leeds) Limited,No
Http://opendatacommunities.org/id/metropolitan-district-council/leeds,Leeds City Council,28/02/2017,Strategic Landlord,Property and Contracts,Premises,General Maintenance,104,03-Feb-2017,1702-00232,0.00,38.19,R,Access Locksmiths (Leeds) Limited,No
Http://opendatacommunities.org/id/metropolitan-district-council/leeds,Leeds City Council,28/02/2017,Strategic Landlord,Property and Contracts,Premises,General Maintenance,104,03-Feb-2017,1702-00233,0.00,175.81,R,Access Locksmiths (Leeds) Limited,No
Http://opendatacommunities.org/id/metropolitan-district-council/leeds,Leeds City Council,28/02/2017,Environment & Housing,Leeds Building Services,Supplies and Services,Operational Materials,205,06-Feb-2017,1702-00234,0.00,16.83,R,Access Locksmiths (Leeds) Limited,No
Http://opendatacommunities.org/id/metropolitan-district-council/leeds,Leeds City Council,28/02/2017,Environment & Housing,Leeds Building Services,Supplies and Services,Operational Materials,205,06-Feb-2017,1702-00235,0.00,15.48,R,Access Locksmiths (Leeds) Limited,No
Http://opendatacommunities.org/id/metropolitan-district-council/leeds,Leeds City Council,28/02/2017,Environment & Housing,Leeds Building Services,Supplies and Services,Operational Materials,205,06-Feb-2017,1702-00236,0.00,19.44,R,Access Locksmiths (Leeds) Limited,No
Http://opendatacommunities.org/id/metropolitan-district-council/leeds,Leeds City Council,28/02/2017,Environment & Housing,Leeds Building Services,Supplies and Services,Operational Materials,205,06-Feb-2017,1702-00237,0.00,16.66,R,Access Locksmiths (Leeds) Limited,No
Http://opendatacommunities.org/id/metropolitan-district-council/leeds,Leeds City Council,28/02/2017,Environment & Housing,Leeds Building Services,Supplies and Services,Operational Furniture And Equipment,203,06-Feb-2017,1702-00238,0.00,19.85,R,Access Locksmiths (Leeds) Limited,No
Http://opendatacommunities.org/id/metropolitan-district-council/leeds,Leeds City Council,28/02/2017,Environment & Housing,Leeds Building Services,Supplies and Services,Operational Materials,205,07-Feb-2017,1702-00239,0.00,43.90,R,Access Locksmiths (Leeds) Limited,No
Http://opendatacommunities.org/id/metropolitan-district-council/leeds,Leeds City Council,28/02/2017,Environment & Housing,Leeds Building Services,Supplies and Services,Operational Materials,205,07-Feb-2017,1702-00240,0.00,20.00,R,Access Locksmiths (Leeds) Limited,No
Http://opendatacommunities.org/id/metropolitan-district-council/leeds,Leeds City Council,28/02/2017,Environment & Housing,Leeds Building Services,Supplies and Services,Operational Materials,205,07-Feb-2017,1702-00241,0.00,8.61,R,Access Locksmiths (Leeds) Limited,No
Http://opendatacommunities.org/id/metropolitan-district-council/leeds,Leeds City Council,28/02/2017,Environment & Housing,Leeds Building Services,Supplies and Services,Operational Materials,205,07-Feb-2017,1702-00242,0.00,44.52,R,Access Locksmiths (Leeds) Limited,No
Http://opendatacommunities.org/id/metropolitan-district-council/leeds,Leeds City Council,28/02/2017,Strategic Landlord,Housing Management,Supplies and Services,Other Hired And Contracted Services,265,14-Feb-2017,1702-00243,0.00,10.45,R,Access Locksmiths (Leeds) Limited,No
Http://opendatacommunities.org/id/metropolitan-district-council/leeds,Leeds City Council,28/02/2017,Strategic Landlord,Housing Management,Premises,General Maintenance,104,14-Feb-2017,1702-00244,0.00,228.00,R,Access Locksmiths (Leeds) Limited,No
Http://opendatacommunities.org/id/metropolitan-district-council/leeds,Leeds City Council,28/02/2017,Environment & Housing,Waste Management,Supplies and Services,Operational Furniture And Equipment,203,14-Feb-2017,1702-00245,0.00,1000.00,R,Access Locksmiths (Leeds) Limited,No
Http://opendatacommunities.org/id/metropolitan-district-council/leeds,Leeds City Council,28/02/2017,Environment & Housing,Leeds Building Services,Supplies and Services,Office Consumables,210,14-Feb-2017,1702-00246,0.00,139.25,R,Access Locksmiths (Leeds) Limited,No
Http://opendatacommunities.org/id/metropolitan-district-council/leeds,Leeds City Council,28/02/2017,Strategic Landlord,Housing Management,Supplies and Services,Operational Materials,205,14-Feb-2017,1702-00247,0.00,-76.00,R,Access Locksmiths (Leeds) Limited,No
Http://opendatacommunities.org/id/metropolitan-district-council/leeds,Leeds City Council,28/02/2017,Strategic Landlord,Housing Management,Premises,HRA Responsive Repairs,106,14-Feb-2017,1702-00248,0.00,-15.00,R,Access Locksmiths (Leeds) Limited,No
Http://opendatacommunities.org/id/metropolitan-district-council/leeds,Leeds City Council,28/02/2017,Strategic Landlord,Housing Management,Premises,General Maintenance,104,21-Feb-2017,1702-00249,0.00,456.00,R,Access Locksmiths (Leeds) Limited,No
Http://opendatacommunities.org/id/metropolitan-district-council/leeds,Leeds City Council,28/02/2017,Strategic Landlord,Housing Management,Premises,General Maintenance,104,21-Feb-2017,1702-00250,0.00,57.00,R,Access Locksmiths (Leeds) Limited,No
Http://opendatacommunities.org/id/metropolitan-district-council/leeds,Leeds City Council,28/02/2017,Strategic Landlord,Property and Contracts,Premises,General Maintenance,104,23-Feb-2017,1702-00251,0.00,133.61,R,Access Locksmiths (Leeds) Limited,No
Http://opendatacommunities.org/id/metropolitan-district-council/leeds,Leeds City Council,28/02/2017,Strategic Landlord,Property and Contracts,Premises,General Maintenance,104,23-Feb-2017,1702-00252,0.00,228.00,R,Access Locksmiths (Leeds) Limited,No
Http://opendatacommunities.org/id/metropolitan-district-council/leeds,Leeds City Council,28/02/2017,Strategic Landlord,Property and Contracts,Premises,General Maintenance,104,23-Feb-2017,1702-00253,0.00,191.63,R,Access Locksmiths (Leeds) Limited,No
Http://opendatacommunities.org/id/metropolitan-district-council/leeds,Leeds City Council,28/02/2017,Environment & Housing,Housing Leeds Service,Capital,Construction,3,23-Feb-2017,1702-00254,0.00,378.56,C,Access Locksmiths (Leeds) Limited,No
Http://opendatacommunities.org/id/metropolitan-district-council/leeds,Leeds City Council,28/02/2017,Strategic Landlord,Housing Management,Premises,HRA Responsive Repairs,106,24-Feb-2017,1702-00255,0.00,15.00,R,Access Locksmiths (Leeds) Limited,No
Http://opendatacommunities.org/id/metropolitan-district-council/leeds,Leeds City Council,28/02/2017,Strategic Landlord,Property and Contracts,Premises,General Maintenance,104,24-Feb-2017,1702-00256,0.00,30.00,R,Access Locksmiths (Leeds) Limited,No
Http://opendatacommunities.org/id/metropolitan-district-council/leeds,Leeds City Council,28/02/2017,Environment & Housing,Leeds Building Services,Supplies and Services,Operational Materials,205,24-Feb-2017,1702-00257,0.00,1.62,R,Access Locksmiths (Leeds) Limited,No
Http://opendatacommunities.org/id/metropolitan-district-council/leeds,Leeds City Council,28/02/2017,Environment & Housing,Leeds Building Services,Supplies and Services,Operational Materials,205,24-Feb-2017,1702-00258,0.00,13.84,R,Access Locksmiths (Leeds) Limited,No
Http://opendatacommunities.org/id/metropolitan-district-council/leeds,Leeds City Council,28/02/2017,Environment & Housing,Leeds Building Services,Supplies and Services,Operational Materials,205,24-Feb-2017,1702-00259,0.00,103.61,R,Access Locksmiths (Leeds) Limited,No
Http://opendatacommunities.org/id/metropolitan-district-council/leeds,Leeds City Council,28/02/2017,Environment & Housing,Leeds Building Services,Supplies and Services,Operational Materials,205,24-Feb-2017,1702-00260,0.00,7.12,R,Access Locksmiths (Leeds) Limited,No
Http://opendatacommunities.org/id/metropolitan-district-council/leeds,Leeds City Council,28/02/2017,Strategic Landlord,Housing Management,Premises,General Maintenance,104,28-Feb-2017,1702-00261,0.00,32.63,R,Access Locksmiths (Leeds) Limited,No
Http://opendatacommunities.org/id/metropolitan-district-council/leeds,Leeds City Council,28/02/2017,Environment & Housing,Leeds Building Services,Supplies and Services,Other Hired And Contracted Services,265,01-Feb-2017,1702-00262,0.00,85.00,R,Access Opening Systems Limited,No
Http://opendatacommunities.org/id/metropolitan-district-council/leeds,Leeds City Council,28/02/2017,Environment & Housing,Leeds Building Services,Supplies and Services,Other Hired And Contracted Services,265,03-Feb-2017,1702-00263,0.00,85.00,R,Access Opening Systems Limited,No
Http://opendatacommunities.org/id/metropolitan-district-council/leeds,Leeds City Council,28/02/2017,Environment & Housing,Leeds Building Services,Supplies and Services,Other Hired And Contracted Services,265,03-Feb-2017,1702-00264,0.00,110.00,R,Access Opening Systems Limited,No
Http://opendatacommunities.org/id/metropolitan-district-council/leeds,Leeds City Council,28/02/2017,Environment & Housing,Leeds Building Services,Supplies and Services,Other Hired And Contracted Services,265,03-Feb-2017,1702-00265,0.00,202.56,R,Access Opening Systems Limited,No
Http://opendatacommunities.org/id/metropolitan-district-council/leeds,Leeds City Council,28/02/2017,Environment & Housing,Leeds Building Services,Supplies and Services,Other Hired And Contracted Services,265,03-Feb-2017,1702-00266,0.00,110.00,R,Access Opening Systems Limited,No
Http://opendatacommunities.org/id/metropolitan-district-council/leeds,Leeds City Council,28/02/2017,Environment & Housing,Leeds Building Services,Supplies and Services,Other Hired And Contracted Services,265,03-Feb-2017,1702-00267,0.00,85.00,R,Access Opening Systems Limited,No
Http://opendatacommunities.org/id/metropolitan-district-council/leeds,Leeds City Council,28/02/2017,Environment & Housing,Leeds Building Services,Supplies and Services,Other Hired And Contracted Services,265,03-Feb-2017,1702-00268,0.00,110.00,R,Access Opening Systems Limited,No
Http://opendatacommunities.org/id/metropolitan-district-council/leeds,Leeds City Council,28/02/2017,Environment & Housing,Leeds Building Services,Supplies and Services,Other Hired And Contracted Services,265,03-Feb-2017,1702-00269,0.00,97.00,R,Access Opening Systems Limited,No
Http://opendatacommunities.org/id/metropolitan-district-council/leeds,Leeds City Council,28/02/2017,Environment & Housing,Leeds Building Services,Supplies and Services,Other Hired And Contracted Services,265,03-Feb-2017,1702-00270,0.00,85.00,R,Access Opening Systems Limited,No
Http://opendatacommunities.org/id/metropolitan-district-council/leeds,Leeds City Council,28/02/2017,Environment & Housing,Leeds Building Services,Supplies and Services,Other Hired And Contracted Services,265,13-Feb-2017,1702-00271,0.00,85.00,R,Access Opening Systems Limited,No
Http://opendatacommunities.org/id/metropolitan-district-council/leeds,Leeds City Council,28/02/2017,Environment & Housing,Leeds Building Services,Supplies and Services,Other Hired And Contracted Services,265,13-Feb-2017,1702-00272,0.00,91.50,R,Access Opening Systems Limited,No
Http://opendatacommunities.org/id/metropolitan-district-council/leeds,Leeds City Council,28/02/2017,Environment & Housing,Leeds Building Services,Supplies and Services,Other Hired And Contracted Services,265,13-Feb-2017,1702-00273,0.00,160.00,R,Access Opening Systems Limited,No
Http://opendatacommunities.org/id/metropolitan-district-council/leeds,Leeds City Council,28/02/2017,Environment & Housing,Leeds Building Services,Supplies and Services,Other Hired And Contracted Services,265,13-Feb-2017,1702-00274,0.00,135.00,R,Access Opening Systems Limited,No
Http://opendatacommunities.org/id/metropolitan-district-council/leeds,Leeds City Council,28/02/2017,Environment & Housing,Leeds Building Services,Supplies and Services,Other Hired And Contracted Services,265,13-Feb-2017,1702-00275,0.00,85.00,R,Access Opening Systems Limited,No
Http://opendatacommunities.org/id/metropolitan-district-council/leeds,Leeds City Council,28/02/2017,Environment & Housing,Leeds Building Services,Supplies and Services,Other Hired And Contracted Services,265,13-Feb-2017,1702-00276,0.00,85.00,R,Access Opening Systems Limited,No
Http://opendatacommunities.org/id/metropolitan-district-council/leeds,Leeds City Council,28/02/2017,Environment & Housing,Leeds Building Services,Supplies and Services,Other Hired And Contracted Services,265,13-Feb-2017,1702-00277,0.00,102.50,R,Access Opening Systems Limited,No
Http://opendatacommunities.org/id/metropolitan-district-council/leeds,Leeds City Council,28/02/2017,Environment & Housing,Leeds Building Services,Supplies and Services,Other Hired And Contracted Services,265,13-Feb-2017,1702-00278,0.00,87.50,R,Access Opening Systems Limited,No
Http://opendatacommunities.org/id/metropolitan-district-council/leeds,Leeds City Council,28/02/2017,Environment & Housing,Leeds Building Services,Supplies and Services,Other Hired And Contracted Services,265,13-Feb-2017,1702-00279,0.00,85.00,R,Access Opening Systems Limited,No
Http://opendatacommunities.org/id/metropolitan-district-council/leeds,Leeds City Council,28/02/2017,Environment & Housing,Leeds Building Services,Supplies and Services,Other Hired And Contracted Services,265,13-Feb-2017,1702-00280,0.00,85.00,R,Access Opening Systems Limited,No
Http://opendatacommunities.org/id/metropolitan-district-council/leeds,Leeds City Council,28/02/2017,Environment & Housing,Leeds Building Services,Supplies and Services,Other Hired And Contracted Services,265,13-Feb-2017,1702-00281,0.00,160.00,R,Access Opening Systems Limited,No
Http://opendatacommunities.org/id/metropolitan-district-council/leeds,Leeds City Council,28/02/2017,Environment & Housing,Leeds Building Services,Supplies and Services,Other Hired And Contracted Services,265,13-Feb-2017,1702-00282,0.00,85.00,R,Access Opening Systems Limited,No
Http://opendatacommunities.org/id/metropolitan-district-council/leeds,Leeds City Council,28/02/2017,Environment & Housing,Leeds Building Services,Supplies and Services,Other Hired And Contracted Services,265,13-Feb-2017,1702-00283,0.00,269.50,R,Access Opening Systems Limited,No
Http://opendatacommunities.org/id/metropolitan-district-council/leeds,Leeds City Council,28/02/2017,Environment & Housing,Leeds Building Services,Supplies and Services,Other Hired And Contracted Services,265,17-Feb-2017,1702-00284,0.00,85.00,R,Access Opening Systems Limited,No
Http://opendatacommunities.org/id/metropolitan-district-council/leeds,Leeds City Council,28/02/2017,Environment & Housing,Leeds Building Services,Supplies and Services,Other Hired And Contracted Services,265,17-Feb-2017,1702-00285,0.00,789.12,R,Access Opening Systems Limited,No
Http://opendatacommunities.org/id/metropolitan-district-council/leeds,Leeds City Council,28/02/2017,Environment & Housing,Leeds Building Services,Supplies and Services,Other Hired And Contracted Services,265,20-Feb-2017,1702-00286,0.00,110.00,R,Access Opening Systems Limited,No
Http://opendatacommunities.org/id/metropolitan-district-council/leeds,Leeds City Council,28/02/2017,Environment & Housing,Leeds Building Services,Supplies and Services,Other Hired And Contracted Services,265,20-Feb-2017,1702-00287,0.00,110.00,R,Access Opening Systems Limited,No
Http://opendatacommunities.org/id/metropolitan-district-council/leeds,Leeds City Council,28/02/2017,Environment & Housing,Leeds Building Services,Supplies and Services,Other Hired And Contracted Services,265,20-Feb-2017,1702-00288,0.00,85.00,R,Access Opening Systems Limited,No
Http://opendatacommunities.org/id/metropolitan-district-council/leeds,Leeds City Council,28/02/2017,Environment & Housing,Leeds Building Services,Supplies and Services,Other Hired And Contracted Services,265,20-Feb-2017,1702-00289,0.00,348.21,R,Access Opening Systems Limited,No
Http://opendatacommunities.org/id/metropolitan-district-council/leeds,Leeds City Council,28/02/2017,Environment & Housing,Leeds Building Services,Supplies and Services,Other Hired And Contracted Services,265,21-Feb-2017,1702-00290,0.00,85.00,R,Access Opening Systems Limited,No
Http://opendatacommunities.org/id/metropolitan-district-council/leeds,Leeds City Council,28/02/2017,Environment & Housing,Leeds Building Services,Supplies and Services,Other Hired And Contracted Services,265,21-Feb-2017,1702-00291,0.00,85.00,R,Access Opening Systems Limited,No
Http://opendatacommunities.org/id/metropolitan-district-council/leeds,Leeds City Council,28/02/2017,Environment & Housing,Leeds Building Services,Supplies and Services,Other Hired And Contracted Services,265,24-Feb-2017,1702-00292,0.00,110.00,R,Access Opening Systems Limited,No
Http://opendatacommunities.org/id/metropolitan-district-council/leeds,Leeds City Council,28/02/2017,Environment & Housing,Leeds Building Services,Supplies and Services,Other Hired And Contracted Services,265,24-Feb-2017,1702-00293,0.00,110.00,R,Access Opening Systems Limited,No
Http://opendatacommunities.org/id/metropolitan-district-council/leeds,Leeds City Council,28/02/2017,Environment & Housing,Leeds Building Services,Supplies and Services,Other Hired And Contracted Services,265,24-Feb-2017,1702-00294,0.00,110.00,R,Access Opening Systems Limited,No
Http://opendatacommunities.org/id/metropolitan-district-council/leeds,Leeds City Council,28/02/2017,Environment & Housing,Leeds Building Services,Supplies and Services,Other Hired And Contracted Services,265,28-Feb-2017,1702-00295,0.00,110.00,R,Access Opening Systems Limited,No
Http://opendatacommunities.org/id/metropolitan-district-council/leeds,Leeds City Council,28/02/2017,Environment & Housing,Leeds Building Services,Supplies and Services,Other Hired And Contracted Services,265,28-Feb-2017,1702-00296,0.00,85.00,R,Access Opening Systems Limited,No
Http://opendatacommunities.org/id/metropolitan-district-council/leeds,Leeds City Council,28/02/2017,Environment & Housing,Leeds Building Services,Supplies and Services,Other Hired And Contracted Services,265,28-Feb-2017,1702-00297,0.00,176.00,R,Access Opening Systems Limited,No
Http://opendatacommunities.org/id/metropolitan-district-council/leeds,Leeds City Council,28/02/2017,Environment & Housing,Leeds Building Services,Supplies and Services,Other Hired And Contracted Services,265,28-Feb-2017,1702-00298,0.00,85.00,R,Access Opening Systems Limited,No
Http://opendatacommunities.org/id/metropolitan-district-council/leeds,Leeds City Council,28/02/2017,Insurance,Insurance,Supplies and Services,Insurance Claims,248,01-Feb-2017,1702-00299,0.00,2800.00,R,Accountant General Of The Senior Courts,No
Http://opendatacommunities.org/id/metropolitan-district-council/leeds,Leeds City Council,28/02/2017,Insurance,Insurance,Supplies and Services,Insurance Claims,248,01-Feb-2017,1702-00300,0.00,2500.00,R,Accountant General Of The Senior Courts,No
Http://opendatacommunities.org/id/metropolitan-district-council/leeds,Leeds City Council,28/02/2017,Insurance,Insurance,Supplies and Services,Insurance Claims,248,01-Feb-2017,1702-00301,0.00,3500.00,R,Accountant General Of The Senior Courts,No
Http://opendatacommunities.org/id/metropolitan-district-council/leeds,Leeds City Council,28/02/2017,Insurance,Insurance,Supplies and Services,Insurance Claims,248,28-Feb-2017,1702-00302,0.00,13270.22,R,Accountant General Of The Senior Courts,No
Http://opendatacommunities.org/id/metropolitan-district-council/leeds,Leeds City Council,28/02/2017,Insurance,Insurance,Supplies and Services,Insurance Claims,248,28-Feb-2017,1702-00303,0.00,7000.00,R,Accountant General Of The Senior Courts,No
Http://opendatacommunities.org/id/metropolitan-district-council/leeds,Leeds City Council,28/02/2017,Insurance,Insurance,Supplies and Services,Insurance Claims,248,28-Feb-2017,1702-00304,0.00,4606.07,R,Accountant General Of The Senior Courts,No
Http://opendatacommunities.org/id/metropolitan-district-council/leeds,Leeds City Council,28/02/2017,City Development,Recreation,Supplies and Services,Other Hired And Contracted Services,265,02-Feb-2017,1702-00305,0.00,139.50,R,Ace Container Services Limited,No
Http://opendatacommunities.org/id/metropolitan-district-council/leeds,Leeds City Council,28/02/2017,Adult Social Care,Other Generic Services,Supplies and Services,Publication And Promotion,267,03-Feb-2017,1702-00306,0.00,1225.00,R,Ace Leaflet Distribution & Print Ltd,No
Http://opendatacommunities.org/id/metropolitan-district-council/leeds,Leeds City Council,28/02/2017,Childrens Services,Learning Skills & Universal,Supplies and Services,Advertising,211,10-Feb-2017,1702-00307,0.00,100.00,R,Ace Leaflet Distribution & Print Ltd,No
Http://opendatacommunities.org/id/metropolitan-district-council/leeds,Leeds City Council,28/02/2017,City Development,Highways,Supplies and Services,Publication And Promotion,267,21-Feb-2017,1702-00308,0.00,10548.00,R,Ace Leaflet Distribution & Print Ltd,No
Http://opendatacommunities.org/id/metropolitan-district-council/leeds,Leeds City Council as Accountable Body,28/02/2017,City Development,Libraries  Arts & Heritage,Supplies and Services,Art Galleries Total Stores,003,10-Feb-2017,1702-00309,0.00,217.20,R,Ackerman International Trading Ltd,No
Http://opendatacommunities.org/id/metropolitan-district-council/leeds,Leeds City Council,28/02/2017,Adult Social Care,Services For Older People - 65 And Over,Third Party Payments,Nursing Care Dementia,574,08-Feb-2017,1702-00310,0.00,1480.08,R,Acorn Nursing Home,No
Http://opendatacommunities.org/id/metropolitan-district-council/leeds,Leeds City Council,28/02/2017,City Development,Libraries  Arts & Heritage,Supplies and Services,Other Hired And Contracted Services,265,17-Feb-2017,1702-00311,0.00,4525.00,R,Acorn Scaffolding (Yorkshire) Ltd,No
Http://opendatacommunities.org/id/metropolitan-district-council/leeds,Leeds City Council,28/02/2017,City Development,Libraries  Arts & Heritage,Supplies and Services,Other Hired And Contracted Services,265,17-Feb-2017,1702-00312,0.00,2825.00,R,Acorn Scaffolding (Yorkshire) Ltd,No
Http://opendatacommunities.org/id/metropolitan-district-council/leeds,Leeds City Council,28/02/2017,Adult Social Care,Other Adult Services,Third Party Payments,Residential - Drugs & Alcohol,583,10-Feb-2017,1702-00313,0.00,864.29,R,Acorn Treatment & Housing,No
Http://opendatacommunities.org/id/metropolitan-district-council/leeds,Leeds City Council,28/02/2017,Adult Social Care,Other Adult Services,Third Party Payments,Residential - Drugs & Alcohol,583,10-Feb-2017,1702-00314,0.00,2435.71,R,Acorn Treatment & Housing,No
Http://opendatacommunities.org/id/metropolitan-district-council/leeds,Leeds City Council,28/02/2017,Childrens Services,Learning Skills & Universal,Third Party Payments,Services Rendered By Other Organisations,511,17-Feb-2017,1702-00315,0.00,280.00,R,Acorns Nursery,No
Http://opendatacommunities.org/id/metropolitan-district-council/leeds,Leeds City Council,28/02/2017,Adult Social Care,Services For Adults Under 65 Mental/Dis,Third Party Payments,Residential,580,08-Feb-2017,1702-00316,0.00,1459.20,R,Acre Green,No
Http://opendatacommunities.org/id/metropolitan-district-council/leeds,Leeds City Council,28/02/2017,Adult Social Care,Services For Older People - 65 And Over,Third Party Payments,Nursing Home,570,08-Feb-2017,1702-00317,0.00,30962.86,R,Acre Green,No
Http://opendatacommunities.org/id/metropolitan-district-council/leeds,Leeds City Council,28/02/2017,Adult Social Care,Services For Older People - 65 And Over,Third Party Payments,Nursing Care Dementia,574,08-Feb-2017,1702-00318,0.00,1122.48,R,Acre Green,No
Http://opendatacommunities.org/id/metropolitan-district-council/leeds,Leeds City Council,28/02/2017,Adult Social Care,Services For Older People - 65 And Over,Third Party Payments,Residential,580,08-Feb-2017,1702-00319,0.00,5700.32,R,Acre Green,No
Http://opendatacommunities.org/id/metropolitan-district-council/leeds,Leeds City Council,28/02/2017,Adult Social Care,Services For Older People Under 65 P/Dis,Third Party Payments,Nursing Home,570,08-Feb-2017,1702-00320,0.00,14646.93,R,Acre Green,No
Http://opendatacommunities.org/id/metropolitan-district-council/leeds,Leeds City Council,28/02/2017,Adult Social Care,Services For Older People Under 65 P/Dis,Third Party Payments,Residential,580,08-Feb-2017,1702-00321,0.00,9325.03,R,Acre Green,No
Http://opendatacommunities.org/id/metropolitan-district-council/leeds,Leeds City Council,28/02/2017,Childrens Services,Learning Skills & Universal,Third Party Payments,Services Rendered By Other Organisations,511,17-Feb-2017,1702-00322,0.00,1284.00,R,Acre Wood Day Nursery,No
Http://opendatacommunities.org/id/metropolitan-district-council/leeds,Leeds City Council,28/02/2017,Central & Corporate,Strategy And Improvement ,Employees,Best Value Training,70,23-Jan-2017,1702-00323,,285.00,R,Act Now Training,Yes
Http://opendatacommunities.org/id/metropolitan-district-council/leeds,Leeds City Council,28/02/2017,Adult Social Care,Services For Adults Under 65 Mental/Dis,Third Party Payments,Fees - Level 4,520,02-Feb-2017,1702-00324,0.00,1050.00,R,Action First Recruitment Ltd,No
Http://opendatacommunities.org/id/metropolitan-district-council/leeds,Leeds City Council,28/02/2017,Childrens Services,Safeguarding Targeted & Specialist,Third Party Payments,Independent Fostering Agencies,509,22-Feb-2017,1702-00325,0.00,4776.48,R,Action For Children,No
Http://opendatacommunities.org/id/metropolitan-district-council/leeds,Leeds City Council,28/02/2017,Childrens Services,Safeguarding Targeted & Specialist,Third Party Payments,Independent Fostering Agencies,509,22-Feb-2017,1702-00326,0.00,4776.48,R,Action For Children,No
Http://opendatacommunities.org/id/metropolitan-district-council/leeds,Leeds City Council,28/02/2017,Childrens Services,Safeguarding Targeted & Specialist,Third Party Payments,Independent Fostering Agencies,509,22-Feb-2017,1702-00327,0.00,4776.48,R,Action For Children,No
Http://opendatacommunities.org/id/metropolitan-district-council/leeds,Leeds City Council,28/02/2017,Childrens Services,Safeguarding Targeted & Specialist,Third Party Payments,Independent Fostering Agencies,509,22-Feb-2017,1702-00328,0.00,5163.67,R,Action For Children,No
Http://opendatacommunities.org/id/metropolitan-district-council/leeds,Leeds City Council,28/02/2017,Childrens Services,Safeguarding Targeted & Specialist,Third Party Payments,Independent Fostering Agencies,509,22-Feb-2017,1702-00329,0.00,4776.48,R,Action For Children,No
Http://opendatacommunities.org/id/metropolitan-district-council/leeds,Leeds City Council,28/02/2017,Childrens Services,Safeguarding Targeted & Specialist,Third Party Payments,Independent Fostering Agencies,509,27-Feb-2017,1702-00330,0.00,4776.48,R,Action For Children,No
Http://opendatacommunities.org/id/metropolitan-district-council/leeds,Leeds City Council,28/02/2017,Childrens Services,Safeguarding Targeted & Specialist,Third Party Payments,Independent Fostering Agencies,509,27-Feb-2017,1702-00331,0.00,4776.48,R,Action For Children,No
Http://opendatacommunities.org/id/metropolitan-district-council/leeds,Leeds City Council,28/02/2017,Childrens Services,Safeguarding Targeted & Specialist,Third Party Payments,Independent Fostering Agencies,509,27-Feb-2017,1702-00332,0.00,4776.48,R,Action For Children,No
Http://opendatacommunities.org/id/metropolitan-district-council/leeds,Leeds City Council,28/02/2017,Childrens Services,Safeguarding Targeted & Specialist,Third Party Payments,Independent Fostering Agencies,509,27-Feb-2017,1702-00333,0.00,5163.67,R,Action For Children,No
Http://opendatacommunities.org/id/metropolitan-district-council/leeds,Leeds City Council,28/02/2017,Childrens Services,Safeguarding Targeted & Specialist,Third Party Payments,Independent Fostering Agencies,509,27-Feb-2017,1702-00334,0.00,4776.48,R,Action For Children,No
Http://opendatacommunities.org/id/metropolitan-district-council/leeds,Leeds City Council,28/02/2017,Childrens Services,Safeguarding Targeted & Specialist,Third Party Payments,Placement Support,550,03-Feb-2017,1702-00335,0.00,129.00,R,Active Kids Yeadon Llp,No
Http://opendatacommunities.org/id/metropolitan-district-council/leeds,Leeds City Council,28/02/2017,Childrens Services,Learning Skills & Universal,Third Party Payments,Services Rendered By Other Organisations,511,17-Feb-2017,1702-00336,0.00,368.00,R,Active Kids Yeadon Llp,No
Http://opendatacommunities.org/id/metropolitan-district-council/leeds,Leeds City Council,28/02/2017,Environment & Housing,Environmental Action (South),Premises,Removal Of Workplace Waste,126,02-Feb-2017,1702-00337,0.00,1400.00,R,Acumen Waste Services Ltd,No
Http://opendatacommunities.org/id/metropolitan-district-council/leeds,Leeds City Council,28/02/2017,Environment & Housing,Waste Management,Supplies and Services,Recycling & Reuse Charges,234,09-Feb-2017,1702-00338,0.00,10839.93,R,Acumen Waste Services Ltd,No
Http://opendatacommunities.org/id/metropolitan-district-council/leeds,Leeds City Council,28/02/2017,Environment & Housing,Environmental Action (South),Premises,Removal Of Workplace Waste,126,10-Feb-2017,1702-00339,0.00,1210.00,R,Acumen Waste Services Ltd,No
Http://opendatacommunities.org/id/metropolitan-district-council/leeds,Leeds City Council,28/02/2017,Environment & Housing,Environmental Action (East North East),Supplies and Services,Bought In Professional Services,277,16-Feb-2017,1702-00340,0.00,110.00,R,Acumen Waste Services Ltd,No
Http://opendatacommunities.org/id/metropolitan-district-council/leeds,Leeds City Council,28/02/2017,Environment & Housing,Environmental Action (East North East),Supplies and Services,Bought In Professional Services,277,16-Feb-2017,1702-00341,0.00,220.00,R,Acumen Waste Services Ltd,No
Http://opendatacommunities.org/id/metropolitan-district-council/leeds,Leeds City Council,28/02/2017,Environment & Housing,Environmental Action (South),Premises,Removal Of Workplace Waste,126,22-Feb-2017,1702-00342,0.00,-345.00,R,Acumen Waste Services Ltd,No
Http://opendatacommunities.org/id/metropolitan-district-council/leeds,Leeds City Council,28/02/2017,Environment & Housing,Environmental Action (South),Premises,Removal Of Workplace Waste,126,22-Feb-2017,1702-00343,0.00,330.00,R,Acumen Waste Services Ltd,No
Http://opendatacommunities.org/id/metropolitan-district-council/leeds,Leeds City Council,28/02/2017,Environment & Housing,Environmental Action (South),Premises,Removal Of Workplace Waste,126,22-Feb-2017,1702-00344,0.00,110.00,R,Acumen Waste Services Ltd,No
Http://opendatacommunities.org/id/metropolitan-district-council/leeds,Leeds City Council,28/02/2017,Environment & Housing,Environmental Action (South),Premises,Removal Of Workplace Waste,126,22-Feb-2017,1702-00345,0.00,220.00,R,Acumen Waste Services Ltd,No
Http://opendatacommunities.org/id/metropolitan-district-council/leeds,Leeds City Council,28/02/2017,Environment & Housing,Environmental Action (South),Premises,Removal Of Workplace Waste,126,22-Feb-2017,1702-00346,0.00,220.00,R,Acumen Waste Services Ltd,No
Http://opendatacommunities.org/id/metropolitan-district-council/leeds,Leeds City Council,28/02/2017,Environment & Housing,Waste Management,Supplies and Services,Recycling & Reuse Charges,234,24-Feb-2017,1702-00347,0.00,5643.41,R,Acumen Waste Services Ltd,No
Http://opendatacommunities.org/id/metropolitan-district-council/leeds,Leeds City Council,28/02/2017,Environment & Housing,Waste Management,Supplies and Services,Recycling & Reuse Charges,234,24-Feb-2017,1702-00348,0.00,5582.44,R,Acumen Waste Services Ltd,No
Http://opendatacommunities.org/id/metropolitan-district-council/leeds,Leeds City Council,28/02/2017,Environment & Housing,Environmental Action (South),Premises,Removal Of Workplace Waste,126,24-Feb-2017,1702-00349,0.00,220.00,R,Acumen Waste Services Ltd,No
Http://opendatacommunities.org/id/metropolitan-district-council/leeds,Leeds City Council,28/02/2017,Environment & Housing,Environmental Action (South),Premises,Removal Of Workplace Waste,126,24-Feb-2017,1702-00350,0.00,220.00,R,Acumen Waste Services Ltd,No
Http://opendatacommunities.org/id/metropolitan-district-council/leeds,Leeds City Council,28/02/2017,Environment & Housing,Waste Management,Supplies and Services,Recycling & Reuse Charges,234,28-Feb-2017,1702-00351,0.00,8247.03,R,Acumen Waste Services Ltd,No
Http://opendatacommunities.org/id/metropolitan-district-council/leeds,Leeds City Council,28/02/2017,Environment & Housing,Parks and Countryside,Supplies and Services,Resaleable Materials,204,17-Feb-2017,1702-00352,0.00,89.70,R,Acushnet Europe Limited,No
Http://opendatacommunities.org/id/metropolitan-district-council/leeds,Leeds City Council,28/02/2017,Civic Enterprise Leeds,Shared Services,Supplies and Services,Other Hired And Contracted Services,265,16-Feb-2017,1702-00353,0.00,96.44,R,Ad3 Envelope Printers Limited,No
Http://opendatacommunities.org/id/metropolitan-district-council/leeds,Leeds City Council,28/02/2017,Civic Enterprise Leeds,Shared Services,Supplies and Services,Operational Materials,205,16-Feb-2017,1702-00354,0.00,645.00,R,Ad3 Envelope Printers Limited,No
Http://opendatacommunities.org/id/metropolitan-district-council/leeds,Leeds City Council,28/02/2017,Childrens Services,Learning Skills & Universal,Supplies and Services,Training Allowances,257,03-Feb-2017,1702-00355,0.00,216.00,R,REDACTED PERSONAL DATA,No
Http://opendatacommunities.org/id/metropolitan-district-council/leeds,Leeds City Council,28/02/2017,Childrens Services,Learning Skills & Universal,Supplies and Services,Training Allowances,257,10-Feb-2017,1702-00356,0.00,216.00,R,REDACTED PERSONAL DATA,No
Http://opendatacommunities.org/id/metropolitan-district-council/leeds,Leeds City Council,28/02/2017,Insurance,Insurance,Supplies and Services,Insurance Claims,248,08-Feb-2017,1702-00357,0.00,4322.60,R,REDACTED PERSONAL DATA,No
Http://opendatacommunities.org/id/metropolitan-district-council/leeds,Leeds City Council,28/02/2017,City Development,Recreation,Income,Swimming Bath Charges,923,14-Feb-2017,1702-00358,0.00,17.10,R,REDACTED PERSONAL DATA,No
Http://opendatacommunities.org/id/metropolitan-district-council/leeds,Leeds City Council,28/02/2017,Childrens Services,Safeguarding Targeted & Specialist,Transfer Payments,Leaving Care Allowances,634,07-Feb-2017,1702-00359,0.00,220.00,R,Adam Walker,No
Http://opendatacommunities.org/id/metropolitan-district-council/leeds,Leeds City Council,28/02/2017,Adult Social Care,Services For Older People - 65 And Over,Third Party Payments,Nursing Home,570,08-Feb-2017,1702-00360,0.00,2120.00,R,Adbolton Hall,No
Http://opendatacommunities.org/id/metropolitan-district-council/leeds,Leeds City Council,28/02/2017,Public Health,Public Health,Third Party Payments,Public Health Commissioned Services,526,27-Feb-2017,1702-00361,0.00,3875.70,R,Addlestone & Partners,No
Http://opendatacommunities.org/id/metropolitan-district-council/leeds,Leeds City Council,28/02/2017,Central & Corporate,Technology ,Employees,Agency Staff,8,19-Jan-2017,1702-00362,,9730.00,R,Adecco Alfred Marks,Yes
Http://opendatacommunities.org/id/metropolitan-district-council/leeds,Leeds City Council,28/02/2017,Central & Corporate,Technology ,Employees,Agency Staff,8,19-Jan-2017,1702-00363,,4140.00,R,Adecco Alfred Marks,Yes
Http://opendatacommunities.org/id/metropolitan-district-council/leeds,Leeds City Council,28/02/2017,Central & Corporate,Technology ,Employees,Agency Staff,8,19-Jan-2017,1702-00364,,1754.33,R,Adecco Alfred Marks,Yes
Http://opendatacommunities.org/id/metropolitan-district-council/leeds,Leeds City Council,28/02/2017,Childrens Services,Learning Skills & Universal,Third Party Payments,Services Rendered By Voluntary Sector,505,17-Feb-2017,1702-00365,0.00,632.67,R,Adel Pre School,No
Http://opendatacommunities.org/id/metropolitan-district-council/leeds,Leeds City Council,28/02/2017,City Development,Recreation,Income,Swimming Bath Charges,923,14-Feb-2017,1702-00366,0.00,18.69,R,REDACTED PERSONAL DATA,No
Http://opendatacommunities.org/id/metropolitan-district-council/leeds,Leeds City Council,28/02/2017,Childrens Services,Learning Skills & Universal,Third Party Payments,Services Rendered By Other Organisations,511,17-Feb-2017,1702-00367,0.00,35.67,R,Adele Thompson,No
Http://opendatacommunities.org/id/metropolitan-district-council/leeds,Leeds City Council,28/02/2017,Adult Social Care,Services For Older People - 65 And Over,Third Party Payments,Residential,580,08-Feb-2017,1702-00368,0.00,1233.08,R,Adeline Lodge,No
Http://opendatacommunities.org/id/metropolitan-district-council/leeds,Leeds City Council,28/02/2017,Central & Corporate,Human Resources,Supplies and Services,Other Hired And Contracted Services,265,13-Feb-2017,1702-00369,0.00,150.00,R,Ademola Akomolafe,No
Http://opendatacommunities.org/id/metropolitan-district-council/leeds,Leeds City Council,28/02/2017,Adult Social Care,Services For Older People - 65 And Over,Third Party Payments,Nursing Home,570,08-Feb-2017,1702-00370,0.00,1136.60,R,Aden House,No
Http://opendatacommunities.org/id/metropolitan-district-council/leeds,Leeds City Council,28/02/2017,Environment & Housing,Leeds Building Services,Supplies and Services,Operational Materials,205,06-Feb-2017,1702-00371,0.00,351.72,R,Adi Global,No
Http://opendatacommunities.org/id/metropolitan-district-council/leeds,Leeds City Council,28/02/2017,Environment & Housing,Leeds Building Services,Supplies and Services,Operational Materials,205,06-Feb-2017,1702-00372,0.00,119.43,R,Adi Global,No
Http://opendatacommunities.org/id/metropolitan-district-council/leeds,Leeds City Council,28/02/2017,Environment & Housing,Leeds Building Services,Supplies and Services,Operational Materials,205,06-Feb-2017,1702-00373,0.00,116.00,R,Adi Global,No
Http://opendatacommunities.org/id/metropolitan-district-council/leeds,Leeds City Council,28/02/2017,Environment & Housing,Leeds Building Services,Supplies and Services,Operational Materials,205,06-Feb-2017,1702-00374,0.00,32.07,R,Adi Global,No
Http://opendatacommunities.org/id/metropolitan-district-council/leeds,Leeds City Council,28/02/2017,Environment & Housing,Leeds Building Services,Supplies and Services,Operational Materials,205,06-Feb-2017,1702-00375,0.00,56.98,R,Adi Global,No
Http://opendatacommunities.org/id/metropolitan-district-council/leeds,Leeds City Council,28/02/2017,Environment & Housing,Community Safety,Supplies and Services,Other Hired And Contracted Services,265,10-Feb-2017,1702-00376,0.00,1675.11,R,Adi Global,No
Http://opendatacommunities.org/id/metropolitan-district-council/leeds,Leeds City Council,28/02/2017,Environment & Housing,Community Safety,Supplies and Services,Other Hired And Contracted Services,265,24-Feb-2017,1702-00377,0.00,3412.96,R,Adi Global,No
Http://opendatacommunities.org/id/metropolitan-district-council/leeds,Leeds City Council,28/02/2017,Environment & Housing,Community Safety ,Supplies and Services,Other Hired And Contracted Services,265,12-Jan-2017,1702-00378,,960.31,R,Adi-Gardiner Ltd,Yes
Http://opendatacommunities.org/id/metropolitan-district-council/leeds,Leeds City Council,28/02/2017,Civic Enterprise Leeds,Commercial Services,Transport,Vehicle Spares,345,03-Feb-2017,1702-00379,0.00,25.00,R,Adm Car Audio,No
Http://opendatacommunities.org/id/metropolitan-district-council/leeds,Leeds City Council,28/02/2017,Insurance,Insurance,Supplies and Services,Insurance Claims,248,09-Feb-2017,1702-00380,0.00,3917.60,R,Admiral Insurance,No
Http://opendatacommunities.org/id/metropolitan-district-council/leeds,Leeds City Council,28/02/2017,Childrens Services,Safeguarding Targeted & Specialist,Third Party Payments,Independent Fostering Agencies,509,03-Feb-2017,1702-00381,0.00,2565.00,R,Adolescent And Childrens Trust,No
Http://opendatacommunities.org/id/metropolitan-district-council/leeds,Leeds City Council,28/02/2017,Childrens Services,Safeguarding Targeted & Specialist,Third Party Payments,Independent Fostering Agencies,509,03-Feb-2017,1702-00382,0.00,2945.00,R,Adolescent And Childrens Trust,No
Http://opendatacommunities.org/id/metropolitan-district-council/leeds,Leeds City Council,28/02/2017,Childrens Services,Safeguarding Targeted & Specialist,Third Party Payments,Independent Fostering Agencies,509,03-Feb-2017,1702-00383,0.00,2945.00,R,Adolescent And Childrens Trust,No
Http://opendatacommunities.org/id/metropolitan-district-council/leeds,Leeds City Council,28/02/2017,Childrens Services,Safeguarding Targeted & Specialist,Third Party Payments,Independent Fostering Agencies,509,03-Feb-2017,1702-00384,0.00,2985.00,R,Adolescent And Childrens Trust,No
Http://opendatacommunities.org/id/metropolitan-district-council/leeds,Leeds City Council,28/02/2017,Childrens Services,Safeguarding Targeted & Specialist,Third Party Payments,Independent Fostering Agencies,509,03-Feb-2017,1702-00385,0.00,3100.00,R,Adolescent And Childrens Trust,No
Http://opendatacommunities.org/id/metropolitan-district-council/leeds,Leeds City Council,28/02/2017,Childrens Services,Safeguarding Targeted & Specialist,Third Party Payments,Independent Fostering Agencies,509,03-Feb-2017,1702-00386,0.00,1100.00,R,Adolescent And Childrens Trust,No
Http://opendatacommunities.org/id/metropolitan-district-council/leeds,Leeds City Council,28/02/2017,Childrens Services,Safeguarding Targeted & Specialist,Supplies and Services,Conference Meetings,253,13-Feb-2017,1702-00387,0.00,871.74,R,Adoption Matters Northwest,No
Http://opendatacommunities.org/id/metropolitan-district-council/leeds,Leeds City Council,28/02/2017,Childrens Services,Safeguarding Targeted & Specialist,Third Party Payments,Placement Support,550,13-Feb-2017,1702-00388,0.00,672.50,R,Adoption Matters Northwest,No
Http://opendatacommunities.org/id/metropolitan-district-council/leeds,Leeds City Council,28/02/2017,Childrens Services,Safeguarding Targeted & Specialist,Third Party Payments,Placement Support,550,13-Feb-2017,1702-00389,0.00,203.00,R,Adoption Matters Northwest,No
Http://opendatacommunities.org/id/metropolitan-district-council/leeds,Leeds City Council,28/02/2017,Childrens Services,Safeguarding Targeted & Specialist,Third Party Payments,Placement Support,550,13-Feb-2017,1702-00390,0.00,120.00,R,Adoption Matters Northwest,No
Http://opendatacommunities.org/id/metropolitan-district-council/leeds,Leeds City Council,28/02/2017,Childrens Services,Safeguarding Targeted & Specialist,Third Party Payments,Placement Support,550,14-Feb-2017,1702-00391,0.00,4903.15,R,Adoption Matters Northwest,No
Http://opendatacommunities.org/id/metropolitan-district-council/leeds,Leeds City Council,28/02/2017,Strategic Landlord,Housing Management,Premises,Premises Security Services,162,14-Feb-2017,1702-00392,0.00,143.56,R,Adt Fire And Security Plc,No
Http://opendatacommunities.org/id/metropolitan-district-council/leeds,Leeds City Council,28/02/2017,Strategic Landlord,Housing Management,Premises,Premises Security Services,162,14-Feb-2017,1702-00393,0.00,194.00,R,Adt Fire And Security Plc,No
Http://opendatacommunities.org/id/metropolitan-district-council/leeds,Leeds City Council,28/02/2017,Strategic Landlord,Housing Management,Premises,Premises Security Services,162,21-Feb-2017,1702-00394,0.00,135.00,R,Adt Fire And Security Plc,No
Http://opendatacommunities.org/id/metropolitan-district-council/leeds,Leeds City Council,28/02/2017,Environment & Housing,Leeds Building Services,Supplies and Services,Other Hired And Contracted Services,265,27-Feb-2017,1702-00395,0.00,296.60,R,Adt Fire And Security Plc,No
Http://opendatacommunities.org/id/metropolitan-district-council/leeds,Leeds City Council as Accountable Body,28/02/2017,Social Services Pooled Budgets,Jcs For People With Learning Disabilitie,Third Party Payments,Sheltered Accommodation,569,24-Feb-2017,1702-00396,0.00,1332.20,R,Adult Placement Services,No
Http://opendatacommunities.org/id/metropolitan-district-council/leeds,Leeds City Council as Accountable Body,28/02/2017,Social Services Pooled Budgets,Jcs For People With Learning Disabilitie,Third Party Payments,Sheltered Accommodation,569,24-Feb-2017,1702-00397,0.00,1332.20,R,Adult Placement Services,No
Http://opendatacommunities.org/id/metropolitan-district-council/leeds,Leeds City Council as Accountable Body,28/02/2017,Social Services Pooled Budgets,Jcs For People With Learning Disabilitie,Third Party Payments,Sheltered Accommodation,569,24-Feb-2017,1702-00398,0.00,169.50,R,Adult Placement Services,No
Http://opendatacommunities.org/id/metropolitan-district-council/leeds,Leeds City Council,28/02/2017,Adult Social Care,Services For Adults Under 65 Mental/Dis,Third Party Payments,Nursing Home,570,08-Feb-2017,1702-00399,0.00,1541.96,R,Adult Supported Living Ltd,No
Http://opendatacommunities.org/id/metropolitan-district-council/leeds,Leeds City Council,28/02/2017,City Development,Libraries  Arts & Heritage,Supplies and Services,External Audit Fees,261,03-Feb-2017,1702-00400,0.00,85.00,R,Advance Stocks Ltd,No
Http://opendatacommunities.org/id/metropolitan-district-council/leeds,Leeds City Council,28/02/2017,City Development,Recreation,Supplies and Services,External Audit Fees,261,08-Feb-2017,1702-00401,0.00,235.00,R,Advance Stocks Ltd,No
Http://opendatacommunities.org/id/metropolitan-district-council/leeds,Leeds City Council,28/02/2017,City Development,Recreation,Supplies and Services,External Audit Fees,261,08-Feb-2017,1702-00402,0.00,85.00,R,Advance Stocks Ltd,No
Http://opendatacommunities.org/id/metropolitan-district-council/leeds,Leeds City Council,28/02/2017,City Development,Libraries  Arts & Heritage,Supplies and Services,External Audit Fees,261,08-Feb-2017,1702-00403,0.00,85.00,R,Advance Stocks Ltd,No
Http://opendatacommunities.org/id/metropolitan-district-council/leeds,Leeds City Council,28/02/2017,City Development,Libraries  Arts & Heritage,Supplies and Services,External Audit Fees,261,17-Feb-2017,1702-00404,0.00,85.00,R,Advance Stocks Ltd,No
Http://opendatacommunities.org/id/metropolitan-district-council/leeds,Leeds City Council,28/02/2017,City Development,Libraries  Arts & Heritage,Supplies and Services,External Audit Fees,261,17-Feb-2017,1702-00405,0.00,85.00,R,Advance Stocks Ltd,No
Http://opendatacommunities.org/id/metropolitan-district-council/leeds,Leeds City Council,28/02/2017,Citizens and Communities,Communities,Support Services,Legal Disbursements,411,16-Feb-2017,1702-00406,0.00,318.87,R,Advanced Child Care Assessments Ltd,No
Http://opendatacommunities.org/id/metropolitan-district-council/leeds,Leeds City Council,28/02/2017,Adult Social Care,Home Care Services,Supplies and Services,Telephones,213,24-Feb-2017,1702-00407,0.00,2500.00,R,Advanced Health And Care Ltd,No
Http://opendatacommunities.org/id/metropolitan-district-council/leeds,Leeds City Council,28/02/2017,City Development,Economic Development,Supplies and Services,Grants To Businesses,243,10-Feb-2017,1702-00408,0.00,4537.72,R,Adventure Photography Ltd,No
Http://opendatacommunities.org/id/metropolitan-district-council/leeds,Leeds City Council,28/02/2017,City Development,Economic Development,Supplies and Services,Grants To Businesses,243,24-Feb-2017,1702-00409,0.00,2961.18,R,Adventure Photography Ltd,No
Http://opendatacommunities.org/id/metropolitan-district-council/leeds,Leeds City Council as Accountable Body,28/02/2017,Social Services Pooled Budgets,Jcs For People With Learning Disabilitie,Third Party Payments,Residential,580,08-Feb-2017,1702-00410,0.00,20214.24,R,Advitam Ltd,No
Http://opendatacommunities.org/id/metropolitan-district-council/leeds,Leeds City Council,28/02/2017,Adult Social Care,Services For Older People - 65 And Over,Third Party Payments,Payments To Voluntary Organisations,561,15-Feb-2017,1702-00411,0.00,83435.70,R,Advonet,No
Http://opendatacommunities.org/id/metropolitan-district-council/leeds,Leeds City Council,28/02/2017,Childrens Services,Safeguarding Targeted & Specialist,Support Services,Legal Disbursements,411,24-Feb-2017,1702-00412,0.00,94.20,R,Advonet,No
Http://opendatacommunities.org/id/metropolitan-district-council/leeds,Leeds City Council,28/02/2017,Adult Social Care,Services For Adults Under 65 Mental/Dis,Third Party Payments,Payments To Voluntary Organisations,561,24-Feb-2017,1702-00413,0.00,6618.98,R,Advonet,No
Http://opendatacommunities.org/id/metropolitan-district-council/leeds,Leeds City Council,28/02/2017,Adult Social Care,Services For Adults Under 65 Mental/Dis,Third Party Payments,Payments To Voluntary Organisations,561,24-Feb-2017,1702-00414,0.00,7862.64,R,Advonet,No
Http://opendatacommunities.org/id/metropolitan-district-council/leeds,Leeds City Council,28/02/2017,Adult Social Care,Services For Adults Under 65 Mental/Dis,Third Party Payments,Payments To Voluntary Organisations,561,24-Feb-2017,1702-00415,0.00,2682.54,R,Advonet,No
Http://opendatacommunities.org/id/metropolitan-district-council/leeds,Leeds City Council,28/02/2017,City Development,Economic Development,Capital,Other Costs,7,03-Feb-2017,1702-00416,0.00,7000.00,C,Aecom Limited,No
Http://opendatacommunities.org/id/metropolitan-district-council/leeds,Leeds City Council as Accountable Body,28/02/2017,Social Services Pooled Budgets,Jcs For People With Learning Disabilitie,Third Party Payments,Home Care,568,08-Feb-2017,1702-00417,0.00,476.16,R,Affinity Trust,No
Http://opendatacommunities.org/id/metropolitan-district-council/leeds,Leeds City Council,28/02/2017,Adult Social Care,Services For Older People Under 65 P/Dis,Third Party Payments,Home Care,568,10-Feb-2017,1702-00418,0.00,526.68,R,Affinity Trust,No
Http://opendatacommunities.org/id/metropolitan-district-council/leeds,Leeds City Council,28/02/2017,Adult Social Care,Services For Older People Under 65 P/Dis,Third Party Payments,Home Care,568,10-Feb-2017,1702-00419,0.00,671.16,R,Affinity Trust,No
Http://opendatacommunities.org/id/metropolitan-district-council/leeds,Leeds City Council,28/02/2017,Adult Social Care,Services For Older People Under 65 P/Dis,Third Party Payments,Home Care,568,10-Feb-2017,1702-00420,0.00,134.56,R,Affinity Trust,No
Http://opendatacommunities.org/id/metropolitan-district-council/leeds,Leeds City Council,28/02/2017,Adult Social Care,Services For Older People Under 65 P/Dis,Third Party Payments,Home Care,568,10-Feb-2017,1702-00421,0.00,386.86,R,Affinity Trust,No
Http://opendatacommunities.org/id/metropolitan-district-council/leeds,Leeds City Council as Accountable Body,28/02/2017,Social Services Pooled Budgets,Jcs For People With Learning Disabilitie,Third Party Payments,Sheltered Accommodation,569,08-Feb-2017,1702-00422,0.00,169486.39,R,Affinity Trust North Divisional Office,No
Http://opendatacommunities.org/id/metropolitan-district-council/leeds,Leeds City Council,28/02/2017,Environment & Housing,SP Contracts & SECC,Third Party Payments,Supporting Ppl - Block Gross Chargeable,514,17-Feb-2017,1702-00423,0.00,6643.30,R,Age Uk Leeds Enterprises,No
Http://opendatacommunities.org/id/metropolitan-district-council/leeds,Leeds City Council,28/02/2017,City Development,Libraries  Arts & Heritage,Supplies and Services,Bought In Professional Services,277,23-Feb-2017,1702-00424,0.00,1250.00,R,Agere Learning,No
Http://opendatacommunities.org/id/metropolitan-district-council/leeds,Leeds City Council,28/02/2017,Childrens Services,Safeguarding Targeted & Specialist,Supplies and Services,Compensation Claims,200,14-Feb-2017,1702-00425,0.00,300.00,R,REDACTED PERSONAL DATA,No
Http://opendatacommunities.org/id/metropolitan-district-council/leeds,Leeds City Council,28/02/2017,Adult Social Care,Services For Older People Under 65 P/Dis,Third Party Payments,Residential,580,08-Feb-2017,1702-00426,0.00,3364.49,R,Agricola House,No
Http://opendatacommunities.org/id/metropolitan-district-council/leeds,Leeds City Council,28/02/2017,City Development,Asset Management Services ,Supplies and Services,Books & Audio-Visual Materials,206,13-Jan-2017,1702-00427,,47.00,R,Agro Business Consults,Yes
Http://opendatacommunities.org/id/metropolitan-district-council/leeds,Leeds City Council,28/02/2017,Childrens Services,Learning Skills & Universal,Supplies and Services,Teaching Materials,202,17-Feb-2017,1702-00428,0.00,43.44,R,Aid Training & Operations Ltd,No
Http://opendatacommunities.org/id/metropolitan-district-council/leeds,Leeds City Council,28/02/2017,Childrens Services,Learning Skills & Universal,Employees,Training Costs,71,17-Feb-2017,1702-00429,0.00,1190.00,R,Aid Training & Operations Ltd,No
Http://opendatacommunities.org/id/metropolitan-district-council/leeds,Leeds City Council,28/02/2017,Childrens Services,Learning Skills & Universal,Supplies and Services,Training Allowances,257,03-Feb-2017,1702-00430,0.00,93.60,R,REDACTED PERSONAL DATA,No
Http://opendatacommunities.org/id/metropolitan-district-council/leeds,Leeds City Council as Accountable Body,28/02/2017,Social Services Pooled Budgets,Leeds Community Equip Store Pooled Budgt,Supplies and Services,Other Equipment,203,03-Feb-2017,1702-00431,0.00,3841.50,R,Aidapt Bathrooms Ltd,No
Http://opendatacommunities.org/id/metropolitan-district-council/leeds,Leeds City Council as Accountable Body,28/02/2017,Social Services Pooled Budgets,Leeds Community Equip Store Pooled Budgt,Supplies and Services,Other Equipment,203,03-Feb-2017,1702-00432,0.00,538.50,R,Aidapt Bathrooms Ltd,No
Http://opendatacommunities.org/id/metropolitan-district-council/leeds,Leeds City Council as Accountable Body,28/02/2017,Social Services Pooled Budgets,Leeds Community Equip Store Pooled Budgt,Supplies and Services,Other Equipment,203,10-Feb-2017,1702-00433,0.00,860.00,R,Aidapt Bathrooms Ltd,No
Http://opendatacommunities.org/id/metropolitan-district-council/leeds,Leeds City Council as Accountable Body,28/02/2017,Social Services Pooled Budgets,Leeds Community Equip Store Pooled Budgt,Supplies and Services,Other Equipment,203,22-Feb-2017,1702-00434,0.00,2028.50,R,Aidapt Bathrooms Ltd,No
Http://opendatacommunities.org/id/metropolitan-district-council/leeds,Leeds City Council as Accountable Body,28/02/2017,Social Services Pooled Budgets,Jcs For People With Learning Disabilitie,Supplies and Services,Other Equipment,203,03-Feb-2017,1702-00435,0.00,449.00,R,Aidservice Ltd,No
Http://opendatacommunities.org/id/metropolitan-district-council/leeds,Leeds City Council,28/02/2017,Citizens and Communities,Communities,Supplies and Services,'Well Being' Large Grants Projects,230,17-Feb-2017,1702-00436,0.00,1038.00,R,Aim Education Leeds Limited,No
Http://opendatacommunities.org/id/metropolitan-district-council/leeds,Leeds City Council,28/02/2017,Citizens and Communities,Communities,Supplies and Services,'Well Being' Large Grants Projects,230,24-Feb-2017,1702-00437,0.00,4150.00,R,Aim Education Leeds Limited,No
Http://opendatacommunities.org/id/metropolitan-district-council/leeds,Leeds City Council,28/02/2017,Environment & Housing,Leeds Building Services,Supplies and Services,Operational Materials,205,06-Feb-2017,1702-00438,0.00,690.05,R,Air Conditioning Accessories,No
Http://opendatacommunities.org/id/metropolitan-district-council/leeds,Leeds City Council,28/02/2017,Environment & Housing,Leeds Building Services,Supplies and Services,Operational Materials,205,06-Feb-2017,1702-00439,0.00,34.38,R,Air Conditioning Accessories,No
Http://opendatacommunities.org/id/metropolitan-district-council/leeds,Leeds City Council,28/02/2017,Environment & Housing,Leeds Building Services,Supplies and Services,Operational Materials,205,06-Feb-2017,1702-00440,0.00,1335.37,R,Air Conditioning Accessories,No
Http://opendatacommunities.org/id/metropolitan-district-council/leeds,Leeds City Council,28/02/2017,Environment & Housing,Leeds Building Services,Supplies and Services,Operational Materials,205,07-Feb-2017,1702-00441,0.00,25.81,R,Air Conditioning Accessories,No
Http://opendatacommunities.org/id/metropolitan-district-council/leeds,Leeds City Council,28/02/2017,Environment & Housing,Leeds Building Services,Supplies and Services,Operational Materials,205,07-Feb-2017,1702-00442,0.00,233.72,R,Air Conditioning Accessories,No
Http://opendatacommunities.org/id/metropolitan-district-council/leeds,Leeds City Council,28/02/2017,Environment & Housing,Leeds Building Services,Supplies and Services,Operational Materials,205,10-Feb-2017,1702-00443,0.00,17.59,R,Air Conditioning Accessories,No
Http://opendatacommunities.org/id/metropolitan-district-council/leeds,Leeds City Council,28/02/2017,Environment & Housing,Leeds Building Services,Supplies and Services,Operational Materials,205,21-Feb-2017,1702-00444,0.00,19.49,R,Air Conditioning Accessories,No
Http://opendatacommunities.org/id/metropolitan-district-council/leeds,Leeds City Council,28/02/2017,Environment & Housing,Leeds Building Services,Supplies and Services,Operational Materials,205,24-Feb-2017,1702-00445,0.00,16.77,R,Air Conditioning Accessories,No
Http://opendatacommunities.org/id/metropolitan-district-council/leeds,Leeds City Council,28/02/2017,Environment & Housing,Leeds Building Services,Supplies and Services,Operational Materials,205,24-Feb-2017,1702-00446,0.00,609.74,R,Air Conditioning Accessories,No
Http://opendatacommunities.org/id/metropolitan-district-council/leeds,Leeds City Council,28/02/2017,Environment & Housing,Leeds Building Services,Supplies and Services,Operational Materials,205,28-Feb-2017,1702-00447,0.00,65.73,R,Air Conditioning Accessories,No
Http://opendatacommunities.org/id/metropolitan-district-council/leeds,Leeds City Council,28/02/2017,Environment & Housing,Leeds Building Services,Supplies and Services,Operational Materials,205,28-Feb-2017,1702-00448,0.00,85.80,R,Air Conditioning Accessories,No
Http://opendatacommunities.org/id/metropolitan-district-council/leeds,Leeds City Council,28/02/2017,Environment & Housing,Environmental Health,Supplies and Services,Operational Furniture And Equipment,203,01-Feb-2017,1702-00449,0.00,71.52,R,Air Liquide Uk,No
Http://opendatacommunities.org/id/metropolitan-district-council/leeds,Leeds City Council,28/02/2017,Environment & Housing,Leeds Building Services,Supplies and Services,Operational Materials,205,06-Feb-2017,1702-00450,0.00,152.40,R,Air Liquide Uk,No
Http://opendatacommunities.org/id/metropolitan-district-council/leeds,Leeds City Council,28/02/2017,Environment & Housing,Environmental Health,Supplies and Services,Operational Furniture And Equipment,203,09-Feb-2017,1702-00451,0.00,13.63,R,Air Liquide Uk,No
Http://opendatacommunities.org/id/metropolitan-district-council/leeds,Leeds City Council,28/02/2017,Environment & Housing,Leeds Building Services,Supplies and Services,Operational Materials,205,24-Feb-2017,1702-00452,0.00,159.72,R,Air Liquide Uk,No
Http://opendatacommunities.org/id/metropolitan-district-council/leeds,Leeds City Council,28/02/2017,Environment & Housing,Parks and Countryside,Supplies and Services,Operational Furniture And Equipment,203,10-Feb-2017,1702-00453,0.00,236.00,R,Air Solutions (Leeds) Ltd,No
Http://opendatacommunities.org/id/metropolitan-district-council/leeds,Leeds City Council,28/02/2017,Childrens Services,Safeguarding Targeted & Specialist ,Third Party Payments,Rents (non supported),552,06-Jan-2017,1702-00454,,1052.00,R,Airbnb,Yes
Http://opendatacommunities.org/id/metropolitan-district-council/leeds,Leeds City Council,28/02/2017,Adult Social Care,Services For Adults Under 65 Mental/Dis,Third Party Payments,Residential,580,08-Feb-2017,1702-00455,0.00,6028.00,R,Aire House,No
Http://opendatacommunities.org/id/metropolitan-district-council/leeds,Leeds City Council as Accountable Body,28/02/2017,Social Services Pooled Budgets,Jcs For People With Learning Disabilitie,Third Party Payments,Residential,580,08-Feb-2017,1702-00456,0.00,3059.84,R,Aire House,No
Http://opendatacommunities.org/id/metropolitan-district-council/leeds,Leeds City Council,28/02/2017,City Development,Libraries  Arts & Heritage,Supplies and Services,Operational Furniture And Equipment,203,09-Feb-2017,1702-00457,0.00,108.57,R,Aire Valley Gas Ltd,No
Http://opendatacommunities.org/id/metropolitan-district-council/leeds,Leeds City Council,28/02/2017,Adult Social Care,Services For Older People - 65 And Over,Third Party Payments,Residential Care Dementia,571,08-Feb-2017,1702-00458,0.00,55877.30,R,Aire View Residential Home,No
Http://opendatacommunities.org/id/metropolitan-district-council/leeds,Leeds City Council,28/02/2017,Adult Social Care,Services For Older People - 65 And Over,Third Party Payments,Residential,580,08-Feb-2017,1702-00459,0.00,7411.20,R,Aire View Residential Home,No
Http://opendatacommunities.org/id/metropolitan-district-council/leeds,Leeds City Council,28/02/2017,City Development,Asset Management Services,Capital,Other Costs,7,17-Feb-2017,1702-00460,0.00,19298.33,C,Airebank Developments Ltd,No
Http://opendatacommunities.org/id/metropolitan-district-council/leeds,Leeds City Council,28/02/2017,Public Health,Public Health,Third Party Payments,Public Health Commissioned Services,526,27-Feb-2017,1702-00461,0.00,2776.85,R,Aireborough Family Practice,No
Http://opendatacommunities.org/id/metropolitan-district-council/leeds,Leeds City Council,28/02/2017,Citizens and Communities,Communities,Supplies and Services,'Well Being' Large Grants Projects,230,21-Feb-2017,1702-00462,0.00,6394.00,R,Aireborough Supported Activities Scheme,No
Http://opendatacommunities.org/id/metropolitan-district-council/leeds,Leeds City Council,28/02/2017,Adult Social Care,Services For Older People - 65 And Over,Third Party Payments,Residential Care Dementia,571,08-Feb-2017,1702-00463,0.00,3550.84,R,Airedale (Goldsborough),No
Http://opendatacommunities.org/id/metropolitan-district-council/leeds,Leeds City Council,28/02/2017,Adult Social Care,Services For Older People - 65 And Over,Third Party Payments,Residential,580,08-Feb-2017,1702-00464,0.00,30318.36,R,Airedale (Goldsborough),No
Http://opendatacommunities.org/id/metropolitan-district-council/leeds,Leeds City Council,28/02/2017,Adult Social Care,Services For Older People Under 65 P/Dis,Third Party Payments,Residential,580,08-Feb-2017,1702-00465,0.00,1999.68,R,Airedale (Goldsborough),No
Http://opendatacommunities.org/id/metropolitan-district-council/leeds,Leeds City Council,28/02/2017,Civic Enterprise Leeds,Commercial Services,Supplies and Services,Operational Materials,205,03-Feb-2017,1702-00466,0.00,218.00,R,Airedale Catering Equipment Ltd,No
Http://opendatacommunities.org/id/metropolitan-district-council/leeds,Leeds City Council,28/02/2017,Civic Enterprise Leeds,Commercial Services,Supplies and Services,Operational Materials,205,22-Feb-2017,1702-00467,0.00,-218.00,R,Airedale Catering Equipment Ltd,No
Http://opendatacommunities.org/id/metropolitan-district-council/leeds,Leeds City Council,28/02/2017,Civic Enterprise Leeds,Commercial Services,Supplies and Services,Operational Materials,205,22-Feb-2017,1702-00468,0.00,218.00,R,Airedale Catering Equipment Ltd,No
Http://opendatacommunities.org/id/metropolitan-district-council/leeds,Leeds City Council,28/02/2017,Adult Social Care,Assessment And Care Management,Employees,Training Costs,71,03-Feb-2017,1702-00469,0.00,120.00,R,Airedale Community Trading (Act) Ltd,No
Http://opendatacommunities.org/id/metropolitan-district-council/leeds,Leeds City Council,28/02/2017,City Development,Economic Development,Supplies and Services,Grants To Businesses,243,24-Feb-2017,1702-00470,0.00,35715.00,R,Airedale House Ltd,No
Http://opendatacommunities.org/id/metropolitan-district-council/leeds,Leeds City Council,28/02/2017,Childrens Services,Safeguarding Targeted & Specialist,Supplies and Services,Conference Meetings,253,10-Feb-2017,1702-00471,0.00,30.00,R,Airedale Methodist Church,No
Http://opendatacommunities.org/id/metropolitan-district-council/leeds,Leeds City Council,28/02/2017,Environment & Housing,Community Safety,Supplies and Services,Bought In Professional Services,277,08-Feb-2017,1702-00472,0.00,787.56,R,Airwave Solutions Ltd,No
Http://opendatacommunities.org/id/metropolitan-district-council/leeds,Leeds City Council,28/02/2017,Civic Enterprise Leeds,Commercial Services,Supplies and Services,Other Hired And Contracted Services,265,15-Feb-2017,1702-00473,0.00,225.00,R,Air-Weigh Europe Limited,No
Http://opendatacommunities.org/id/metropolitan-district-council/leeds,Leeds City Council,28/02/2017,Adult Social Care,Services For Adults Under 65 Mental/Dis,Third Party Payments,Fees - Level 4,520,08-Feb-2017,1702-00474,0.00,175.00,R,Ait Mitra,No
Http://opendatacommunities.org/id/metropolitan-district-council/leeds,Leeds City Council,28/02/2017,Adult Social Care,Services For Adults Under 65 Mental/Dis,Third Party Payments,Fees - Level 4,520,08-Feb-2017,1702-00475,0.00,175.00,R,Ait Mitra,No
Http://opendatacommunities.org/id/metropolitan-district-council/leeds,Leeds City Council,28/02/2017,Adult Social Care,Services For Adults Under 65 Mental/Dis,Third Party Payments,Fees - Level 4,520,08-Feb-2017,1702-00476,0.00,175.00,R,Ait Mitra,No
Http://opendatacommunities.org/id/metropolitan-district-council/leeds,Leeds City Council,28/02/2017,Adult Social Care,Services For Adults Under 65 Mental/Dis,Third Party Payments,Fees - Level 4,520,08-Feb-2017,1702-00477,0.00,175.00,R,Ait Mitra,No
Http://opendatacommunities.org/id/metropolitan-district-council/leeds,Leeds City Council,28/02/2017,Adult Social Care,Services For Adults Under 65 Mental/Dis,Third Party Payments,Fees - Level 4,520,08-Feb-2017,1702-00478,0.00,175.00,R,Ait Mitra,No
Http://opendatacommunities.org/id/metropolitan-district-council/leeds,Leeds City Council,28/02/2017,Adult Social Care,Services For Adults Under 65 Mental/Dis,Third Party Payments,Fees - Level 4,520,08-Feb-2017,1702-00479,0.00,175.00,R,Ait Mitra,No
Http://opendatacommunities.org/id/metropolitan-district-council/leeds,Leeds City Council,28/02/2017,Adult Social Care,Services For Adults Under 65 Mental/Dis,Third Party Payments,Fees - Level 4,520,08-Feb-2017,1702-00480,0.00,239.50,R,Ait Mitra,No
Http://opendatacommunities.org/id/metropolitan-district-council/leeds,Leeds City Council,28/02/2017,Adult Social Care,Services For Adults Under 65 Mental/Dis,Third Party Payments,Fees - Level 4,520,27-Feb-2017,1702-00481,0.00,175.00,R,Ait Mitra,No
Http://opendatacommunities.org/id/metropolitan-district-council/leeds,Leeds City Council as Accountable Body,28/02/2017,Social Services Pooled Budgets,Jcs For People With Learning Disabilitie,Third Party Payments,Residential,580,08-Feb-2017,1702-00482,0.00,6173.24,R,Aitch Care Homes,No
Http://opendatacommunities.org/id/metropolitan-district-council/leeds,Leeds City Council,28/02/2017,City Development,Recreation,Supplies and Services,Operational Materials,205,08-Feb-2017,1702-00483,0.00,140.00,R,Aitkens Sportsturf Ltd,No
Http://opendatacommunities.org/id/metropolitan-district-council/leeds,Leeds City Council,28/02/2017,Environment & Housing,Housing Leeds Service,Capital,Other Costs,7,16-Feb-2017,1702-00484,0.00,350.00,C,REDACTED PERSONAL DATA,No
Http://opendatacommunities.org/id/metropolitan-district-council/leeds,Leeds City Council,28/02/2017,Civic Enterprise Leeds,Commercial Services,Supplies and Services,Other Hired And Contracted Services,265,16-Feb-2017,1702-00485,0.00,675.00,R,REDACTED PERSONAL DATA,No
Http://opendatacommunities.org/id/metropolitan-district-council/leeds,Leeds City Council,28/02/2017,Adult Social Care,Services For Older People - 65 And Over,Third Party Payments,Home Care,568,03-Feb-2017,1702-00486,0.00,6924.01,R,Aj Social Care,No
Http://opendatacommunities.org/id/metropolitan-district-council/leeds,Leeds City Council,28/02/2017,Adult Social Care,Services For Older People Under 65 P/Dis,Third Party Payments,Home Care,568,03-Feb-2017,1702-00487,0.00,12101.76,R,Aj Social Care,No
Http://opendatacommunities.org/id/metropolitan-district-council/leeds,Leeds City Council,28/02/2017,Adult Social Care,Services For Older People - 65 And Over,Third Party Payments,Home Care,568,13-Feb-2017,1702-00488,0.00,2680.92,R,Aj Social Care,No
Http://opendatacommunities.org/id/metropolitan-district-council/leeds,Leeds City Council,28/02/2017,Adult Social Care,Services For Older People Under 65 P/Dis,Third Party Payments,Home Care,568,13-Feb-2017,1702-00489,0.00,1789.76,R,Aj Social Care,No
Http://opendatacommunities.org/id/metropolitan-district-council/leeds,Leeds City Council as Accountable Body,28/02/2017,Environment & Housing,Leeds Building Services,Supplies and Services,Stores - Central And Other Depots,005,10-Feb-2017,1702-00490,0.00,559.02,R,Ajm Fixings & Power Tools Ltd,No
Http://opendatacommunities.org/id/metropolitan-district-council/leeds,Leeds City Council,28/02/2017,Environment & Housing,Leeds Building Services,Supplies and Services,Operational Materials,205,10-Feb-2017,1702-00491,0.00,34.32,R,Ajm Fixings & Power Tools Ltd,No
Http://opendatacommunities.org/id/metropolitan-district-council/leeds,Leeds City Council as Accountable Body,28/02/2017,Environment & Housing,Leeds Building Services,Supplies and Services,Stores - Central And Other Depots,005,10-Feb-2017,1702-00492,0.00,458.00,R,Ajm Fixings & Power Tools Ltd,No
Http://opendatacommunities.org/id/metropolitan-district-council/leeds,Leeds City Council,28/02/2017,Environment & Housing,Leeds Building Services,Supplies and Services,Operational Furniture And Equipment,203,10-Feb-2017,1702-00493,0.00,2512.00,R,Ajm Fixings & Power Tools Ltd,No
Http://opendatacommunities.org/id/metropolitan-district-council/leeds,Leeds City Council,28/02/2017,Environment & Housing,Leeds Building Services,Supplies and Services,Operational Furniture And Equipment,203,10-Feb-2017,1702-00494,0.00,430.00,R,Ajm Fixings & Power Tools Ltd,No
Http://opendatacommunities.org/id/metropolitan-district-council/leeds,Leeds City Council,28/02/2017,Environment & Housing,Leeds Building Services,Supplies and Services,Operational Furniture And Equipment,203,10-Feb-2017,1702-00495,0.00,55.00,R,Ajm Fixings & Power Tools Ltd,No
Http://opendatacommunities.org/id/metropolitan-district-council/leeds,Leeds City Council,28/02/2017,Environment & Housing,Leeds Building Services,Supplies and Services,Operational Furniture And Equipment,203,10-Feb-2017,1702-00496,0.00,349.00,R,Ajm Fixings & Power Tools Ltd,No
Http://opendatacommunities.org/id/metropolitan-district-council/leeds,Leeds City Council,28/02/2017,Environment & Housing,Leeds Building Services,Supplies and Services,Operational Furniture And Equipment,203,10-Feb-2017,1702-00497,0.00,229.00,R,Ajm Fixings & Power Tools Ltd,No
Http://opendatacommunities.org/id/metropolitan-district-council/leeds,Leeds City Council,28/02/2017,Environment & Housing,Leeds Building Services,Supplies and Services,Operational Furniture And Equipment,203,17-Feb-2017,1702-00498,0.00,110.00,R,Ajm Fixings & Power Tools Ltd,No
Http://opendatacommunities.org/id/metropolitan-district-council/leeds,Leeds City Council as Accountable Body,28/02/2017,Environment & Housing,Leeds Building Services,Supplies and Services,Stores - Central And Other Depots,005,17-Feb-2017,1702-00499,0.00,38.50,R,Ajm Fixings & Power Tools Ltd,No
Http://opendatacommunities.org/id/metropolitan-district-council/leeds,Leeds City Council,28/02/2017,Environment & Housing,Leeds Building Services,Supplies and Services,Operational Furniture And Equipment,203,24-Feb-2017,1702-00500,0.00,38.64,R,Ajm Fixings & Power Tools Ltd,No
Http://opendatacommunities.org/id/metropolitan-district-council/leeds,Leeds City Council,28/02/2017,Environment & Housing,Leeds Building Services,Supplies and Services,Operational Furniture And Equipment,203,24-Feb-2017,1702-00501,0.00,259.77,R,Ajm Fixings & Power Tools Ltd,No
Http://opendatacommunities.org/id/metropolitan-district-council/leeds,Leeds City Council,28/02/2017,Environment & Housing,Leeds Building Services,Supplies and Services,Operational Furniture And Equipment,203,24-Feb-2017,1702-00502,0.00,299.00,R,Ajm Fixings & Power Tools Ltd,No
Http://opendatacommunities.org/id/metropolitan-district-council/leeds,Leeds City Council,28/02/2017,Environment & Housing,Leeds Building Services,Supplies and Services,Operational Furniture And Equipment,203,24-Feb-2017,1702-00503,0.00,78.48,R,Ajm Fixings & Power Tools Ltd,No
Http://opendatacommunities.org/id/metropolitan-district-council/leeds,Leeds City Council,28/02/2017,Environment & Housing,Leeds Building Services,Supplies and Services,Operational Furniture And Equipment,203,24-Feb-2017,1702-00504,0.00,114.40,R,Ajm Fixings & Power Tools Ltd,No
Http://opendatacommunities.org/id/metropolitan-district-council/leeds,Leeds City Council,28/02/2017,Environment & Housing,Leeds Building Services,Supplies and Services,Operational Furniture And Equipment,203,24-Feb-2017,1702-00505,0.00,224.82,R,Ajm Fixings & Power Tools Ltd,No
Http://opendatacommunities.org/id/metropolitan-district-council/leeds,Leeds City Council,28/02/2017,Adult Social Care,Services For Older People - 65 And Over,Third Party Payments,Nursing Home,570,08-Feb-2017,1702-00506,0.00,1261.04,R,Akari Care Ltd,No
Http://opendatacommunities.org/id/metropolitan-district-council/leeds,Leeds City Council,28/02/2017,Adult Social Care,Social Services Support Services,Employees,Training & Development,70,08-Feb-2017,1702-00507,0.00,7500.00,R,Akd Solutions Ltd,No
Http://opendatacommunities.org/id/metropolitan-district-council/leeds,Leeds City Council,28/02/2017,Civic Enterprise Leeds,Commercial Services,Premises,Plant and Machinery,102,08-Feb-2017,1702-00508,0.00,670.20,R,Akua Uk Ltd,No
Http://opendatacommunities.org/id/metropolitan-district-council/leeds,Leeds City Council,28/02/2017,Civic Enterprise Leeds,Commercial Services,Premises,Plant and Machinery,102,08-Feb-2017,1702-00509,0.00,258.60,R,Akua Uk Ltd,No
Http://opendatacommunities.org/id/metropolitan-district-council/leeds,Leeds City Council,28/02/2017,Environment & Housing,Leeds Building Services,Supplies and Services,Operational Materials,205,20-Feb-2017,1702-00510,0.00,52.57,R,Akw Medicare Ltd,No
Http://opendatacommunities.org/id/metropolitan-district-council/leeds,Leeds City Council,28/02/2017,Environment & Housing,Leeds Building Services,Supplies and Services,Operational Materials,205,24-Feb-2017,1702-00511,0.00,52.57,R,Akw Medicare Ltd,No
Http://opendatacommunities.org/id/metropolitan-district-council/leeds,Leeds City Council,28/02/2017,Environment & Housing,Leeds Building Services,Supplies and Services,Operational Materials,205,24-Feb-2017,1702-00512,0.00,214.92,R,Akw Medicare Ltd,No
Http://opendatacommunities.org/id/metropolitan-district-council/leeds,Leeds City Council,28/02/2017,City Development,Libraries  Arts & Heritage ,Supplies and Services,Operational Materials,205,09-Jan-2017,1702-00513,,38.70,R,Akzonobel,Yes
Http://opendatacommunities.org/id/metropolitan-district-council/leeds,Leeds City Council,28/02/2017,City Development,Libraries  Arts & Heritage ,Supplies and Services,Operational Materials,205,09-Jan-2017,1702-00514,,259.48,R,Akzonobel,Yes
Http://opendatacommunities.org/id/metropolitan-district-council/leeds,Leeds City Council,28/02/2017,City Development,Libraries  Arts & Heritage ,Supplies and Services,Operational Materials,205,19-Jan-2017,1702-00515,,23.01,R,Akzonobel,Yes
Http://opendatacommunities.org/id/metropolitan-district-council/leeds,Leeds City Council,28/02/2017,City Development,Libraries  Arts & Heritage ,Supplies and Services,Operational Materials,205,19-Jan-2017,1702-00516,,38.69,R,Akzonobel,Yes
Http://opendatacommunities.org/id/metropolitan-district-council/leeds,Leeds City Council,28/02/2017,City Development,Libraries  Arts & Heritage ,Supplies and Services,Operational Materials,205,28-Jan-2017,1702-00517,,20.72,R,Akzonobel,Yes
Http://opendatacommunities.org/id/metropolitan-district-council/leeds,Leeds City Council,28/02/2017,Central & Corporate,Democratic Services ,Premises,Grounds Maintenance Work,111,05-Jan-2017,1702-00518,,50.00,R,Alan Brown Flowers,Yes
Http://opendatacommunities.org/id/metropolitan-district-council/leeds,Leeds City Council,28/02/2017,Childrens Services,Learning Skills & Universal,Third Party Payments,Services Rendered By Other Organisations,511,17-Feb-2017,1702-00519,0.00,40.33,R,Alanna Cardiss,No
Http://opendatacommunities.org/id/metropolitan-district-council/leeds,Leeds City Council,28/02/2017,Central & Corporate,Strategy and Improvement,Supplies and Services,Memberships,226,02-Feb-2017,1702-00520,0.00,199.00,R,Alarm,No
Http://opendatacommunities.org/id/metropolitan-district-council/leeds,Leeds City Council,28/02/2017,Central & Corporate,Strategy and Improvement,Employees,Training & Development,70,15-Feb-2017,1702-00521,0.00,129.00,R,Alarm,No
Http://opendatacommunities.org/id/metropolitan-district-council/leeds,Leeds City Council,28/02/2017,City Development,Libraries  Arts & Heritage,Supplies and Services,Other Hired And Contracted Services,265,22-Feb-2017,1702-00522,0.00,1500.00,R,Alasdair Beatson,No
Http://opendatacommunities.org/id/metropolitan-district-council/leeds,Leeds City Council,28/02/2017,City Development,Economic Development,Supplies and Services,Computer Software & Equipment,214,01-Feb-2017,1702-00523,0.00,11970.00,R,Alcium Software Ltd,No
Http://opendatacommunities.org/id/metropolitan-district-council/leeds,Leeds City Council,28/02/2017,Childrens Services,Learning Skills & Universal ,Supplies and Services,Food & Drink,231,10-Jan-2017,1702-00524,,26.57,R,Aldi,Yes
Http://opendatacommunities.org/id/metropolitan-district-council/leeds,Leeds City Council,28/02/2017,Childrens Services,Safeguarding Targeted & Specialist ,Supplies and Services,Food & Drink,231,28-Jan-2017,1702-00525,,10.47,R,Aldi,Yes
Http://opendatacommunities.org/id/metropolitan-district-council/leeds,Leeds City Council,28/02/2017,Childrens Services,Safeguarding Targeted & Specialist,Support Services,Legal Disbursements,411,09-Feb-2017,1702-00526,0.00,215.99,R,Alere Toxicology Plc,No
Http://opendatacommunities.org/id/metropolitan-district-council/leeds,Leeds City Council,28/02/2017,Childrens Services,Safeguarding Targeted & Specialist,Support Services,Legal Disbursements,411,17-Feb-2017,1702-00527,0.00,222.36,R,Alere Toxicology Plc,No
Http://opendatacommunities.org/id/metropolitan-district-council/leeds,Leeds City Council,28/02/2017,Childrens Services,Safeguarding Targeted & Specialist,Support Services,Legal Disbursements,411,24-Feb-2017,1702-00528,0.00,111.50,R,Alere Toxicology Plc,No
Http://opendatacommunities.org/id/metropolitan-district-council/leeds,Leeds City Council,28/02/2017,Childrens Services,Learning Skills & Universal,Supplies and Services,Training Allowances,257,03-Feb-2017,1702-00529,0.00,264.84,R,REDACTED PERSONAL DATA,No
Http://opendatacommunities.org/id/metropolitan-district-council/leeds,Leeds City Council,28/02/2017,Childrens Services,Learning Skills & Universal,Supplies and Services,Training Allowances,257,10-Feb-2017,1702-00530,0.00,264.84,R,REDACTED PERSONAL DATA,No
Http://opendatacommunities.org/id/metropolitan-district-council/leeds,Leeds City Council,28/02/2017,Childrens Services,Learning Skills & Universal,Supplies and Services,Training Allowances,257,17-Feb-2017,1702-00531,0.00,264.84,R,REDACTED PERSONAL DATA,No
Http://opendatacommunities.org/id/metropolitan-district-council/leeds,Leeds City Council,28/02/2017,Childrens Services,Learning Skills & Universal,Supplies and Services,Training Allowances,257,24-Feb-2017,1702-00532,0.00,264.84,R,REDACTED PERSONAL DATA,No
Http://opendatacommunities.org/id/metropolitan-district-council/leeds,Leeds City Council,28/02/2017,Childrens Services,Safeguarding Targeted & Specialist,Support Services,Legal Disbursements,411,10-Feb-2017,1702-00533,0.00,361.00,R,Alex Taylor,No
Http://opendatacommunities.org/id/metropolitan-district-council/leeds,Leeds City Council,28/02/2017,Childrens Services,Safeguarding Targeted & Specialist,Support Services,Legal Disbursements,411,16-Feb-2017,1702-00534,0.00,986.00,R,Alex Taylor,No
Http://opendatacommunities.org/id/metropolitan-district-council/leeds,Leeds City Council,28/02/2017,Adult Social Care,Services For Older People - 65 And Over,Third Party Payments,Residential Care Dementia,571,08-Feb-2017,1702-00535,0.00,11908.87,R,Alexander Residential Home,No
Http://opendatacommunities.org/id/metropolitan-district-council/leeds,Leeds City Council,28/02/2017,Adult Social Care,Services For Older People - 65 And Over,Third Party Payments,Residential,580,08-Feb-2017,1702-00536,0.00,25569.44,R,Alexander Residential Home,No
Http://opendatacommunities.org/id/metropolitan-district-council/leeds,Leeds City Council,28/02/2017,Citizens and Communities,Customer Access,Supplies and Services,Other Hired And Contracted Services,265,02-Feb-2017,1702-00537,0.00,348.50,R,Alexandra Costenco,No
Http://opendatacommunities.org/id/metropolitan-district-council/leeds,Leeds City Council,28/02/2017,Adult Social Care,Services For Older People - 65 And Over,Third Party Payments,Residential Care Dementia,571,08-Feb-2017,1702-00538,0.00,1819.01,R,Alexandra Court,No
Http://opendatacommunities.org/id/metropolitan-district-council/leeds,Leeds City Council,28/02/2017,Adult Social Care,Services For Older People - 65 And Over,Third Party Payments,Residential,580,08-Feb-2017,1702-00539,0.00,25459.37,R,Alexandra Court,No
Http://opendatacommunities.org/id/metropolitan-district-council/leeds,Leeds City Council,28/02/2017,Citizens and Communities,Customer Access,Supplies and Services,Other Hired And Contracted Services,265,02-Feb-2017,1702-00540,0.00,460.25,R,Alexandra Hirst,No
Http://opendatacommunities.org/id/metropolitan-district-council/leeds,Leeds City Council,28/02/2017,Environment & Housing,Leeds Building Services,Supplies and Services,Other Hired And Contracted Services,265,13-Feb-2017,1702-00541,0.00,6970.00,R,Alfred Bagnall & Sons (Leeds) Ltd,No
Http://opendatacommunities.org/id/metropolitan-district-council/leeds,Leeds City Council,28/02/2017,City Development,Economic Development,Supplies and Services,Other Hired And Contracted Services,265,15-Feb-2017,1702-00542,0.00,515.00,R,Alfred Bagnall & Sons (Leeds) Ltd,No
Http://opendatacommunities.org/id/metropolitan-district-council/leeds,Leeds City Council,28/02/2017,City Development,Libraries  Arts & Heritage,Supplies and Services,Operational Furniture And Equipment,203,15-Feb-2017,1702-00543,0.00,1275.00,R,Alfred Bagnall & Sons (Leeds) Ltd,No
Http://opendatacommunities.org/id/metropolitan-district-council/leeds,Leeds City Council,28/02/2017,City Development,Asset Management Services,Supplies and Services,Other Hired And Contracted Services,265,15-Feb-2017,1702-00544,0.00,250.00,R,Alfred Bagnall & Sons (Leeds) Ltd,No
Http://opendatacommunities.org/id/metropolitan-district-council/leeds,Leeds City Council,28/02/2017,City Development,Libraries  Arts & Heritage,Premises,General Maintenance,104,15-Feb-2017,1702-00545,0.00,225.00,R,Alfred Bagnall & Sons (Leeds) Ltd,No
Http://opendatacommunities.org/id/metropolitan-district-council/leeds,Leeds City Council,28/02/2017,Environment & Housing,Leeds Building Services,Supplies and Services,Other Hired And Contracted Services,265,24-Feb-2017,1702-00546,0.00,1350.00,R,Alfred Bagnall & Sons (Leeds) Ltd,No
Http://opendatacommunities.org/id/metropolitan-district-council/leeds,Leeds City Council,28/02/2017,Public Health,Public Health,Premises,Maintenance Of Buildings,101,24-Feb-2017,1702-00547,0.00,2554.00,R,Alfred Bagnall & Sons (Leeds) Ltd,No
Http://opendatacommunities.org/id/metropolitan-district-council/leeds,Leeds City Council,28/02/2017,Environment & Housing,Leeds Building Services,Supplies and Services,Other Hired And Contracted Services,265,24-Feb-2017,1702-00548,0.00,152.00,R,Alfred Bagnall & Sons (Leeds) Ltd,No
Http://opendatacommunities.org/id/metropolitan-district-council/leeds,Leeds City Council,28/02/2017,Environment & Housing,Leeds Building Services,Supplies and Services,Other Hired And Contracted Services,265,24-Feb-2017,1702-00549,0.00,9156.00,R,Alfred Bagnall & Sons (Leeds) Ltd,No
Http://opendatacommunities.org/id/metropolitan-district-council/leeds,Leeds City Council,28/02/2017,Environment & Housing,Leeds Building Services,Supplies and Services,Other Hired And Contracted Services,265,28-Feb-2017,1702-00550,0.00,5382.00,R,Alfred Bagnall & Sons (Leeds) Ltd,No
Http://opendatacommunities.org/id/metropolitan-district-council/leeds,Leeds City Council,28/02/2017,Environment & Housing,Leeds Building Services,Supplies and Services,Other Hired And Contracted Services,265,28-Feb-2017,1702-00551,0.00,350.00,R,Alfred Bagnall & Sons (Leeds) Ltd,No
Http://opendatacommunities.org/id/metropolitan-district-council/leeds,Leeds City Council,28/02/2017,Environment & Housing,Leeds Building Services,Supplies and Services,Other Hired And Contracted Services,265,28-Feb-2017,1702-00552,0.00,1195.00,R,Alfred Bagnall & Sons (Leeds) Ltd,No
Http://opendatacommunities.org/id/metropolitan-district-council/leeds,Leeds City Council,28/02/2017,Childrens Services,Safeguarding Targeted & Specialist ,Transfer Payments,Leaving Care Grants,635,09-Jan-2017,1702-00553,,583.33,R,Ali Baba Carpets,Yes
Http://opendatacommunities.org/id/metropolitan-district-council/leeds,Leeds City Council,28/02/2017,Adult Social Care,Other Generic Services,Supplies and Services,Conference Meetings,253,20-Feb-2017,1702-00554,0.00,30.00,R,REDACTED PERSONAL DATA,No
Http://opendatacommunities.org/id/metropolitan-district-council/leeds,Leeds City Council,28/02/2017,Childrens Services,Safeguarding Targeted & Specialist,Third Party Payments,Section 17,551,03-Feb-2017,1702-00555,0.00,96.90,R,REDACTED PERSONAL DATA,No
Http://opendatacommunities.org/id/metropolitan-district-council/leeds,Leeds City Council,28/02/2017,Childrens Services,Safeguarding Targeted & Specialist,Third Party Payments,Section 17,551,10-Feb-2017,1702-00556,0.00,76.90,R,REDACTED PERSONAL DATA,No
Http://opendatacommunities.org/id/metropolitan-district-council/leeds,Leeds City Council,28/02/2017,Childrens Services,Safeguarding Targeted & Specialist,Third Party Payments,Section 17,551,20-Feb-2017,1702-00557,0.00,9.34,R,REDACTED PERSONAL DATA,No
Http://opendatacommunities.org/id/metropolitan-district-council/leeds,Leeds City Council,28/02/2017,Childrens Services,Safeguarding Targeted & Specialist,Third Party Payments,Section 17,551,24-Feb-2017,1702-00558,0.00,9.34,R,REDACTED PERSONAL DATA,No
Http://opendatacommunities.org/id/metropolitan-district-council/leeds,Leeds City Council,28/02/2017,City Development,Libraries  Arts & Heritage,Supplies and Services,Other Hired And Contracted Services,265,24-Feb-2017,1702-00559,0.00,400.00,R,Alison Rhind,No
Http://opendatacommunities.org/id/metropolitan-district-council/leeds,Leeds City Council,28/02/2017,Childrens Services,Safeguarding Targeted & Specialist,Third Party Payments,Section 17,551,13-Feb-2017,1702-00560,0.00,220.00,R,All Abode,No
Http://opendatacommunities.org/id/metropolitan-district-council/leeds,Leeds City Council,28/02/2017,Childrens Services,Safeguarding Targeted & Specialist,Third Party Payments,Section 17,551,15-Feb-2017,1702-00561,0.00,60.00,R,All Abode,No
Http://opendatacommunities.org/id/metropolitan-district-council/leeds,Leeds City Council,28/02/2017,Environment & Housing,Leeds Building Services,Supplies and Services,Other Hired And Contracted Services,265,01-Feb-2017,1702-00562,0.00,195.00,R,All Clear Solutions Ltd,No
Http://opendatacommunities.org/id/metropolitan-district-council/leeds,Leeds City Council,28/02/2017,Environment & Housing,Leeds Building Services,Supplies and Services,Other Hired And Contracted Services,265,17-Feb-2017,1702-00563,0.00,195.00,R,All Clear Solutions Ltd,No
Http://opendatacommunities.org/id/metropolitan-district-council/leeds,Leeds City Council,28/02/2017,Environment & Housing,Leeds Building Services,Supplies and Services,Other Hired And Contracted Services,265,21-Feb-2017,1702-00564,0.00,195.00,R,All Clear Solutions Ltd,No
Http://opendatacommunities.org/id/metropolitan-district-council/leeds,Leeds City Council,28/02/2017,Environment & Housing,Leeds Building Services,Supplies and Services,Other Hired And Contracted Services,265,21-Feb-2017,1702-00565,0.00,250.00,R,All Clear Solutions Ltd,No
Http://opendatacommunities.org/id/metropolitan-district-council/leeds,Leeds City Council,28/02/2017,Childrens Services,Learning Skills & Universal,Premises,Rents,141,23-Feb-2017,1702-00566,0.00,128.00,R,All Hallows,No
Http://opendatacommunities.org/id/metropolitan-district-council/leeds,Leeds City Council,28/02/2017,Childrens Services,Learning Skills & Universal,Third Party Payments,Services Rendered By Other Organisations,511,17-Feb-2017,1702-00567,0.00,408.33,R,All Stars Childcare,No
Http://opendatacommunities.org/id/metropolitan-district-council/leeds,Leeds City Council,28/02/2017,Civic Enterprise Leeds,Facilities Management ,Supplies and Services,Other Hired And Contracted Services,265,09-Jan-2017,1702-00568,,160.00,R,Allans Sound Commu,Yes
Http://opendatacommunities.org/id/metropolitan-district-council/leeds,Leeds City Council,28/02/2017,Civic Enterprise Leeds,Corporate Property Management ,Supplies and Services,Operational Furniture And Equipment,203,11-Jan-2017,1702-00569,,285.00,R,Allans Sound Commu,Yes
Http://opendatacommunities.org/id/metropolitan-district-council/leeds,Leeds City Council as Accountable Body,28/02/2017,Social Services Pooled Budgets,Jcs For People With Learning Disabilitie,Third Party Payments,Sheltered Accommodation,569,08-Feb-2017,1702-00570,0.00,16596.04,R,Allerton Avenue,No
Http://opendatacommunities.org/id/metropolitan-district-council/leeds,Leeds City Council,28/02/2017,Strategic Accounts,Miscellaneous,Supplies and Services,Non-Recurring Grants,227,20-Feb-2017,1702-00571,0.00,600.00,R,Allerton Bywater Community Partnership,No
Http://opendatacommunities.org/id/metropolitan-district-council/leeds,Leeds City Council as Accountable Body,28/02/2017,Strategic Accounts,Central Control Accounts (Ex Cttee 07),Premises,Payments/Recharges,124,10-Feb-2017,1702-00572,0.00,-641.67,R,Allerton Bywater Primary School,No
Http://opendatacommunities.org/id/metropolitan-district-council/leeds,Leeds City Council,28/02/2017,Insurance,Insurance,Supplies and Services,Insurance Claims,248,16-Feb-2017,1702-00573,0.00,57.00,R,Allerton Medical Centre,No
Http://opendatacommunities.org/id/metropolitan-district-council/leeds,Leeds City Council,28/02/2017,Public Health,Public Health,Third Party Payments,Public Health Commissioned Services,526,27-Feb-2017,1702-00574,0.00,2669.09,R,Allerton Medical Centre,No
Http://opendatacommunities.org/id/metropolitan-district-council/leeds,Leeds City Council,28/02/2017,Central & Corporate,Finance,Supplies and Services,Bank Charges,263,01-Feb-2017,1702-00575,0.00,-63.28,R,Alliance & Leicester Commercial Bank,No
Http://opendatacommunities.org/id/metropolitan-district-council/leeds,Leeds City Council,28/02/2017,Strategic Landlord,Housing Management,Supplies and Services,Other Hired And Contracted Services,265,06-Feb-2017,1702-00576,0.00,235.10,R,Alliance & Leicester Commercial Bank,No
Http://opendatacommunities.org/id/metropolitan-district-council/leeds,Leeds City Council,28/02/2017,Central & Corporate,Finance,Supplies and Services,Bank Charges,263,06-Feb-2017,1702-00577,0.00,2.02,R,Alliance & Leicester Commercial Bank,No
Http://opendatacommunities.org/id/metropolitan-district-council/leeds,Leeds City Council,28/02/2017,Central & Corporate,Finance,Supplies and Services,Bank Charges,263,06-Feb-2017,1702-00578,0.00,245.23,R,Alliance & Leicester Commercial Bank,No
Http://opendatacommunities.org/id/metropolitan-district-council/leeds,Leeds City Council,28/02/2017,Central & Corporate,Finance,Supplies and Services,Bank Charges,263,06-Feb-2017,1702-00579,0.00,862.86,R,Alliance & Leicester Commercial Bank,No
Http://opendatacommunities.org/id/metropolitan-district-council/leeds,Leeds City Council,28/02/2017,Central & Corporate,Finance,Supplies and Services,Bank Charges,263,06-Feb-2017,1702-00580,0.00,100.00,R,Alliance & Leicester Commercial Bank,No
Http://opendatacommunities.org/id/metropolitan-district-council/leeds,Leeds City Council,28/02/2017,City Development,Recreation,Supplies and Services,Publication And Promotion,267,10-Feb-2017,1702-00581,0.00,10950.00,R,Alliance Leisure Service Ltd,No
Http://opendatacommunities.org/id/metropolitan-district-council/leeds,Leeds City Council,28/02/2017,City Development,Highways,Supplies and Services,Other Hired And Contracted Services,265,03-Feb-2017,1702-00582,0.00,295.45,R,Allied Exploration & Geotechnics Ltd,No
Http://opendatacommunities.org/id/metropolitan-district-council/leeds,Leeds City Council,28/02/2017,City Development,Highways,Supplies and Services,Other Hired And Contracted Services,265,07-Feb-2017,1702-00583,0.00,15.00,R,Allied Exploration & Geotechnics Ltd,No
Http://opendatacommunities.org/id/metropolitan-district-council/leeds,Leeds City Council,28/02/2017,City Development,Highways,Capital,Other Costs,7,07-Feb-2017,1702-00584,0.00,650.00,C,Allied Exploration & Geotechnics Ltd,No
Http://opendatacommunities.org/id/metropolitan-district-council/leeds,Leeds City Council,28/02/2017,City Development,Highways,Supplies and Services,Other Hired And Contracted Services,265,07-Feb-2017,1702-00585,0.00,40.00,R,Allied Exploration & Geotechnics Ltd,No
Http://opendatacommunities.org/id/metropolitan-district-council/leeds,Leeds City Council,28/02/2017,City Development,Highways,Supplies and Services,Other Hired And Contracted Services,265,07-Feb-2017,1702-00586,0.00,1634.80,R,Allied Exploration & Geotechnics Ltd,No
Http://opendatacommunities.org/id/metropolitan-district-council/leeds,Leeds City Council,28/02/2017,City Development,Highways,Supplies and Services,Other Hired And Contracted Services,265,07-Feb-2017,1702-00587,0.00,192.00,R,Allied Exploration & Geotechnics Ltd,No
Http://opendatacommunities.org/id/metropolitan-district-council/leeds,Leeds City Council,28/02/2017,City Development,Highways,Supplies and Services,Other Hired And Contracted Services,265,23-Feb-2017,1702-00588,0.00,10407.78,R,Allied Exploration & Geotechnics Ltd,No
Http://opendatacommunities.org/id/metropolitan-district-council/leeds,Leeds City Council,28/02/2017,Adult Social Care,Services For Older People - 65 And Over,Third Party Payments,Home Care,568,03-Feb-2017,1702-00589,0.00,3114.82,R,Allied Healthcare,No
Http://opendatacommunities.org/id/metropolitan-district-council/leeds,Leeds City Council,28/02/2017,Adult Social Care,Services For Older People - 65 And Over,Third Party Payments,Home Care,568,03-Feb-2017,1702-00590,0.00,2569.08,R,Allied Healthcare,No
Http://opendatacommunities.org/id/metropolitan-district-council/leeds,Leeds City Council,28/02/2017,Adult Social Care,Services For Older People - 65 And Over,Third Party Payments,Home Care,568,03-Feb-2017,1702-00591,0.00,319.60,R,Allied Healthcare,No
Http://opendatacommunities.org/id/metropolitan-district-council/leeds,Leeds City Council,28/02/2017,Adult Social Care,Services For Older People - 65 And Over,Third Party Payments,Home Care,568,03-Feb-2017,1702-00592,0.00,8789.39,R,Allied Healthcare,No
Http://opendatacommunities.org/id/metropolitan-district-council/leeds,Leeds City Council,28/02/2017,Adult Social Care,Services For Older People Under 65 P/Dis,Third Party Payments,Home Care,568,03-Feb-2017,1702-00593,0.00,3175.10,R,Allied Healthcare,No
Http://opendatacommunities.org/id/metropolitan-district-council/leeds,Leeds City Council,28/02/2017,Adult Social Care,Services For Older People - 65 And Over,Third Party Payments,Home Care,568,03-Feb-2017,1702-00594,0.00,10695.68,R,Allied Healthcare,No
Http://opendatacommunities.org/id/metropolitan-district-council/leeds,Leeds City Council,28/02/2017,Adult Social Care,Services For Older People Under 65 P/Dis,Third Party Payments,Home Care,568,03-Feb-2017,1702-00595,0.00,1487.83,R,Allied Healthcare,No
Http://opendatacommunities.org/id/metropolitan-district-council/leeds,Leeds City Council,28/02/2017,Adult Social Care,Services For Older People - 65 And Over,Third Party Payments,Home Care,568,03-Feb-2017,1702-00596,0.00,15405.44,R,Allied Healthcare,No
Http://opendatacommunities.org/id/metropolitan-district-council/leeds,Leeds City Council,28/02/2017,Adult Social Care,Services For Older People Under 65 P/Dis,Third Party Payments,Home Care,568,03-Feb-2017,1702-00597,0.00,11996.33,R,Allied Healthcare,No
Http://opendatacommunities.org/id/metropolitan-district-council/leeds,Leeds City Council as Accountable Body,28/02/2017,Social Services Pooled Budgets,Jcs For People With Learning Disabilitie,Third Party Payments,Home Care,568,13-Feb-2017,1702-00598,0.00,564.75,R,Allied Healthcare,No
Http://opendatacommunities.org/id/metropolitan-district-council/leeds,Leeds City Council as Accountable Body,28/02/2017,Social Services Pooled Budgets,Jcs For People With Learning Disabilitie,Third Party Payments,Home Care,568,15-Feb-2017,1702-00599,0.00,564.75,R,Allied Healthcare,No
Http://opendatacommunities.org/id/metropolitan-district-council/leeds,Leeds City Council,28/02/2017,Adult Social Care,Other Generic Services,Third Party Payments,Home Care,568,16-Feb-2017,1702-00600,0.00,17051.90,R,Allied Healthcare,No
Http://opendatacommunities.org/id/metropolitan-district-council/leeds,Leeds City Council,28/02/2017,Adult Social Care,Other Generic Services,Third Party Payments,Home Care,568,16-Feb-2017,1702-00601,0.00,8027.65,R,Allied Healthcare,No
Http://opendatacommunities.org/id/metropolitan-district-council/leeds,Leeds City Council as Accountable Body,28/02/2017,Social Services Pooled Budgets,Jcs For People With Learning Disabilitie,Third Party Payments,Home Care,568,23-Feb-2017,1702-00602,0.00,-32.31,R,Allied Healthcare,No
Http://opendatacommunities.org/id/metropolitan-district-council/leeds,Leeds City Council as Accountable Body,28/02/2017,Social Services Pooled Budgets,Jcs For People With Learning Disabilitie,Third Party Payments,Home Care,568,23-Feb-2017,1702-00603,0.00,116.42,R,Allied Healthcare,No
Http://opendatacommunities.org/id/metropolitan-district-council/leeds,Leeds City Council as Accountable Body,28/02/2017,Social Services Pooled Budgets,Jcs For People With Learning Disabilitie,Third Party Payments,Home Care,568,23-Feb-2017,1702-00604,0.00,211.28,R,Allied Healthcare,No
Http://opendatacommunities.org/id/metropolitan-district-council/leeds,Leeds City Council as Accountable Body,28/02/2017,Social Services Pooled Budgets,Jcs For People With Learning Disabilitie,Third Party Payments,Home Care,568,23-Feb-2017,1702-00605,0.00,15558.01,R,Allied Healthcare,No
Http://opendatacommunities.org/id/metropolitan-district-council/leeds,Leeds City Council as Accountable Body,28/02/2017,Social Services Pooled Budgets,Jcs For People With Learning Disabilitie,Third Party Payments,Home Care,568,23-Feb-2017,1702-00606,0.00,970.93,R,Allied Healthcare,No
Http://opendatacommunities.org/id/metropolitan-district-council/leeds,Leeds City Council as Accountable Body,28/02/2017,Social Services Pooled Budgets,Jcs For People With Learning Disabilitie,Third Party Payments,Home Care,568,23-Feb-2017,1702-00607,0.00,15488.51,R,Allied Healthcare,No
Http://opendatacommunities.org/id/metropolitan-district-council/leeds,Leeds City Council as Accountable Body,28/02/2017,Social Services Pooled Budgets,Jcs For People With Learning Disabilitie,Third Party Payments,Home Care,568,23-Feb-2017,1702-00608,0.00,155.68,R,Allied Healthcare,No
Http://opendatacommunities.org/id/metropolitan-district-council/leeds,Leeds City Council as Accountable Body,28/02/2017,Social Services Pooled Budgets,Jcs For People With Learning Disabilitie,Third Party Payments,Home Care,568,23-Feb-2017,1702-00609,0.00,805.94,R,Allied Healthcare,No
Http://opendatacommunities.org/id/metropolitan-district-council/leeds,Leeds City Council as Accountable Body,28/02/2017,Social Services Pooled Budgets,Jcs For People With Learning Disabilitie,Third Party Payments,Home Care,568,23-Feb-2017,1702-00610,0.00,596.95,R,Allied Healthcare,No
Http://opendatacommunities.org/id/metropolitan-district-council/leeds,Leeds City Council as Accountable Body,28/02/2017,Social Services Pooled Budgets,Jcs For People With Learning Disabilitie,Third Party Payments,Home Care,568,24-Feb-2017,1702-00611,0.00,1088.80,R,Allied Healthcare,No
Http://opendatacommunities.org/id/metropolitan-district-council/leeds,Leeds City Council as Accountable Body,28/02/2017,Social Services Pooled Budgets,Jcs For People With Learning Disabilitie,Third Party Payments,Home Care,568,24-Feb-2017,1702-00612,0.00,794.18,R,Allied Healthcare,No
Http://opendatacommunities.org/id/metropolitan-district-council/leeds,Leeds City Council as Accountable Body,28/02/2017,Social Services Pooled Budgets,Jcs For People With Learning Disabilitie,Third Party Payments,Home Care,568,24-Feb-2017,1702-00613,0.00,819.24,R,Allied Healthcare,No
Http://opendatacommunities.org/id/metropolitan-district-council/leeds,Leeds City Council as Accountable Body,28/02/2017,Social Services Pooled Budgets,Jcs For People With Learning Disabilitie,Third Party Payments,Home Care,568,24-Feb-2017,1702-00614,0.00,16142.55,R,Allied Healthcare,No
Http://opendatacommunities.org/id/metropolitan-district-council/leeds,Leeds City Council as Accountable Body,28/02/2017,Social Services Pooled Budgets,Jcs For People With Learning Disabilitie,Third Party Payments,Home Care,568,24-Feb-2017,1702-00615,0.00,816.75,R,Allied Healthcare,No
Http://opendatacommunities.org/id/metropolitan-district-council/leeds,Leeds City Council as Accountable Body,28/02/2017,Social Services Pooled Budgets,Jcs For People With Learning Disabilitie,Third Party Payments,Home Care,568,24-Feb-2017,1702-00616,0.00,816.73,R,Allied Healthcare,No
Http://opendatacommunities.org/id/metropolitan-district-council/leeds,Leeds City Council as Accountable Body,28/02/2017,Social Services Pooled Budgets,Jcs For People With Learning Disabilitie,Third Party Payments,Home Care,568,24-Feb-2017,1702-00617,0.00,806.51,R,Allied Healthcare,No
Http://opendatacommunities.org/id/metropolitan-district-council/leeds,Leeds City Council as Accountable Body,28/02/2017,Social Services Pooled Budgets,Jcs For People With Learning Disabilitie,Third Party Payments,Home Care,568,27-Feb-2017,1702-00618,0.00,32.31,R,Allied Healthcare,No
Http://opendatacommunities.org/id/metropolitan-district-council/leeds,Leeds City Council as Accountable Body,28/02/2017,Social Services Pooled Budgets,Jcs For People With Learning Disabilitie,Third Party Payments,Home Care,568,27-Feb-2017,1702-00619,0.00,881.16,R,Allied Healthcare,No
Http://opendatacommunities.org/id/metropolitan-district-council/leeds,Leeds City Council as Accountable Body,28/02/2017,Social Services Pooled Budgets,Jcs For People With Learning Disabilitie,Third Party Payments,Home Care,568,28-Feb-2017,1702-00620,0.00,237.80,R,Allied Healthcare,No
Http://opendatacommunities.org/id/metropolitan-district-council/leeds,Leeds City Council,28/02/2017,Public Health,Public Health,Third Party Payments,Public Health Commissioned Services,526,08-Feb-2017,1702-00621,0.00,593.00,R,Allied Pharmacy Ltd,No
Http://opendatacommunities.org/id/metropolitan-district-council/leeds,Leeds City Council,28/02/2017,Strategic Landlord,Housing Management,Supplies and Services,Other Hired And Contracted Services,265,01-Feb-2017,1702-00622,0.00,16.79,R,Allpay Limted,No
Http://opendatacommunities.org/id/metropolitan-district-council/leeds,Leeds City Council,28/02/2017,Strategic Landlord,Housing Management,Supplies and Services,Other Hired And Contracted Services,265,01-Feb-2017,1702-00623,0.00,470.24,R,Allpay Limted,No
Http://opendatacommunities.org/id/metropolitan-district-council/leeds,Leeds City Council,28/02/2017,Strategic Landlord,Housing Management,Supplies and Services,Other Hired And Contracted Services,265,07-Feb-2017,1702-00624,0.00,9.33,R,Allpay Limted,No
Http://opendatacommunities.org/id/metropolitan-district-council/leeds,Leeds City Council,28/02/2017,Strategic Landlord,Housing Management,Supplies and Services,Other Hired And Contracted Services,265,08-Feb-2017,1702-00625,0.00,305.41,R,Allpay Limted,No
Http://opendatacommunities.org/id/metropolitan-district-council/leeds,Leeds City Council,28/02/2017,Strategic Landlord,Housing Management,Supplies and Services,Other Hired And Contracted Services,265,08-Feb-2017,1702-00626,0.00,0.06,R,Allpay Limted,No
Http://opendatacommunities.org/id/metropolitan-district-council/leeds,Leeds City Council,28/02/2017,Strategic Landlord,Housing Management,Supplies and Services,Other Hired And Contracted Services,265,17-Feb-2017,1702-00627,0.00,0.06,R,Allpay Limted,No
Http://opendatacommunities.org/id/metropolitan-district-council/leeds,Leeds City Council,28/02/2017,Strategic Landlord,Housing Management,Supplies and Services,Other Hired And Contracted Services,265,24-Feb-2017,1702-00628,0.00,62.20,R,Allpay Limted,No
Http://opendatacommunities.org/id/metropolitan-district-council/leeds,Leeds City Council,28/02/2017,Childrens Services,Safeguarding Targeted & Specialist ,Transfer Payments,Leaving Care Allowances,634,05-Jan-2017,1702-00629,,60.00,R,Allpay Moto (Callpay/ivr,Yes
Http://opendatacommunities.org/id/metropolitan-district-council/leeds,Leeds City Council,28/02/2017,Central & Corporate,Democratic Services,Transport,Fuel (Non LCC Supplies),321,07-Feb-2017,1702-00630,0.00,205.73,R,Allstar Business Solutions Ltd,No
Http://opendatacommunities.org/id/metropolitan-district-council/leeds,Leeds City Council,28/02/2017,Childrens Services,Learning Skills & Universal,Transport,Fuel (Non LCC Supplies),321,07-Feb-2017,1702-00631,0.00,1396.34,R,Allstar Business Solutions Ltd,No
Http://opendatacommunities.org/id/metropolitan-district-council/leeds,Leeds City Council,28/02/2017,Environment & Housing,Parks and Countryside,Transport,Fuel (Non LCC Supplies),321,07-Feb-2017,1702-00632,0.00,107.17,R,Allstar Business Solutions Ltd,No
Http://opendatacommunities.org/id/metropolitan-district-council/leeds,Leeds City Council,28/02/2017,City Development,Highways,Transport,Fuel (Non LCC Supplies),321,07-Feb-2017,1702-00633,0.00,265.94,R,Allstar Business Solutions Ltd,No
Http://opendatacommunities.org/id/metropolitan-district-council/leeds,Leeds City Council,28/02/2017,Environment & Housing,Waste Management,Transport,Fuel (Non LCC Supplies),321,07-Feb-2017,1702-00634,0.00,2.40,R,Allstar Business Solutions Ltd,No
Http://opendatacommunities.org/id/metropolitan-district-council/leeds,Leeds City Council,28/02/2017,Childrens Services,Safeguarding Targeted & Specialist,Support Services,Legal Disbursements,411,10-Feb-2017,1702-00635,0.00,390.00,R,Alphabiolabs,No
Http://opendatacommunities.org/id/metropolitan-district-council/leeds,Leeds City Council,28/02/2017,Childrens Services,Safeguarding Targeted & Specialist,Support Services,Legal Disbursements,411,10-Feb-2017,1702-00636,0.00,405.00,R,Alphabiolabs,No
Http://opendatacommunities.org/id/metropolitan-district-council/leeds,Leeds City Council,28/02/2017,Central & Corporate,Legal Services,Support Services,Legal Disbursements,411,10-Feb-2017,1702-00637,0.00,116.25,R,Alphabiolabs,No
Http://opendatacommunities.org/id/metropolitan-district-council/leeds,Leeds City Council,28/02/2017,Childrens Services,Safeguarding Targeted & Specialist,Support Services,Legal Disbursements,411,10-Feb-2017,1702-00638,0.00,165.00,R,Alphabiolabs,No
Http://opendatacommunities.org/id/metropolitan-district-council/leeds,Leeds City Council,28/02/2017,Childrens Services,Safeguarding Targeted & Specialist,Support Services,Legal Disbursements,411,22-Feb-2017,1702-00639,0.00,340.00,R,Alphabiolabs,No
Http://opendatacommunities.org/id/metropolitan-district-council/leeds,Leeds City Council,28/02/2017,Childrens Services,Safeguarding Targeted & Specialist,Support Services,Legal Disbursements,411,23-Feb-2017,1702-00640,0.00,120.00,R,Alphabiolabs,No
Http://opendatacommunities.org/id/metropolitan-district-council/leeds,Leeds City Council,28/02/2017,Childrens Services,Safeguarding Targeted & Specialist,Support Services,Legal Disbursements,411,23-Feb-2017,1702-00641,0.00,1560.00,R,Alphabiolabs,No
Http://opendatacommunities.org/id/metropolitan-district-council/leeds,Leeds City Council,28/02/2017,Environment & Housing,Waste Management,Supplies and Services,Other Hired And Contracted Services,265,16-Feb-2017,1702-00642,0.00,118.75,R,Als Life Sciences Limited,No
Http://opendatacommunities.org/id/metropolitan-district-council/leeds,Leeds City Council,28/02/2017,Public Health,Public Health,Third Party Payments,Public Health Commissioned Services,526,08-Feb-2017,1702-00643,0.00,3582.95,R,Al-Shafa Pharmacy,No
Http://opendatacommunities.org/id/metropolitan-district-council/leeds,Leeds City Council,28/02/2017,Environment & Housing,Streetscene Environmental Services,Income,Penalties  Fines & Car Parking Charges,934,27-Feb-2017,1702-00644,0.00,35.00,R,Altodigital Networks Ltd,No
Http://opendatacommunities.org/id/metropolitan-district-council/leeds,Leeds City Council,28/02/2017,Environment & Housing,Leeds Building Services,Supplies and Services,Operational Materials,205,17-Feb-2017,1702-00645,0.00,653.92,R,Alvin Morris Ltd,No
Http://opendatacommunities.org/id/metropolitan-district-council/leeds,Leeds City Council,28/02/2017,Environment & Housing,Parks And Countryside ,Supplies and Services,Operational Materials,205,11-Jan-2017,1702-00646,,33.30,R,Alvinkeyclamp.Co.Uk,Yes
Http://opendatacommunities.org/id/metropolitan-district-council/leeds,Leeds City Council,28/02/2017,Adult Social Care,Services For Older People - 65 And Over,Supplies and Services,Non-Recurring Grants,227,01-Feb-2017,1702-00647,0.00,1126.40,R,Alzheimers Society,No
Http://opendatacommunities.org/id/metropolitan-district-council/leeds,Leeds City Council,28/02/2017,Adult Social Care,Services For Older People - 65 And Over,Third Party Payments,Payments To Voluntary Organisations,561,14-Feb-2017,1702-00648,0.00,73125.00,R,Alzheimers Society,No
Http://opendatacommunities.org/id/metropolitan-district-council/leeds,Leeds City Council,28/02/2017,Childrens Services,Partnerships,Employees,Training & Development,70,28-Feb-2017,1702-00649,0.00,1322.20,R,REDACTED PERSONAL DATA,No
Http://opendatacommunities.org/id/metropolitan-district-council/leeds,Leeds City Council,28/02/2017,Childrens Services,Learning Skills & Universal,Third Party Payments,Services Rendered By Other Organisations,511,17-Feb-2017,1702-00650,0.00,195.00,R,Amanda Wharton,No
Http://opendatacommunities.org/id/metropolitan-district-council/leeds,Leeds City Council,28/02/2017,City Development,Libraries  Arts & Heritage,Supplies and Services,Other Hired And Contracted Services,265,03-Feb-2017,1702-00651,0.00,100.09,R,Amanda Wheat,No
Http://opendatacommunities.org/id/metropolitan-district-council/leeds,Leeds City Council,28/02/2017,Childrens Services,Safeguarding Targeted & Specialist ,Supplies and Services,Operational Furniture And Equipment,203,20-Jan-2017,1702-00652,,532.38,R,Amari Plastics Plc,Yes
Http://opendatacommunities.org/id/metropolitan-district-council/leeds,Leeds City Council,28/02/2017,Environment & Housing,Leeds Building Services,Supplies and Services,Operational Materials,205,06-Feb-2017,1702-00653,0.00,51.75,R,Amari Plastics Plc,No
Http://opendatacommunities.org/id/metropolitan-district-council/leeds,Leeds City Council,28/02/2017,Environment & Housing,Leeds Building Services,Supplies and Services,Operational Materials,205,17-Feb-2017,1702-00654,0.00,193.11,R,Amari Plastics Plc,No
Http://opendatacommunities.org/id/metropolitan-district-council/leeds,Leeds City Council,28/02/2017,Civic Enterprise Leeds,Shared Services,Supplies and Services,Operational Materials,205,17-Feb-2017,1702-00655,0.00,106.58,R,Amari Plastics Plc,No
Http://opendatacommunities.org/id/metropolitan-district-council/leeds,Leeds City Council,28/02/2017,City Development,Recreation,Supplies and Services,Operational Furniture And Equipment,203,15-Feb-2017,1702-00656,0.00,209.30,R,Amazon Leisure Uk Ltd,No
Http://opendatacommunities.org/id/metropolitan-district-council/leeds,Leeds City Council,28/02/2017,City Development,Recreation,Supplies and Services,Operational Furniture And Equipment,203,17-Feb-2017,1702-00657,0.00,280.79,R,Amazon Leisure Uk Ltd,No
Http://opendatacommunities.org/id/metropolitan-district-council/leeds,Leeds City Council,28/02/2017,City Development,Recreation,Supplies and Services,Operational Furniture And Equipment,203,17-Feb-2017,1702-00658,0.00,188.88,R,Amazon Leisure Uk Ltd,No
Http://opendatacommunities.org/id/metropolitan-district-council/leeds,Leeds City Council,28/02/2017,City Development,Recreation,Supplies and Services,Operational Furniture And Equipment,203,24-Feb-2017,1702-00659,0.00,127.50,R,Amazon Leisure Uk Ltd,No
Http://opendatacommunities.org/id/metropolitan-district-council/leeds,Leeds City Council,28/02/2017,Childrens Services,Learning Skills & Universal ,Supplies and Services,Teaching Furniture & Equipment,207,02-Jan-2017,1702-00660,,7.99,R,Amazon Prime,Yes
Http://opendatacommunities.org/id/metropolitan-district-council/leeds,Leeds City Council,28/02/2017,Childrens Services,Learning Skills & Universal ,Supplies and Services,Teaching Materials,202,17-Jan-2017,1702-00661,,99.00,R,Amazon Svcs Europe sar,Yes
Http://opendatacommunities.org/id/metropolitan-district-council/leeds,Leeds City Council,28/02/2017,City Development,Economic Development ,Supplies and Services,Books & Audio-Visual Materials,206,17-Jan-2017,1702-00662,,58.32,R,Amazon Svcs Europe sar,Yes
Http://opendatacommunities.org/id/metropolitan-district-council/leeds,Leeds City Council,28/02/2017,Childrens Services,Learning Skills & Universal ,Supplies and Services,Operational Furniture And Equipment,203,24-Jan-2017,1702-00663,,4.99,R,Amazon Svcs Europe sar,Yes
Http://opendatacommunities.org/id/metropolitan-district-council/leeds,Leeds City Council,28/02/2017,Citizens And Communities,Customer Access ,Premises,First Aid Requisites,128,25-Jan-2017,1702-00664,,2.15,R,Amazon Svcs Europe sar,Yes
Http://opendatacommunities.org/id/metropolitan-district-council/leeds,Leeds City Council,28/02/2017,Childrens Services,Safeguarding Targeted & Specialist ,Supplies and Services,Office Consumables,210,03-Jan-2017,1702-00665,,4.86,R,Amazon UK Marketplace,Yes
Http://opendatacommunities.org/id/metropolitan-district-council/leeds,Leeds City Council,28/02/2017,Citizens And Communities,Customer Access ,Supplies and Services,Operational Materials,205,03-Jan-2017,1702-00666,,9.43,R,Amazon UK Marketplace,Yes
Http://opendatacommunities.org/id/metropolitan-district-council/leeds,Leeds City Council,28/02/2017,Childrens Services,Safeguarding Targeted & Specialist ,Supplies and Services,Office Consumables,210,03-Jan-2017,1702-00667,,32.90,R,Amazon UK Marketplace,Yes
Http://opendatacommunities.org/id/metropolitan-district-council/leeds,Leeds City Council,28/02/2017,Citizens And Communities,Customer Access ,Supplies and Services,Operational Materials,205,04-Jan-2017,1702-00668,,5.96,R,Amazon UK Marketplace,Yes
Http://opendatacommunities.org/id/metropolitan-district-council/leeds,Leeds City Council,28/02/2017,City Development,Recreation ,Supplies and Services,Office Furniture & Equipment,201,04-Jan-2017,1702-00669,,49.95,R,Amazon UK Marketplace,Yes
Http://opendatacommunities.org/id/metropolitan-district-council/leeds,Leeds City Council,28/02/2017,City Development,Libraries  Arts & Heritage ,Supplies and Services,Operational Materials,205,04-Jan-2017,1702-00670,,13.20,R,Amazon UK Marketplace,Yes
Http://opendatacommunities.org/id/metropolitan-district-council/leeds,Leeds City Council,28/02/2017,Citizens And Communities,Customer Access ,Supplies and Services,Operational Furniture And Equipment,203,05-Jan-2017,1702-00671,,109.99,R,Amazon UK Marketplace,Yes
Http://opendatacommunities.org/id/metropolitan-district-council/leeds,Leeds City Council,28/02/2017,City Development,Libraries  Arts & Heritage ,Supplies and Services,Operational Materials,205,05-Jan-2017,1702-00672,,11.47,R,Amazon UK Marketplace,Yes
Http://opendatacommunities.org/id/metropolitan-district-council/leeds,Leeds City Council,28/02/2017,Environment & Housing,Environmental Health ,Supplies and Services,Operational Furniture And Equipment,203,05-Jan-2017,1702-00673,,49.28,R,Amazon UK Marketplace,Yes
Http://opendatacommunities.org/id/metropolitan-district-council/leeds,Leeds City Council,28/02/2017,Civic Enterprise Leeds,Facilities Management ,Supplies and Services,Office Consumables,210,05-Jan-2017,1702-00674,,9.25,R,Amazon UK Marketplace,Yes
Http://opendatacommunities.org/id/metropolitan-district-council/leeds,Leeds City Council,28/02/2017,City Development,Libraries  Arts & Heritage ,Supplies and Services,Operational Furniture And Equipment,203,05-Jan-2017,1702-00675,,27.49,R,Amazon UK Marketplace,Yes
Http://opendatacommunities.org/id/metropolitan-district-council/leeds,Leeds City Council,28/02/2017,City Development,Libraries  Arts & Heritage ,Supplies and Services,Operational Furniture And Equipment,203,05-Jan-2017,1702-00676,,41.66,R,Amazon UK Marketplace,Yes
Http://opendatacommunities.org/id/metropolitan-district-council/leeds,Leeds City Council,28/02/2017,Environment & Housing,Environmental Health ,Supplies and Services,Operational Furniture And Equipment,203,05-Jan-2017,1702-00677,,3.99,R,Amazon UK Marketplace,Yes
Http://opendatacommunities.org/id/metropolitan-district-council/leeds,Leeds City Council,28/02/2017,Childrens Services,Learning Skills & Universal ,Supplies and Services,Office Consumables,210,05-Jan-2017,1702-00678,,8.99,R,Amazon UK Marketplace,Yes
Http://opendatacommunities.org/id/metropolitan-district-council/leeds,Leeds City Council,28/02/2017,City Development,Libraries  Arts & Heritage ,Supplies and Services,Operational Materials,205,05-Jan-2017,1702-00679,,28.50,R,Amazon UK Marketplace,Yes
Http://opendatacommunities.org/id/metropolitan-district-council/leeds,Leeds City Council,28/02/2017,City Development,Libraries  Arts & Heritage ,Supplies and Services,Operational Materials,205,05-Jan-2017,1702-00680,,23.25,R,Amazon UK Marketplace,Yes
Http://opendatacommunities.org/id/metropolitan-district-council/leeds,Leeds City Council,28/02/2017,City Development,Libraries  Arts & Heritage ,Supplies and Services,Operational Materials,205,05-Jan-2017,1702-00681,,58.65,R,Amazon UK Marketplace,Yes
Http://opendatacommunities.org/id/metropolitan-district-council/leeds,Leeds City Council,28/02/2017,City Development,Libraries  Arts & Heritage ,Supplies and Services,Books & Audio-Visual Materials,206,05-Jan-2017,1702-00682,,6.39,R,Amazon UK Marketplace,Yes
Http://opendatacommunities.org/id/metropolitan-district-council/leeds,Leeds City Council,28/02/2017,City Development,Libraries  Arts & Heritage ,Supplies and Services,Operational Materials,205,05-Jan-2017,1702-00683,,69.00,R,Amazon UK Marketplace,Yes
Http://opendatacommunities.org/id/metropolitan-district-council/leeds,Leeds City Council,28/02/2017,Adult Social Care,Assessment And Care Management ,Supplies and Services,Office Furniture & Equipment,201,05-Jan-2017,1702-00684,,29.99,R,Amazon UK Marketplace,Yes
Http://opendatacommunities.org/id/metropolitan-district-council/leeds,Leeds City Council,28/02/2017,Childrens Services,Safeguarding Targeted & Specialist ,Supplies and Services,Office Consumables,210,06-Jan-2017,1702-00685,,11.76,R,Amazon UK Marketplace,Yes
Http://opendatacommunities.org/id/metropolitan-district-council/leeds,Leeds City Council,28/02/2017,Citizens And Communities,Communities ,Supplies and Services,Computer Software & Equipment,214,06-Jan-2017,1702-00686,,27.99,R,Amazon UK Marketplace,Yes
Http://opendatacommunities.org/id/metropolitan-district-council/leeds,Leeds City Council,28/02/2017,Childrens Services,Safeguarding Targeted & Specialist ,Supplies and Services,Operational Furniture And Equipment,203,06-Jan-2017,1702-00687,,5.99,R,Amazon UK Marketplace,Yes
Http://opendatacommunities.org/id/metropolitan-district-council/leeds,Leeds City Council,28/02/2017,Childrens Services,Safeguarding Targeted & Specialist ,Third Party Payments, Direct Work,549,06-Jan-2017,1702-00688,,11.80,R,Amazon UK Marketplace,Yes
Http://opendatacommunities.org/id/metropolitan-district-council/leeds,Leeds City Council,28/02/2017,Childrens Services,Partnerships ,Transfer Payments,Young Peoples Activities,652,06-Jan-2017,1702-00689,,10.90,R,Amazon UK Marketplace,Yes
Http://opendatacommunities.org/id/metropolitan-district-council/leeds,Leeds City Council,28/02/2017,City Development,Libraries  Arts & Heritage ,Supplies and Services,Books & Audio-Visual Materials,206,06-Jan-2017,1702-00690,,13.30,R,Amazon UK Marketplace,Yes
Http://opendatacommunities.org/id/metropolitan-district-council/leeds,Leeds City Council,28/02/2017,Citizens And Communities,Customer Access ,Supplies and Services,Operational Materials,205,08-Jan-2017,1702-00691,,12.65,R,Amazon UK Marketplace,Yes
Http://opendatacommunities.org/id/metropolitan-district-council/leeds,Leeds City Council,28/02/2017,Citizens And Communities,Customer Access ,Supplies and Services,Operational Materials,205,09-Jan-2017,1702-00692,,6.66,R,Amazon UK Marketplace,Yes
Http://opendatacommunities.org/id/metropolitan-district-council/leeds,Leeds City Council,28/02/2017,Childrens Services,Safeguarding Targeted & Specialist ,Transfer Payments,Payments To Residents,622,09-Jan-2017,1702-00693,,12.90,R,Amazon UK Marketplace,Yes
Http://opendatacommunities.org/id/metropolitan-district-council/leeds,Leeds City Council,28/02/2017,City Development,Recreation ,Supplies and Services,Operational Furniture And Equipment,203,09-Jan-2017,1702-00694,,44.55,R,Amazon UK Marketplace,Yes
Http://opendatacommunities.org/id/metropolitan-district-council/leeds,Leeds City Council,28/02/2017,Citizens And Communities,Customer Access ,Supplies and Services,Books & Audio-Visual Materials,206,09-Jan-2017,1702-00695,,27.80,R,Amazon UK Marketplace,Yes
Http://opendatacommunities.org/id/metropolitan-district-council/leeds,Leeds City Council,28/02/2017,Citizens And Communities,Customer Access ,Supplies and Services,Books & Audio-Visual Materials,206,09-Jan-2017,1702-00696,,21.05,R,Amazon UK Marketplace,Yes
Http://opendatacommunities.org/id/metropolitan-district-council/leeds,Leeds City Council,28/02/2017,Childrens Services,Safeguarding Targeted & Specialist ,Transfer Payments,Payments To Residents,622,09-Jan-2017,1702-00697,,48.51,R,Amazon UK Marketplace,Yes
Http://opendatacommunities.org/id/metropolitan-district-council/leeds,Leeds City Council,28/02/2017,Environment & Housing,Parks And Countryside ,Supplies and Services,Operational Materials,205,10-Jan-2017,1702-00698,,3.99,R,Amazon UK Marketplace,Yes
Http://opendatacommunities.org/id/metropolitan-district-council/leeds,Leeds City Council,28/02/2017,Environment & Housing,Parks And Countryside ,Supplies and Services,Operational Materials,205,10-Jan-2017,1702-00699,,11.98,R,Amazon UK Marketplace,Yes
Http://opendatacommunities.org/id/metropolitan-district-council/leeds,Leeds City Council,28/02/2017,City Development,Libraries  Arts & Heritage ,Supplies and Services,Operational Materials,205,10-Jan-2017,1702-00700,,51.75,R,Amazon UK Marketplace,Yes
Http://opendatacommunities.org/id/metropolitan-district-council/leeds,Leeds City Council,28/02/2017,Central & Corporate,Finance ,Supplies and Services,Books & Audio-Visual Materials,206,10-Jan-2017,1702-00701,,4.14,R,Amazon UK Marketplace,Yes
Http://opendatacommunities.org/id/metropolitan-district-council/leeds,Leeds City Council,28/02/2017,City Development,Libraries  Arts & Heritage ,Supplies and Services,Operational Materials,205,10-Jan-2017,1702-00702,,14.98,R,Amazon UK Marketplace,Yes
Http://opendatacommunities.org/id/metropolitan-district-council/leeds,Leeds City Council,28/02/2017,Childrens Services,Learning Skills & Universal ,Supplies and Services,Office Consumables,210,10-Jan-2017,1702-00703,,3.49,R,Amazon UK Marketplace,Yes
Http://opendatacommunities.org/id/metropolitan-district-council/leeds,Leeds City Council,28/02/2017,Citizens And Communities,Customer Access ,Supplies and Services,Operational Furniture And Equipment,203,10-Jan-2017,1702-00704,,114.99,R,Amazon UK Marketplace,Yes
Http://opendatacommunities.org/id/metropolitan-district-council/leeds,Leeds City Council,28/02/2017,Civic Enterprise Leeds,Facilities Management ,Supplies and Services,Office Consumables,210,10-Jan-2017,1702-00705,,23.16,R,Amazon UK Marketplace,Yes
Http://opendatacommunities.org/id/metropolitan-district-council/leeds,Leeds City Council,28/02/2017,Adult Social Care,Assessment And Care Management ,Supplies and Services,Office Furniture & Equipment,201,10-Jan-2017,1702-00706,,29.99,R,Amazon UK Marketplace,Yes
Http://opendatacommunities.org/id/metropolitan-district-council/leeds,Leeds City Council,28/02/2017,City Development,Recreation ,Supplies and Services,Office Consumables,210,11-Jan-2017,1702-00707,,3.49,R,Amazon UK Marketplace,Yes
Http://opendatacommunities.org/id/metropolitan-district-council/leeds,Leeds City Council,28/02/2017,Central & Corporate,Finance ,Supplies and Services,Office Furniture & Equipment,201,11-Jan-2017,1702-00708,,6.65,R,Amazon UK Marketplace,Yes
Http://opendatacommunities.org/id/metropolitan-district-council/leeds,Leeds City Council,28/02/2017,City Development,Recreation ,Supplies and Services,Office Consumables,210,11-Jan-2017,1702-00709,,5.76,R,Amazon UK Marketplace,Yes
Http://opendatacommunities.org/id/metropolitan-district-council/leeds,Leeds City Council,28/02/2017,Central & Corporate,Democratic Services ,Supplies and Services,Operational Furniture And Equipment,203,11-Jan-2017,1702-00710,,4.21,R,Amazon UK Marketplace,Yes
Http://opendatacommunities.org/id/metropolitan-district-council/leeds,Leeds City Council,28/02/2017,City Development,Libraries  Arts & Heritage ,Supplies and Services,Operational Materials,205,11-Jan-2017,1702-00711,,13.59,R,Amazon UK Marketplace,Yes
Http://opendatacommunities.org/id/metropolitan-district-council/leeds,Leeds City Council,28/02/2017,Environment & Housing,Parks And Countryside ,Supplies and Services,Office Consumables,210,11-Jan-2017,1702-00712,,42.45,R,Amazon UK Marketplace,Yes
Http://opendatacommunities.org/id/metropolitan-district-council/leeds,Leeds City Council,28/02/2017,City Development,Libraries  Arts & Heritage ,Supplies and Services,Operational Furniture And Equipment,203,11-Jan-2017,1702-00713,,47.95,R,Amazon UK Marketplace,Yes
Http://opendatacommunities.org/id/metropolitan-district-council/leeds,Leeds City Council,28/02/2017,Environment & Housing,Environmental Action (South) ,Supplies and Services,Telephones,213,11-Jan-2017,1702-00714,,11.98,R,Amazon UK Marketplace,Yes
Http://opendatacommunities.org/id/metropolitan-district-council/leeds,Leeds City Council,28/02/2017,City Development,Libraries  Arts & Heritage ,Supplies and Services,Operational Materials,205,11-Jan-2017,1702-00715,,4.52,R,Amazon UK Marketplace,Yes
Http://opendatacommunities.org/id/metropolitan-district-council/leeds,Leeds City Council,28/02/2017,Environment & Housing,Parks And Countryside ,Supplies and Services,Office Furniture & Equipment,201,11-Jan-2017,1702-00716,,164.00,R,Amazon UK Marketplace,Yes
Http://opendatacommunities.org/id/metropolitan-district-council/leeds,Leeds City Council,28/02/2017,City Development,Libraries  Arts & Heritage ,Supplies and Services,Office Furniture & Equipment,201,12-Jan-2017,1702-00717,,120.78,R,Amazon UK Marketplace,Yes
Http://opendatacommunities.org/id/metropolitan-district-council/leeds,Leeds City Council,28/02/2017,City Development,Libraries  Arts & Heritage ,Supplies and Services,Operational Materials,205,12-Jan-2017,1702-00718,,11.92,R,Amazon UK Marketplace,Yes
Http://opendatacommunities.org/id/metropolitan-district-council/leeds,Leeds City Council,28/02/2017,Citizens And Communities,Communities ,Supplies and Services,'Well Being' Large Grants Projects,230,12-Jan-2017,1702-00719,,39.54,R,Amazon UK Marketplace,Yes
Http://opendatacommunities.org/id/metropolitan-district-council/leeds,Leeds City Council,28/02/2017,Environment & Housing,Environmental Action (City Centre) ,Supplies and Services,Office Consumables,210,12-Jan-2017,1702-00720,,3.45,R,Amazon UK Marketplace,Yes
Http://opendatacommunities.org/id/metropolitan-district-council/leeds,Leeds City Council,28/02/2017,Central & Corporate,Technology ,Supplies and Services,Computer Software & Equipment,214,12-Jan-2017,1702-00721,,-30.98,R,Amazon UK Marketplace,Yes
Http://opendatacommunities.org/id/metropolitan-district-council/leeds,Leeds City Council,28/02/2017,Adult Social Care,Services For Older People - 65 And Over ,Supplies and Services,Office Consumables,210,12-Jan-2017,1702-00722,,20.06,R,Amazon UK Marketplace,Yes
Http://opendatacommunities.org/id/metropolitan-district-council/leeds,Leeds City Council,28/02/2017,City Development,Libraries  Arts & Heritage ,Supplies and Services,Operational Materials,205,12-Jan-2017,1702-00723,,20.63,R,Amazon UK Marketplace,Yes
Http://opendatacommunities.org/id/metropolitan-district-council/leeds,Leeds City Council,28/02/2017,Childrens Services,Learning Skills & Universal ,Supplies and Services,Office Consumables,210,12-Jan-2017,1702-00724,,10.60,R,Amazon UK Marketplace,Yes
Http://opendatacommunities.org/id/metropolitan-district-council/leeds,Leeds City Council,28/02/2017,Adult Social Care,Services For Older People - 65 And Over ,Supplies and Services,Office Consumables,210,12-Jan-2017,1702-00725,,27.91,R,Amazon UK Marketplace,Yes
Http://opendatacommunities.org/id/metropolitan-district-council/leeds,Leeds City Council,28/02/2017,Environment & Housing,Environmental Action (South) ,Supplies and Services,Office Furniture & Equipment,201,12-Jan-2017,1702-00726,,27.75,R,Amazon UK Marketplace,Yes
Http://opendatacommunities.org/id/metropolitan-district-council/leeds,Leeds City Council,28/02/2017,City Development,Libraries  Arts & Heritage ,Supplies and Services,Operational Materials,205,13-Jan-2017,1702-00727,,4.99,R,Amazon UK Marketplace,Yes
Http://opendatacommunities.org/id/metropolitan-district-council/leeds,Leeds City Council,28/02/2017,Childrens Services,Learning Skills & Universal ,Supplies and Services,Operational Furniture And Equipment,203,13-Jan-2017,1702-00728,,67.68,R,Amazon UK Marketplace,Yes
Http://opendatacommunities.org/id/metropolitan-district-council/leeds,Leeds City Council,28/02/2017,Environment & Housing,Environmental Health ,Supplies and Services,Operational Furniture And Equipment,203,13-Jan-2017,1702-00729,,18.49,R,Amazon UK Marketplace,Yes
Http://opendatacommunities.org/id/metropolitan-district-council/leeds,Leeds City Council,28/02/2017,Childrens Services,Safeguarding Targeted & Specialist ,Supplies and Services,Computer Software & Equipment,214,13-Jan-2017,1702-00730,,3.29,R,Amazon UK Marketplace,Yes
Http://opendatacommunities.org/id/metropolitan-district-council/leeds,Leeds City Council,28/02/2017,City Development,Libraries  Arts & Heritage ,Supplies and Services,Operational Materials,205,13-Jan-2017,1702-00731,,7.83,R,Amazon UK Marketplace,Yes
Http://opendatacommunities.org/id/metropolitan-district-council/leeds,Leeds City Council,28/02/2017,Childrens Services,Partnerships ,Transfer Payments,Young Peoples Activities,652,13-Jan-2017,1702-00732,,17.96,R,Amazon UK Marketplace,Yes
Http://opendatacommunities.org/id/metropolitan-district-council/leeds,Leeds City Council,28/02/2017,Childrens Services,Partnerships ,Transfer Payments,Young Peoples Activities,652,13-Jan-2017,1702-00733,,6.99,R,Amazon UK Marketplace,Yes
Http://opendatacommunities.org/id/metropolitan-district-council/leeds,Leeds City Council,28/02/2017,City Development,Libraries  Arts & Heritage ,Supplies and Services,Operational Materials,205,13-Jan-2017,1702-00734,,13.98,R,Amazon UK Marketplace,Yes
Http://opendatacommunities.org/id/metropolitan-district-council/leeds,Leeds City Council,28/02/2017,Childrens Services,Safeguarding Targeted & Specialist ,Supplies and Services,Computer Software & Equipment,214,13-Jan-2017,1702-00735,,1.72,R,Amazon UK Marketplace,Yes
Http://opendatacommunities.org/id/metropolitan-district-council/leeds,Leeds City Council,28/02/2017,Central & Corporate,Finance ,Supplies and Services,Office Furniture & Equipment,201,13-Jan-2017,1702-00736,,9.67,R,Amazon UK Marketplace,Yes
Http://opendatacommunities.org/id/metropolitan-district-council/leeds,Leeds City Council,28/02/2017,Environment & Housing,Environmental Action (South) ,Supplies and Services,Operational Furniture And Equipment,203,13-Jan-2017,1702-00737,,31.69,R,Amazon UK Marketplace,Yes
Http://opendatacommunities.org/id/metropolitan-district-council/leeds,Leeds City Council,28/02/2017,Environment & Housing,Environmental Health ,Supplies and Services,Operational Furniture And Equipment,203,13-Jan-2017,1702-00738,,3.24,R,Amazon UK Marketplace,Yes
Http://opendatacommunities.org/id/metropolitan-district-council/leeds,Leeds City Council,28/02/2017,Childrens Services,Learning Skills & Universal ,Supplies and Services,Operational Furniture And Equipment,203,13-Jan-2017,1702-00739,,3.96,R,Amazon UK Marketplace,Yes
Http://opendatacommunities.org/id/metropolitan-district-council/leeds,Leeds City Council,28/02/2017,Childrens Services,Safeguarding Targeted & Specialist ,Supplies and Services,Office Consumables,210,13-Jan-2017,1702-00740,,33.60,R,Amazon UK Marketplace,Yes
Http://opendatacommunities.org/id/metropolitan-district-council/leeds,Leeds City Council,28/02/2017,Adult Social Care,Assessment And Care Management ,Supplies and Services,Office Furniture & Equipment,201,13-Jan-2017,1702-00741,,29.99,R,Amazon UK Marketplace,Yes
Http://opendatacommunities.org/id/metropolitan-district-council/leeds,Leeds City Council,28/02/2017,City Development,Libraries  Arts & Heritage ,Supplies and Services,Operational Materials,205,13-Jan-2017,1702-00742,,6.98,R,Amazon UK Marketplace,Yes
Http://opendatacommunities.org/id/metropolitan-district-council/leeds,Leeds City Council,28/02/2017,Citizens And Communities,Benefits  Wlefare And Poverty ,Supplies and Services,Office Furniture & Equipment,201,13-Jan-2017,1702-00743,,2.83,R,Amazon UK Marketplace,Yes
Http://opendatacommunities.org/id/metropolitan-district-council/leeds,Leeds City Council,28/02/2017,City Development,Libraries  Arts & Heritage ,Supplies and Services,Operational Materials,205,13-Jan-2017,1702-00744,,8.39,R,Amazon UK Marketplace,Yes
Http://opendatacommunities.org/id/metropolitan-district-council/leeds,Leeds City Council,28/02/2017,Citizens And Communities,Customer Access ,Supplies and Services,Office Consumables,210,13-Jan-2017,1702-00745,,15.98,R,Amazon UK Marketplace,Yes
Http://opendatacommunities.org/id/metropolitan-district-council/leeds,Leeds City Council,28/02/2017,Civic Enterprise Leeds,Commercial Services ,Supplies and Services,Books & Audio-Visual Materials,206,13-Jan-2017,1702-00746,,5.49,R,Amazon UK Marketplace,Yes
Http://opendatacommunities.org/id/metropolitan-district-council/leeds,Leeds City Council,28/02/2017,Childrens Services,Partnerships ,Transfer Payments,Young Peoples Activities,652,13-Jan-2017,1702-00747,,3.50,R,Amazon UK Marketplace,Yes
Http://opendatacommunities.org/id/metropolitan-district-council/leeds,Leeds City Council,28/02/2017,Strategic Landlord,Housing Management ,Supplies and Services,Books & Audio-Visual Materials,206,13-Jan-2017,1702-00748,,245.80,R,Amazon UK Marketplace,Yes
Http://opendatacommunities.org/id/metropolitan-district-council/leeds,Leeds City Council,28/02/2017,Childrens Services,Learning Skills & Universal ,Supplies and Services,Operational Materials,205,13-Jan-2017,1702-00749,,18.50,R,Amazon UK Marketplace,Yes
Http://opendatacommunities.org/id/metropolitan-district-council/leeds,Leeds City Council,28/02/2017,Childrens Services,Partnerships ,Supplies and Services,Office Consumables,210,13-Jan-2017,1702-00750,,4.70,R,Amazon UK Marketplace,Yes
Http://opendatacommunities.org/id/metropolitan-district-council/leeds,Leeds City Council,28/02/2017,City Development,Libraries  Arts & Heritage ,Supplies and Services,Books & Audio-Visual Materials,206,13-Jan-2017,1702-00751,,14.95,R,Amazon UK Marketplace,Yes
Http://opendatacommunities.org/id/metropolitan-district-council/leeds,Leeds City Council,28/02/2017,City Development,Libraries  Arts & Heritage ,Supplies and Services,Operational Materials,205,14-Jan-2017,1702-00752,,8.99,R,Amazon UK Marketplace,Yes
Http://opendatacommunities.org/id/metropolitan-district-council/leeds,Leeds City Council,28/02/2017,City Development,Libraries  Arts & Heritage ,Supplies and Services,Operational Materials,205,14-Jan-2017,1702-00753,,3.40,R,Amazon UK Marketplace,Yes
Http://opendatacommunities.org/id/metropolitan-district-council/leeds,Leeds City Council,28/02/2017,City Development,Libraries  Arts & Heritage ,Supplies and Services,Operational Materials,205,14-Jan-2017,1702-00754,,0.83,R,Amazon UK Marketplace,Yes
Http://opendatacommunities.org/id/metropolitan-district-council/leeds,Leeds City Council,28/02/2017,City Development,Libraries  Arts & Heritage ,Supplies and Services,Operational Materials,205,14-Jan-2017,1702-00755,,3.49,R,Amazon UK Marketplace,Yes
Http://opendatacommunities.org/id/metropolitan-district-council/leeds,Leeds City Council,28/02/2017,City Development,Libraries  Arts & Heritage ,Supplies and Services,Operational Materials,205,15-Jan-2017,1702-00756,,2.69,R,Amazon UK Marketplace,Yes
Http://opendatacommunities.org/id/metropolitan-district-council/leeds,Leeds City Council,28/02/2017,Childrens Services,Learning Skills & Universal ,Supplies and Services,Teaching Materials,202,15-Jan-2017,1702-00757,,74.06,R,Amazon UK Marketplace,Yes
Http://opendatacommunities.org/id/metropolitan-district-council/leeds,Leeds City Council,28/02/2017,City Development,Libraries  Arts & Heritage ,Supplies and Services,Operational Materials,205,15-Jan-2017,1702-00758,,6.95,R,Amazon UK Marketplace,Yes
Http://opendatacommunities.org/id/metropolitan-district-council/leeds,Leeds City Council,28/02/2017,Childrens Services,Partnerships ,Transfer Payments,Young Peoples Activities,652,15-Jan-2017,1702-00759,,6.97,R,Amazon UK Marketplace,Yes
Http://opendatacommunities.org/id/metropolitan-district-council/leeds,Leeds City Council,28/02/2017,City Development,Libraries  Arts & Heritage ,Supplies and Services,Operational Materials,205,15-Jan-2017,1702-00760,,10.99,R,Amazon UK Marketplace,Yes
Http://opendatacommunities.org/id/metropolitan-district-council/leeds,Leeds City Council,28/02/2017,Childrens Services,Learning Skills & Universal ,Supplies and Services,Office Consumables,210,15-Jan-2017,1702-00761,,11.63,R,Amazon UK Marketplace,Yes
Http://opendatacommunities.org/id/metropolitan-district-council/leeds,Leeds City Council,28/02/2017,Adult Social Care,Services For Adults Under 65 Learn/Dis ,Supplies and Services,Office Consumables,210,16-Jan-2017,1702-00762,,35.94,R,Amazon UK Marketplace,Yes
Http://opendatacommunities.org/id/metropolitan-district-council/leeds,Leeds City Council,28/02/2017,Childrens Services,Learning Skills & Universal ,Supplies and Services,Teaching Materials,202,16-Jan-2017,1702-00763,,15.98,R,Amazon UK Marketplace,Yes
Http://opendatacommunities.org/id/metropolitan-district-council/leeds,Leeds City Council,28/02/2017,Citizens And Communities,Benefits  Wlefare And Poverty ,Supplies and Services,Office Furniture & Equipment,201,16-Jan-2017,1702-00764,,15.82,R,Amazon UK Marketplace,Yes
Http://opendatacommunities.org/id/metropolitan-district-council/leeds,Leeds City Council,28/02/2017,Adult Social Care,Services For Older People - 65 And Over ,Supplies and Services,Office Consumables,210,16-Jan-2017,1702-00765,,14.58,R,Amazon UK Marketplace,Yes
